Workbook

Sheet Application

Sheet ACS580 (hidden)
A1: Typecode | B1: Prod.class | D1: Voltage range 1 | F1: Voltage range 2 (1-ph) | H1: Voltage range 2 | J1: Voltage range 3 | L1: Voltage range 4.6 | N1: Voltage range 5 | P1: Voltage range 7/6
A2: =VLOOKUP(DriveSel!E20,C8:Y71,DriveSel!D18) -> ACS580-01-246A-4 | B2: =VLOOKUP(#REF!,C8:X70,7) ->  | C2: non-US (50Hz) | D2: 115 V (1-ph) | F2: 230 V (1-ph) | H2: 230 V (3-ph) | J2: 400 V | L2: 460 V | N2: 500 V | P2: 690 V
A3: Col.ordinal | B3: Col.ordinal
C4: Alternatives: | D4: 115 V 1-ph | F4: 200/208/230/240 V 1-ph | H4: 200/208/230/240 V 3-ph | J4: 380/400/415 V | L4: 440/460/480 V | N4: 500 V | P4: 525/550/575/600/660/690 V
A5: Motor Power | B5: Motor | D5: Drive type | F5: Drive type | H5: Drive type | J5: Drive type | L5: Drive type | N5: Drive type | P5: Drive type
A6: =TypeListTemplate!A6 -> Hp | B6: =TypeListTemplate!B6 -> power kW
A7: =TypeListTemplate!A7 -> 0 | B7: =TypeListTemplate!B7 -> Column Ordinal -> | C7: =TypeListTemplate!C7 -> 1 | D7: =TypeListTemplate!D7 -> 2 | E7: =TypeListTemplate!E7 -> 3 | F7: =TypeListTemplate!F7 -> 4 | G7: =TypeListTemplate!G7 -> 5 | H7: =TypeListTemplate!H7 -> 6 | I7: =TypeListTemplate!I7 -> 7 | J7: =TypeListTemplate!J7 -> 8 | K7: =TypeListTemplate!K7 -> 9 | L7: =TypeListTemplate!L7 -> 10 | M7: =TypeListTemplate!M7 -> 11 | N7: =TypeListTemplate!N7 -> 12 | O7: =TypeListTemplate!O7 -> 13 | P7: =TypeListTemplate!P7 -> 14 | Q7: =TypeListTemplate!Q7 -> 15
A8: =TypeListTemplate!A8 -> 0 | B8: =TypeListTemplate!B8 -> 0 | C8: =TypeListTemplate!C8 -> 0
A9: =TypeListTemplate!A9 -> 0.07375620223 | B9: =TypeListTemplate!B9 -> 0.055 | C9: =TypeListTemplate!C9 -> 0.01
A10: =TypeListTemplate!A10 -> 0.1206919673 | B10: =TypeListTemplate!B10 -> 0.09 | C10: =TypeListTemplate!C10 -> 0.065
A11: =TypeListTemplate!A11 -> 0.160922623 | B11: =TypeListTemplate!B11 -> 0.12 | C11: =TypeListTemplate!C11 -> 0.1
A12: =TypeListTemplate!A12 -> 0.2413839346 | B12: =TypeListTemplate!B12 -> 0.18 | C12: =TypeListTemplate!C12 -> 0.13
A13: =TypeListTemplate!A13 -> 0.4961780877 | B13: =TypeListTemplate!B13 -> 0.37 | C13: =TypeListTemplate!C13 -> 0.19
A14: =TypeListTemplate!A14 -> 0.7375620223 | B14: =TypeListTemplate!B14 -> 0.55 | C14: =TypeListTemplate!C14 -> 0.38
A15: =TypeListTemplate!A15 -> 1.005766394 | B15: =TypeListTemplate!B15 -> 0.75 | C15: =TypeListTemplate!C15 -> 0.56 | J15: ACS580-01-02A6-4 | L15: ACS580-01-02A6-4
A16: =TypeListTemplate!A16 -> 1.475124045 | B16: =TypeListTemplate!B16 -> 1.1 | C16: =TypeListTemplate!C16 -> 0.76 | J16: ACS580-01-03A3-4 | L16: ACS580-01-03A3-4
A17: =TypeListTemplate!A17 -> 2.011532788 | B17: =TypeListTemplate!B17 -> 1.5 | C17: =TypeListTemplate!C17 -> 1.11 | J17: ACS580-01-04A0-4 | L17: ACS580-01-04A0-4
A18: =TypeListTemplate!A18 -> 2.950248089 | B18: =TypeListTemplate!B18 -> 2.2 | C18: =TypeListTemplate!C18 -> 1.51 | J18: ACS580-01-05A6-4 | L18: ACS580-01-05A6-4
A19: =TypeListTemplate!A19 -> 4.023065576 | B19: =TypeListTemplate!B19 -> 3 | C19: =TypeListTemplate!C19 -> 2.21 | J19: ACS580-01-07A2-4 | L19: ACS580-01-07A2-4
A20: =TypeListTemplate!A20 -> 5 | B20: =TypeListTemplate!B20 -> 3.7285 | C20: =TypeListTemplate!C20 -> 3.01 | J20: ACS580-01-09A4-4 | L20: ACS580-01-09A4-4
A21: =TypeListTemplate!A21 -> 5.364087435 | B21: =TypeListTemplate!B21 -> 4 | C21: =TypeListTemplate!C21 -> 3.7385 | J21: ACS580-01-09A4-4 | L21: ACS580-01-09A4-4
A22: =TypeListTemplate!A22 -> 7.375620223 | B22: =TypeListTemplate!B22 -> 5.5 | C22: =TypeListTemplate!C22 -> 4.01 | J22: ACS580-01-12A6-4 | L22: ACS580-01-12A6-4
A23: =TypeListTemplate!A23 -> 10.05766394 | B23: =TypeListTemplate!B23 -> 7.5 | C23: =TypeListTemplate!C23 -> 5.51 | J23: ACS580-01-017A-4 | L23: ACS580-01-017A-4
A24: =TypeListTemplate!A24 -> 14.75124045 | B24: =TypeListTemplate!B24 -> 11 | C24: =TypeListTemplate!C24 -> 7.51 | J24: ACS580-01-025A-4 | L24: ACS580-01-025A-4
A25: =TypeListTemplate!A25 -> 20.11532788 | B25: =TypeListTemplate!B25 -> 15 | C25: =TypeListTemplate!C25 -> 11.01 | J25: ACS580-01-032A-4 | L25: ACS580-01-032A-4
A26: =TypeListTemplate!A26 -> 24.80890439 | B26: =TypeListTemplate!B26 -> 18.5 | C26: =TypeListTemplate!C26 -> 15.01 | J26: ACS580-01-038A-4 | L26: ACS580-01-038A-4
A27: =TypeListTemplate!A27 -> 29.50248089 | B27: =TypeListTemplate!B27 -> 22 | C27: =TypeListTemplate!C27 -> 18.51 | J27: ACS580-01-045A-4 | L27: ACS580-01-045A-4
A28: =TypeListTemplate!A28 -> 40.23065576 | B28: =TypeListTemplate!B28 -> 30 | C28: =TypeListTemplate!C28 -> 22.01 | J28: ACS580-01-061A-4 | L28: ACS580-01-061A-4
A29: =TypeListTemplate!A29 -> 49.61780877 | B29: =TypeListTemplate!B29 -> 37 | C29: =TypeListTemplate!C29 -> 30.01 | J29: ACS580-01-072A-4 | L29: ACS580-01-072A-4
A30: =TypeListTemplate!A30 -> 60.34598364 | B30: =TypeListTemplate!B30 -> 45 | C30: =TypeListTemplate!C30 -> 37.01 | J30: ACS580-01-087A-4 | L30: ACS580-01-087A-4
A31: =TypeListTemplate!A31 -> 73.75620223 | B31: =TypeListTemplate!B31 -> 55 | C31: =TypeListTemplate!C31 -> 45.01 | J31: ACS580-01-105A-4 | L31: ACS580-01-105A-4
A32: =TypeListTemplate!A32 -> 100.5766394 | B32: =TypeListTemplate!B32 -> 75 | C32: =TypeListTemplate!C32 -> 55.01 | J32: ACS580-01-145A-4 | L32: ACS580-01-145A-4
A33: =TypeListTemplate!A33 -> 120.6919673 | B33: =TypeListTemplate!B33 -> 90 | C33: =TypeListTemplate!C33 -> 75.01 | J33: ACS580-01-169A-4 | L33: ACS580-01-169A-4
A34: =TypeListTemplate!A34 -> 147.5124045 | B34: =TypeListTemplate!B34 -> 110 | C34: =TypeListTemplate!C34 -> 90.01 | J34: ACS580-01-206A-4 | L34: ACS580-01-206A-4
A35: =TypeListTemplate!A35 -> 177.0148853 | B35: =TypeListTemplate!B35 -> 132 | C35: =TypeListTemplate!C35 -> 110.01 | J35: ACS580-01-246A-4 | L35: ACS580-01-246A-4
A36: =TypeListTemplate!A36 -> 200 | B36: =TypeListTemplate!B36 -> 149.14 | C36: =TypeListTemplate!C36 -> 132.01 | J36: ACS580-01-293A-4 | L36: ACS580-01-293A-4
A37: =TypeListTemplate!A37 -> 214.5634974 | B37: =TypeListTemplate!B37 -> 160 | C37: =TypeListTemplate!C37 -> 149.15 | J37: ACS580-01-293A-4 | L37: ACS580-01-293A-4
A38: =TypeListTemplate!A38 -> 250 | B38: =TypeListTemplate!B38 -> 186.425 | C38: =TypeListTemplate!C38 -> 160.01 | J38: ACS580-01-363A-4 | L38: ACS580-01-363A-4
A39: =TypeListTemplate!A39 -> 268.2043717 | B39: =TypeListTemplate!B39 -> 200 | C39: =TypeListTemplate!C39 -> 186.435 | J39: ACS580-01-363A-4 | L39: ACS580-01-363A-4
A40: =TypeListTemplate!A40 -> 300 | B40: =TypeListTemplate!B40 -> 223.71 | C40: =TypeListTemplate!C40 -> 200.01 | J40: ACS580-01-430A-4 | L40: ACS580-01-430A-4
A41: =TypeListTemplate!A41 -> 335.2554647 | B41: =TypeListTemplate!B41 -> 250 | C41: =TypeListTemplate!C41 -> 223.72 | J41: ACS580-01-430A-4 | L41: ACS580-01-430A-4
A42: =TypeListTemplate!A42 -> 400 | B42: =TypeListTemplate!B42 -> 298.28 | C42: =TypeListTemplate!C42 -> 250.01
A43: =TypeListTemplate!A43 -> 422.4218855 | B43: =TypeListTemplate!B43 -> 315 | C43: =TypeListTemplate!C43 -> 298.29
A44: =TypeListTemplate!A44 -> 476.0627598 | B44: =TypeListTemplate!B44 -> 355 | C44: =TypeListTemplate!C44 -> 315.01
A45: =TypeListTemplate!A45 -> 536.4087435 | B45: =TypeListTemplate!B45 -> 400 | C45: =TypeListTemplate!C45 -> 355.01
A46: =TypeListTemplate!A46 -> 603.4598364 | B46: =TypeListTemplate!B46 -> 450 | C46: =TypeListTemplate!C46 -> 400.01
A47: =TypeListTemplate!A47 -> 670.5109293 | B47: =TypeListTemplate!B47 -> 500 | C47: =TypeListTemplate!C47 -> 450.01
A48: =TypeListTemplate!A48 -> 750.9722408 | B48: =TypeListTemplate!B48 -> 560 | C48: =TypeListTemplate!C48 -> 500.01
A49: =TypeListTemplate!A49 -> 844.843771 | B49: =TypeListTemplate!B49 -> 630 | C49: =TypeListTemplate!C49 -> 560.01
A50: =TypeListTemplate!A50 -> 952.1255196 | B50: =TypeListTemplate!B50 -> 710 | C50: =TypeListTemplate!C50 -> 630.01
A51: =TypeListTemplate!A51 -> 1072.817487 | B51: =TypeListTemplate!B51 -> 800 | C51: =TypeListTemplate!C51 -> 710.01
A52: =TypeListTemplate!A52 -> 1206.919673 | B52: =TypeListTemplate!B52 -> 900 | C52: =TypeListTemplate!C52 -> 800.01
A53: =TypeListTemplate!A53 -> 1341.021859 | B53: =TypeListTemplate!B53 -> 1000 | C53: =TypeListTemplate!C53 -> 900.01
A54: =TypeListTemplate!A54 -> 1501.944482 | B54: =TypeListTemplate!B54 -> 1120 | C54: =TypeListTemplate!C54 -> 1000.01
A55: =TypeListTemplate!A55 -> 1676.277323 | B55: =TypeListTemplate!B55 -> 1250 | C55: =TypeListTemplate!C55 -> 1120.01
A56: =TypeListTemplate!A56 -> 1877.430602 | B56: =TypeListTemplate!B56 -> 1400 | C56: =TypeListTemplate!C56 -> 1250.01
A57: =TypeListTemplate!A57 -> 2145.634974 | B57: =TypeListTemplate!B57 -> 1600 | C57: =TypeListTemplate!C57 -> 1400.01
A58: =TypeListTemplate!A58 -> 2346.788253 | B58: =TypeListTemplate!B58 -> 1750 | C58: =TypeListTemplate!C58 -> 1600.01
A59: =TypeListTemplate!A59 -> 2413.839346 | B59: =TypeListTemplate!B59 -> 1800 | C59: =TypeListTemplate!C59 -> 1750.01
A60: =TypeListTemplate!A60 -> 2682.043717 | B60: =TypeListTemplate!B60 -> 2000 | C60: =TypeListTemplate!C60 -> 1800.01
A61: =TypeListTemplate!A61 -> 2950.248089 | B61: =TypeListTemplate!B61 -> 2200 | C61: =TypeListTemplate!C61 -> 2000.01
A62: =TypeListTemplate!A62 -> 3017.299182 | B62: =TypeListTemplate!B62 -> 2250 | C62: =TypeListTemplate!C62 -> 2200.01
A63: =TypeListTemplate!A63 -> 3084.350275 | B63: =TypeListTemplate!B63 -> 2300 | C63: =TypeListTemplate!C63 -> 2250.01
A64: =TypeListTemplate!A64 -> 3352.554647 | B64: =TypeListTemplate!B64 -> 2500 | C64: =TypeListTemplate!C64 -> 2300.01
A65: =TypeListTemplate!A65 -> 3754.861204 | B65: =TypeListTemplate!B65 -> 2800 | C65: =TypeListTemplate!C65 -> 2500.01
A66: =TypeListTemplate!A66 -> 4224.218855 | B66: =TypeListTemplate!B66 -> 3150 | C66: =TypeListTemplate!C66 -> 2800.01
A67: =TypeListTemplate!A67 -> 4760.627598 | B67: =TypeListTemplate!B67 -> 3550 | C67: =TypeListTemplate!C67 -> 3150.01
A68: =TypeListTemplate!A68 -> 5364.087435 | B68: =TypeListTemplate!B68 -> 4000 | C68: =TypeListTemplate!C68 -> 3550.01
A69: =TypeListTemplate!A69 -> 6034.598364 | B69: =TypeListTemplate!B69 -> 4500 | C69: =TypeListTemplate!C69 -> 4000.01
A70: =TypeListTemplate!A70 -> 6705.109293 | B70: =TypeListTemplate!B70 -> 5000 | C70: =TypeListTemplate!C70 -> 4500.01
A71: =TypeListTemplate!A71 -> 0 | B71: =TypeListTemplate!B71 -> 999999999 | C71: =TypeListTemplate!C71 -> 5000.01
A72: =TypeListTemplate!A72 -> 0 | B72: =TypeListTemplate!B72 -> 0 | C72: =TypeListTemplate!C72 -> 0
A73: =TypeListTemplate!A73 -> 0 | B73: =TypeListTemplate!B73 -> 0 | C73: =TypeListTemplate!C73 -> 0 | D73: =TypeListTemplate!D73 -> Drive type | E73: =TypeListTemplate!E73 -> 0 | F73: =TypeListTemplate!F73 -> Drive type | G73: =TypeListTemplate!G73 -> 0 | H73: =TypeListTemplate!H73 -> Drive type | I73: =TypeListTemplate!I73 -> 0 | J73: =TypeListTemplate!J73 -> Drive type | K73: =TypeListTemplate!K73 -> 0 | L73: =TypeListTemplate!L73 -> Drive type | M73: =TypeListTemplate!M73 -> 0 | N73: =TypeListTemplate!N73 -> Drive type | O73: =TypeListTemplate!O73 -> 0 | P73: =TypeListTemplate!P73 -> Drive type | Q73: =TypeListTemplate!Q73 -> 0
A74: =TypeListTemplate!A74 -> 0 | B74: =TypeListTemplate!B74 -> 0 | C74: =TypeListTemplate!C74 -> 0 | D74: =TypeListTemplate!D74 -> 115 V (1-ph) | E74: =TypeListTemplate!E74 -> 0 | F74: =TypeListTemplate!F74 -> 230 V (1-ph) | G74: =TypeListTemplate!G74 -> 0 | H74: =TypeListTemplate!H74 -> 230 V (3-ph) | I74: =TypeListTemplate!I74 -> 0 | J74: =TypeListTemplate!J74 -> 400 V | K74: =TypeListTemplate!K74 -> 0 | L74: =TypeListTemplate!L74 -> 460 V | M74: =TypeListTemplate!M74 -> 0 | N74: =TypeListTemplate!N74 -> 500 V | O74: =TypeListTemplate!O74 -> 0 | P74: =TypeListTemplate!P74 -> 690 V | Q74: =TypeListTemplate!Q74 -> 0
A75: =TypeListTemplate!A75 -> 0 | B75: =TypeListTemplate!B75 -> 0 | C75: =TypeListTemplate!C75 -> 0 | D75: =TypeListTemplate!D75 -> 0 | E75: =TypeListTemplate!E75 -> 0 | F75: =TypeListTemplate!F75 -> 0 | G75: =TypeListTemplate!G75 -> 0 | H75: =TypeListTemplate!H75 -> 0 | I75: =TypeListTemplate!I75 -> 0 | J75: =TypeListTemplate!J75 -> 0 | K75: =TypeListTemplate!K75 -> 0 | L75: =TypeListTemplate!L75 -> 0 | M75: =TypeListTemplate!M75 -> 0 | N75: =TypeListTemplate!N75 -> 0 | O75: =TypeListTemplate!O75 -> 0 | P75: =TypeListTemplate!P75 -> 0 | Q75: =TypeListTemplate!Q75 -> 0
A76: =TypeListTemplate!A76 -> 0 | B76: =TypeListTemplate!B76 -> 0 | C76: =TypeListTemplate!C76 -> 0 | D76: =TypeListTemplate!D76 -> 0 | E76: =TypeListTemplate!E76 -> 0 | F76: =TypeListTemplate!F76 -> 0 | G76: =TypeListTemplate!G76 -> 0 | H76: =TypeListTemplate!H76 -> 0 | I76: =TypeListTemplate!I76 -> 0 | J76: =TypeListTemplate!J76 -> 0 | K76: =TypeListTemplate!K76 -> 0 | L76: =TypeListTemplate!L76 -> 0 | M76: =TypeListTemplate!M76 -> 0 | N76: =TypeListTemplate!N76 -> 0 | O76: =TypeListTemplate!O76 -> 0 | P76: =TypeListTemplate!P76 -> 0 | Q76: =TypeListTemplate!Q76 -> 0
A77: =TypeListTemplate!A77 -> 0 | B77: =TypeListTemplate!B77 -> 0 | C77: =TypeListTemplate!C77 -> 0 | D77: =TypeListTemplate!D77 -> 0 | E77: =TypeListTemplate!E77 -> 0 | F77: =TypeListTemplate!F77 -> 0 | G77: =TypeListTemplate!G77 -> 0 | H77: =TypeListTemplate!H77 -> 0 | I77: =TypeListTemplate!I77 -> 0 | J77: =TypeListTemplate!J77 -> 0 | K77: =TypeListTemplate!K77 -> 0 | L77: =TypeListTemplate!L77 -> 0 | M77: =TypeListTemplate!M77 -> 0 | N77: =TypeListTemplate!N77 -> 0 | O77: =TypeListTemplate!O77 -> 0 | P77: =TypeListTemplate!P77 -> 0 | Q77: =TypeListTemplate!Q77 -> 0
A78: =TypeListTemplate!A78 -> 0 | B78: =TypeListTemplate!B78 -> 0 | C78: =TypeListTemplate!C78 -> 0 | D78: =TypeListTemplate!D78 -> 0 | E78: =TypeListTemplate!E78 -> 0 | F78: =TypeListTemplate!F78 -> 0 | G78: =TypeListTemplate!G78 -> 0 | H78: =TypeListTemplate!H78 -> 0 | I78: =TypeListTemplate!I78 -> 0 | J78: =TypeListTemplate!J78 -> 0 | K78: =TypeListTemplate!K78 -> 0 | L78: =TypeListTemplate!L78 -> 0 | M78: =TypeListTemplate!M78 -> 0 | N78: =TypeListTemplate!N78 -> 0 | O78: =TypeListTemplate!O78 -> 0 | P78: =TypeListTemplate!P78 -> 0 | Q78: =TypeListTemplate!Q78 -> 0
A79: =TypeListTemplate!A79 -> 0 | B79: =TypeListTemplate!B79 -> 0 | C79: =TypeListTemplate!C79 -> 0 | D79: =TypeListTemplate!D79 -> 0 | E79: =TypeListTemplate!E79 -> 0 | F79: =TypeListTemplate!F79 -> 0 | G79: =TypeListTemplate!G79 -> 0 | H79: =TypeListTemplate!H79 -> 0 | I79: =TypeListTemplate!I79 -> 0 | J79: =TypeListTemplate!J79 -> 0 | K79: =TypeListTemplate!K79 -> 0 | L79: =TypeListTemplate!L79 -> 0 | M79: =TypeListTemplate!M79 -> 0 | N79: =TypeListTemplate!N79 -> 0 | O79: =TypeListTemplate!O79 -> 0 | P79: =TypeListTemplate!P79 -> 0 | Q79: =TypeListTemplate!Q79 -> 0
A80: =TypeListTemplate!A80 -> 0 | B80: =TypeListTemplate!B80 -> 0 | C80: =TypeListTemplate!C80 -> 0 | D80: =TypeListTemplate!D80 -> 0 | E80: =TypeListTemplate!E80 -> 0 | F80: =TypeListTemplate!F80 -> 0 | G80: =TypeListTemplate!G80 -> 0 | H80: =TypeListTemplate!H80 -> 0 | I80: =TypeListTemplate!I80 -> 0 | J80: =TypeListTemplate!J80 -> 0 | K80: =TypeListTemplate!K80 -> 0 | L80: =TypeListTemplate!L80 -> 0 | M80: =TypeListTemplate!M80 -> 0 | N80: =TypeListTemplate!N80 -> 0 | O80: =TypeListTemplate!O80 -> 0 | P80: =TypeListTemplate!P80 -> 0 | Q80: =TypeListTemplate!Q80 -> 0
A81: =TypeListTemplate!A81 -> 0 | B81: =TypeListTemplate!B81 -> 0 | C81: =TypeListTemplate!C81 -> 0 | D81: =TypeListTemplate!D81 -> 0 | E81: =TypeListTemplate!E81 -> 0 | F81: =TypeListTemplate!F81 -> 0 | G81: =TypeListTemplate!G81 -> 0 | H81: =TypeListTemplate!H81 -> 0 | I81: =TypeListTemplate!I81 -> 0 | J81: =TypeListTemplate!J81 -> 0 | K81: =TypeListTemplate!K81 -> 0 | L81: =TypeListTemplate!L81 -> 0 | M81: =TypeListTemplate!M81 -> 0 | N81: =TypeListTemplate!N81 -> 0 | O81: =TypeListTemplate!O81 -> 0 | P81: =TypeListTemplate!P81 -> 0 | Q81: =TypeListTemplate!Q81 -> 0
A82: =TypeListTemplate!A82 -> 0 | B82: =TypeListTemplate!B82 -> 0 | C82: =TypeListTemplate!C82 -> 0 | D82: =TypeListTemplate!D82 -> 0 | E82: =TypeListTemplate!E82 -> 0 | F82: =TypeListTemplate!F82 -> 0 | G82: =TypeListTemplate!G82 -> 0 | H82: =TypeListTemplate!H82 -> 0 | I82: =TypeListTemplate!I82 -> 0 | J82: =TypeListTemplate!J82 -> 0 | K82: =TypeListTemplate!K82 -> 0 | L82: =TypeListTemplate!L82 -> 0 | M82: =TypeListTemplate!M82 -> 0 | N82: =TypeListTemplate!N82 -> 0 | O82: =TypeListTemplate!O82 -> 0 | P82: =TypeListTemplate!P82 -> 0 | Q82: =TypeListTemplate!Q82 -> 0
A83: =TypeListTemplate!A83 -> 0 | B83: =TypeListTemplate!B83 -> 0 | C83: =TypeListTemplate!C83 -> 0 | D83: =TypeListTemplate!D83 -> 0 | E83: =TypeListTemplate!E83 -> 0 | F83: =TypeListTemplate!F83 -> 0 | G83: =TypeListTemplate!G83 -> 0 | H83: =TypeListTemplate!H83 -> 0 | I83: =TypeListTemplate!I83 -> 0 | J83: =TypeListTemplate!J83 -> 0 | K83: =TypeListTemplate!K83 -> 0 | L83: =TypeListTemplate!L83 -> 0 | M83: =TypeListTemplate!M83 -> 0 | N83: =TypeListTemplate!N83 -> 0 | O83: =TypeListTemplate!O83 -> 0 | P83: =TypeListTemplate!P83 -> 0 | Q83: =TypeListTemplate!Q83 -> 0
A84: =TypeListTemplate!A84 -> 0 | B84: =TypeListTemplate!B84 -> 0 | C84: =TypeListTemplate!C84 -> 0 | D84: =TypeListTemplate!D84 -> 0 | E84: =TypeListTemplate!E84 -> 0 | F84: =TypeListTemplate!F84 -> 0 | G84: =TypeListTemplate!G84 -> 0 | H84: =TypeListTemplate!H84 -> 0 | I84: =TypeListTemplate!I84 -> 0 | J84: =TypeListTemplate!J84 -> 0 | K84: =TypeListTemplate!K84 -> 0 | L84: =TypeListTemplate!L84 -> 0 | M84: =TypeListTemplate!M84 -> 0 | N84: =TypeListTemplate!N84 -> 0 | O84: =TypeListTemplate!O84 -> 0 | P84: =TypeListTemplate!P84 -> 0 | Q84: =TypeListTemplate!Q84 -> 0
A85: =TypeListTemplate!A85 -> 0 | B85: =TypeListTemplate!B85 -> 0 | C85: =TypeListTemplate!C85 -> 0 | D85: =TypeListTemplate!D85 -> 0 | E85: =TypeListTemplate!E85 -> 0 | F85: =TypeListTemplate!F85 -> 0 | G85: =TypeListTemplate!G85 -> 0 | H85: =TypeListTemplate!H85 -> 0 | I85: =TypeListTemplate!I85 -> 0 | J85: =TypeListTemplate!J85 -> 0 | K85: =TypeListTemplate!K85 -> 0 | L85: =TypeListTemplate!L85 -> 0 | M85: =TypeListTemplate!M85 -> 0 | N85: =TypeListTemplate!N85 -> 0 | O85: =TypeListTemplate!O85 -> 0 | P85: =TypeListTemplate!P85 -> 0 | Q85: =TypeListTemplate!Q85 -> 0
A86: =TypeListTemplate!A86 -> 0 | B86: =TypeListTemplate!B86 -> 0 | C86: =TypeListTemplate!C86 -> 0 | D86: =TypeListTemplate!D86 -> 0 | E86: =TypeListTemplate!E86 -> 0 | F86: =TypeListTemplate!F86 -> 0 | G86: =TypeListTemplate!G86 -> 0 | H86: =TypeListTemplate!H86 -> 0 | I86: =TypeListTemplate!I86 -> 0 | J86: =TypeListTemplate!J86 -> 0 | K86: =TypeListTemplate!K86 -> 0 | L86: =TypeListTemplate!L86 -> 0 | M86: =TypeListTemplate!M86 -> 0 | N86: =TypeListTemplate!N86 -> 0 | O86: =TypeListTemplate!O86 -> 0 | P86: =TypeListTemplate!P86 -> 0 | Q86: =TypeListTemplate!Q86 -> 0
A87: =TypeListTemplate!A87 -> 0 | B87: =TypeListTemplate!B87 -> 0 | C87: =TypeListTemplate!C87 -> 0 | D87: =TypeListTemplate!D87 -> 0 | E87: =TypeListTemplate!E87 -> 0 | F87: =TypeListTemplate!F87 -> 0 | G87: =TypeListTemplate!G87 -> 0 | H87: =TypeListTemplate!H87 -> 0 | I87: =TypeListTemplate!I87 -> 0 | J87: =TypeListTemplate!J87 -> 0 | K87: =TypeListTemplate!K87 -> 0 | L87: =TypeListTemplate!L87 -> 0 | M87: =TypeListTemplate!M87 -> 0 | N87: =TypeListTemplate!N87 -> 0 | O87: =TypeListTemplate!O87 -> 0 | P87: =TypeListTemplate!P87 -> 0 | Q87: =TypeListTemplate!Q87 -> 0
A88: =TypeListTemplate!A88 -> 0 | B88: =TypeListTemplate!B88 -> 0 | C88: =TypeListTemplate!C88 -> 0 | D88: =TypeListTemplate!D88 -> 0 | E88: =TypeListTemplate!E88 -> 0 | F88: =TypeListTemplate!F88 -> 0 | G88: =TypeListTemplate!G88 -> 0 | H88: =TypeListTemplate!H88 -> 0 | I88: =TypeListTemplate!I88 -> 0 | J88: =TypeListTemplate!J88 -> 0 | K88: =TypeListTemplate!K88 -> 0 | L88: =TypeListTemplate!L88 -> 0 | M88: =TypeListTemplate!M88 -> 0 | N88: =TypeListTemplate!N88 -> 0 | O88: =TypeListTemplate!O88 -> 0 | P88: =TypeListTemplate!P88 -> 0 | Q88: =TypeListTemplate!Q88 -> 0
A89: =TypeListTemplate!A89 -> 0 | B89: =TypeListTemplate!B89 -> 0 | C89: =TypeListTemplate!C89 -> 0 | D89: =TypeListTemplate!D89 -> 0 | E89: =TypeListTemplate!E89 -> 0 | F89: =TypeListTemplate!F89 -> 0 | G89: =TypeListTemplate!G89 -> 0 | H89: =TypeListTemplate!H89 -> 0 | I89: =TypeListTemplate!I89 -> 0 | J89: =TypeListTemplate!J89 -> 0 | K89: =TypeListTemplate!K89 -> 0 | L89: =TypeListTemplate!L89 -> 0 | M89: =TypeListTemplate!M89 -> 0 | N89: =TypeListTemplate!N89 -> 0 | O89: =TypeListTemplate!O89 -> 0 | P89: =TypeListTemplate!P89 -> 0 | Q89: =TypeListTemplate!Q89 -> 0
A90: =TypeListTemplate!A90 -> 0 | B90: =TypeListTemplate!B90 -> 0 | C90: =TypeListTemplate!C90 -> 0 | D90: =TypeListTemplate!D90 -> 0 | E90: =TypeListTemplate!E90 -> 0 | F90: =TypeListTemplate!F90 -> 0 | G90: =TypeListTemplate!G90 -> 0 | H90: =TypeListTemplate!H90 -> 0 | I90: =TypeListTemplate!I90 -> 0 | J90: =TypeListTemplate!J90 -> 0 | K90: =TypeListTemplate!K90 -> 0 | L90: =TypeListTemplate!L90 -> 0 | M90: =TypeListTemplate!M90 -> 0 | N90: =TypeListTemplate!N90 -> 0 | O90: =TypeListTemplate!O90 -> 0 | P90: =TypeListTemplate!P90 -> 0 | Q90: =TypeListTemplate!Q90 -> 0
A91: =TypeListTemplate!A91 -> 0 | B91: =TypeListTemplate!B91 -> 0 | C91: =TypeListTemplate!C91 -> 0 | D91: =TypeListTemplate!D91 -> 0 | E91: =TypeListTemplate!E91 -> 0 | F91: =TypeListTemplate!F91 -> 0 | G91: =TypeListTemplate!G91 -> 0 | H91: =TypeListTemplate!H91 -> 0 | I91: =TypeListTemplate!I91 -> 0 | J91: =TypeListTemplate!J91 -> 0 | K91: =TypeListTemplate!K91 -> 0 | L91: =TypeListTemplate!L91 -> 0 | M91: =TypeListTemplate!M91 -> 0 | N91: =TypeListTemplate!N91 -> 0 | O91: =TypeListTemplate!O91 -> 0 | P91: =TypeListTemplate!P91 -> 0 | Q91: =TypeListTemplate!Q91 -> 0
A92: =TypeListTemplate!A92 -> 0 | B92: =TypeListTemplate!B92 -> 0 | C92: =TypeListTemplate!C92 -> 0 | D92: =TypeListTemplate!D92 -> 0 | E92: =TypeListTemplate!E92 -> 0 | F92: =TypeListTemplate!F92 -> 0 | G92: =TypeListTemplate!G92 -> 0 | H92: =TypeListTemplate!H92 -> 0 | I92: =TypeListTemplate!I92 -> 0 | J92: =TypeListTemplate!J92 -> 0 | K92: =TypeListTemplate!K92 -> 0 | L92: =TypeListTemplate!L92 -> 0 | M92: =TypeListTemplate!M92 -> 0 | N92: =TypeListTemplate!N92 -> 0 | O92: =TypeListTemplate!O92 -> 0 | P92: =TypeListTemplate!P92 -> 0 | Q92: =TypeListTemplate!Q92 -> 0
A93: =TypeListTemplate!A93 -> 0 | B93: =TypeListTemplate!B93 -> 0 | C93: =TypeListTemplate!C93 -> 0 | D93: =TypeListTemplate!D93 -> 0 | E93: =TypeListTemplate!E93 -> 0 | F93: =TypeListTemplate!F93 -> 0 | G93: =TypeListTemplate!G93 -> 0 | H93: =TypeListTemplate!H93 -> 0 | I93: =TypeListTemplate!I93 -> 0 | J93: =TypeListTemplate!J93 -> 0 | K93: =TypeListTemplate!K93 -> 0 | L93: =TypeListTemplate!L93 -> 0 | M93: =TypeListTemplate!M93 -> 0 | N93: =TypeListTemplate!N93 -> 0 | O93: =TypeListTemplate!O93 -> 0 | P93: =TypeListTemplate!P93 -> 0 | Q93: =TypeListTemplate!Q93 -> 0
A94: =TypeListTemplate!A94 -> 0 | B94: =TypeListTemplate!B94 -> 0 | C94: =TypeListTemplate!C94 -> 0 | D94: =TypeListTemplate!D94 -> 0 | E94: =TypeListTemplate!E94 -> 0 | F94: =TypeListTemplate!F94 -> 0 | G94: =TypeListTemplate!G94 -> 0 | H94: =TypeListTemplate!H94 -> 0 | I94: =TypeListTemplate!I94 -> 0 | J94: =TypeListTemplate!J94 -> 0 | K94: =TypeListTemplate!K94 -> 0 | L94: =TypeListTemplate!L94 -> 0 | M94: =TypeListTemplate!M94 -> 0 | N94: =TypeListTemplate!N94 -> 0 | O94: =TypeListTemplate!O94 -> 0 | P94: =TypeListTemplate!P94 -> 0 | Q94: =TypeListTemplate!Q94 -> 0
A95: =TypeListTemplate!A95 -> 0 | B95: =TypeListTemplate!B95 -> 0 | C95: =TypeListTemplate!C95 -> 0 | D95: =TypeListTemplate!D95 -> 0 | E95: =TypeListTemplate!E95 -> 0 | F95: =TypeListTemplate!F95 -> 0 | G95: =TypeListTemplate!G95 -> 0 | H95: =TypeListTemplate!H95 -> 0 | I95: =TypeListTemplate!I95 -> 0 | J95: =TypeListTemplate!J95 -> 0 | K95: =TypeListTemplate!K95 -> 0 | L95: =TypeListTemplate!L95 -> 0 | M95: =TypeListTemplate!M95 -> 0 | N95: =TypeListTemplate!N95 -> 0 | O95: =TypeListTemplate!O95 -> 0 | P95: =TypeListTemplate!P95 -> 0 | Q95: =TypeListTemplate!Q95 -> 0

Sheet ACS550 (hidden)
A1: Typecode | B1: Prod.class | D1: Voltage range 1 | F1: Voltage range 2 (1-ph) | H1: Voltage range 2 | J1: Voltage range 3 | L1: Voltage range 4.6 | N1: Voltage range 5 | P1: Voltage range 7/6
A2: =VLOOKUP(DriveSel!E20,C8:Y71,DriveSel!D18) -> ACS550-01-246A-4 | B2: =VLOOKUP(#REF!,C8:X70,7) ->  | C2: non-US (50Hz) | D2: 115 V (1-ph) | F2: 230 V (1-ph) | H2: 230 V (3-ph) | J2: 400 V | L2: 460 V | N2: 500 V | P2: 690 V
A3: Col.ordinal | B3: Col.ordinal
C4: Alternatives: | D4: 115 V 1-ph | F4: 200/208/230/240 V 1-ph | H4: 200/208/230/240 V 3-ph | J4: 380/400/415 V | L4: 440/460/480 V | N4: 500 V | P4: 525/550/575/600/660/690 V
A5: Motor Power | B5: Motor | D5: Drive type | F5: Drive type | H5: Drive type | J5: Drive type | L5: Drive type | N5: Drive type | P5: Drive type
A6: =TypeListTemplate!A6 -> Hp | B6: =TypeListTemplate!B6 -> power kW
A7: =TypeListTemplate!A7 -> 0 | B7: =TypeListTemplate!B7 -> Column Ordinal -> | C7: =TypeListTemplate!C7 -> 1 | D7: =TypeListTemplate!D7 -> 2 | E7: =TypeListTemplate!E7 -> 3 | F7: =TypeListTemplate!F7 -> 4 | G7: =TypeListTemplate!G7 -> 5 | H7: =TypeListTemplate!H7 -> 6 | I7: =TypeListTemplate!I7 -> 7 | J7: =TypeListTemplate!J7 -> 8 | K7: =TypeListTemplate!K7 -> 9 | L7: =TypeListTemplate!L7 -> 10 | M7: =TypeListTemplate!M7 -> 11 | N7: =TypeListTemplate!N7 -> 12 | O7: =TypeListTemplate!O7 -> 13 | P7: =TypeListTemplate!P7 -> 14 | Q7: =TypeListTemplate!Q7 -> 15
A8: =TypeListTemplate!A8 -> 0 | B8: =TypeListTemplate!B8 -> 0 | C8: =TypeListTemplate!C8 -> 0
A9: =TypeListTemplate!A9 -> 0.07375620223 | B9: =TypeListTemplate!B9 -> 0.055 | C9: =TypeListTemplate!C9 -> 0.01
A10: =TypeListTemplate!A10 -> 0.1206919673 | B10: =TypeListTemplate!B10 -> 0.09 | C10: =TypeListTemplate!C10 -> 0.065
A11: =TypeListTemplate!A11 -> 0.160922623 | B11: =TypeListTemplate!B11 -> 0.12 | C11: =TypeListTemplate!C11 -> 0.1
A12: =TypeListTemplate!A12 -> 0.2413839346 | B12: =TypeListTemplate!B12 -> 0.18 | C12: =TypeListTemplate!C12 -> 0.13
A13: =TypeListTemplate!A13 -> 0.4961780877 | B13: =TypeListTemplate!B13 -> 0.37 | C13: =TypeListTemplate!C13 -> 0.19
A14: =TypeListTemplate!A14 -> 0.7375620223 | B14: =TypeListTemplate!B14 -> 0.55 | C14: =TypeListTemplate!C14 -> 0.38 | H14: ACS550-01-04A6-2
A15: =TypeListTemplate!A15 -> 1.005766394 | B15: =TypeListTemplate!B15 -> 0.75 | C15: =TypeListTemplate!C15 -> 0.56 | H15: ACS550-01-04A6-2 | J15: ACS550-01-03A3-4 | L15: ACS550-01-03A3-4
A16: =TypeListTemplate!A16 -> 1.475124045 | B16: =TypeListTemplate!B16 -> 1.1 | C16: =TypeListTemplate!C16 -> 0.76 | H16: ACS550-01-06A6-2 | J16: ACS550-01-03A3-4 | L16: ACS550-01-03A3-4
A17: =TypeListTemplate!A17 -> 2.011532788 | B17: =TypeListTemplate!B17 -> 1.5 | C17: =TypeListTemplate!C17 -> 1.11 | H17: ACS550-01-07A5-2 | J17: ACS550-01-04A1-4 | L17: ACS550-01-04A1-4
A18: =TypeListTemplate!A18 -> 2.950248089 | B18: =TypeListTemplate!B18 -> 2.2 | C18: =TypeListTemplate!C18 -> 1.51 | H18: ACS550-01-012A-2 | J18: ACS550-01-05A4-4 | L18: ACS550-01-05A4-4
A19: =TypeListTemplate!A19 -> 4.023065576 | B19: =TypeListTemplate!B19 -> 3 | C19: =TypeListTemplate!C19 -> 2.21 | H19: ACS550-01-017A-2 | J19: ACS550-01-06A9-4 | L19: ACS550-01-06A9-4
A20: =TypeListTemplate!A20 -> 5 | B20: =TypeListTemplate!B20 -> 3.7285 | C20: =TypeListTemplate!C20 -> 3.01 | H20: ACS550-01-017A-2 | J20: ACS550-01-08A8-4 | L20: ACS550-01-06A9-4
A21: =TypeListTemplate!A21 -> 5.364087435 | B21: =TypeListTemplate!B21 -> 4 | C21: =TypeListTemplate!C21 -> 3.7385 | H21: ACS550-01-017A-2 | J21: ACS550-01-08A8-4 | L21: ACS550-01-08A8-4
A22: =TypeListTemplate!A22 -> 7.375620223 | B22: =TypeListTemplate!B22 -> 5.5 | C22: =TypeListTemplate!C22 -> 4.01 | H22: ACS550-01-024A-2 | J22: ACS550-01-012A-4 | L22: ACS550-01-012A-4
A23: =TypeListTemplate!A23 -> 10.05766394 | B23: =TypeListTemplate!B23 -> 7.5 | C23: =TypeListTemplate!C23 -> 5.51 | H23: ACS550-01-031A-2 | J23: ACS550-01-015A-4 | L23: ACS550-01-015A-4
A24: =TypeListTemplate!A24 -> 14.75124045 | B24: =TypeListTemplate!B24 -> 11 | C24: =TypeListTemplate!C24 -> 7.51 | H24: ACS550-01-046A-2 | J24: ACS550-01-023A-4 | L24: ACS550-01-023A-4
A25: =TypeListTemplate!A25 -> 20.11532788 | B25: =TypeListTemplate!B25 -> 15 | C25: =TypeListTemplate!C25 -> 11.01 | H25: ACS550-01-059A-2 | J25: ACS550-01-031A-4 | L25: ACS550-01-031A-4
A26: =TypeListTemplate!A26 -> 24.80890439 | B26: =TypeListTemplate!B26 -> 18.5 | C26: =TypeListTemplate!C26 -> 15.01 | H26: ACS550-01-075A-2 | J26: ACS550-01-038A-4 | L26: ACS550-01-038A-4
A27: =TypeListTemplate!A27 -> 29.50248089 | B27: =TypeListTemplate!B27 -> 22 | C27: =TypeListTemplate!C27 -> 18.51 | H27: ACS550-01-088A-2 | J27: ACS550-01-045A-4 | L27: ACS550-01-045A-4
A28: =TypeListTemplate!A28 -> 40.23065576 | B28: =TypeListTemplate!B28 -> 30 | C28: =TypeListTemplate!C28 -> 22.01 | H28: ACS550-01-114A-2 | J28: ACS550-01-059A-4 | L28: ACS550-01-059A-4
A29: =TypeListTemplate!A29 -> 49.61780877 | B29: =TypeListTemplate!B29 -> 37 | C29: =TypeListTemplate!C29 -> 30.01 | H29: ACS550-01-143A-2 | J29: ACS550-01-072A-4 | L29: ACS550-01-072A-4
A30: =TypeListTemplate!A30 -> 60.34598364 | B30: =TypeListTemplate!B30 -> 45 | C30: =TypeListTemplate!C30 -> 37.01 | H30: ACS550-01-178A-2 | J30: ACS550-01-087A-4 | L30: ACS550-01-087A-4
A31: =TypeListTemplate!A31 -> 73.75620223 | B31: =TypeListTemplate!B31 -> 55 | C31: =TypeListTemplate!C31 -> 45.01 | H31: ACS550-01-221A-2 | J31: ACS550-01-125A-4 | L31: ACS550-01-087A-4
A32: =TypeListTemplate!A32 -> 100.5766394 | B32: =TypeListTemplate!B32 -> 75 | C32: =TypeListTemplate!C32 -> 55.01 | H32: ACS550-01-248A-2 | J32: ACS550-01-157A-4 | L32: ACS550-01-125A-4
A33: =TypeListTemplate!A33 -> 120.6919673 | B33: =TypeListTemplate!B33 -> 90 | C33: =TypeListTemplate!C33 -> 75.01 | J33: ACS550-01-180A-4 | L33: ACS550-01-157A-4
A34: =TypeListTemplate!A34 -> 147.5124045 | B34: =TypeListTemplate!B34 -> 110 | C34: =TypeListTemplate!C34 -> 90.01 | J34: ACS550-01-195A-4 | L34: ACS550-01-180A-4
A35: =TypeListTemplate!A35 -> 177.0148853 | B35: =TypeListTemplate!B35 -> 132 | C35: =TypeListTemplate!C35 -> 110.01 | J35: ACS550-01-246A-4 | L35: ACS550-01-246A-4
A36: =TypeListTemplate!A36 -> 200 | B36: =TypeListTemplate!B36 -> 149.14 | C36: =TypeListTemplate!C36 -> 132.01 | J36: ACS550-02-290A-4 | L36: ACS550-01-246A-4
A37: =TypeListTemplate!A37 -> 214.5634974 | B37: =TypeListTemplate!B37 -> 160 | C37: =TypeListTemplate!C37 -> 149.15 | J37: ACS550-02-290A-4 | L37: ACS550-02-290A-4
A38: =TypeListTemplate!A38 -> 250 | B38: =TypeListTemplate!B38 -> 186.425 | C38: =TypeListTemplate!C38 -> 160.01 | J38: ACS550-02-368A-4 | L38: ACS550-02-368A-4
A39: =TypeListTemplate!A39 -> 268.2043717 | B39: =TypeListTemplate!B39 -> 200 | C39: =TypeListTemplate!C39 -> 186.435 | J39: ACS550-02-368A-4 | L39: ACS550-02-368A-4
A40: =TypeListTemplate!A40 -> 300 | B40: =TypeListTemplate!B40 -> 223.71 | C40: =TypeListTemplate!C40 -> 200.01 | J40: ACS550-02-486A-4 | L40: ACS550-02-368A-4
A41: =TypeListTemplate!A41 -> 335.2554647 | B41: =TypeListTemplate!B41 -> 250 | C41: =TypeListTemplate!C41 -> 223.72 | J41: ACS550-02-526A-4 | L41: ACS550-02-486A-4
A42: =TypeListTemplate!A42 -> 400 | B42: =TypeListTemplate!B42 -> 298.28 | C42: =TypeListTemplate!C42 -> 250.01 | J42: ACS550-02-602A-4 | L42: ACS550-02-486A-4
A43: =TypeListTemplate!A43 -> 422.4218855 | B43: =TypeListTemplate!B43 -> 315 | C43: =TypeListTemplate!C43 -> 298.29 | J43: ACS550-02-602A-4 | L43: ACS550-02-602A-4
A44: =TypeListTemplate!A44 -> 476.0627598 | B44: =TypeListTemplate!B44 -> 355 | C44: =TypeListTemplate!C44 -> 315.01 | J44: ACS550-02-645A-4 | L44: ACS550-02-602A-4
A45: =TypeListTemplate!A45 -> 536.4087435 | B45: =TypeListTemplate!B45 -> 400 | C45: =TypeListTemplate!C45 -> 355.01 | L45: ACS550-02-645A-4
A46: =TypeListTemplate!A46 -> 603.4598364 | B46: =TypeListTemplate!B46 -> 450 | C46: =TypeListTemplate!C46 -> 400.01
A47: =TypeListTemplate!A47 -> 670.5109293 | B47: =TypeListTemplate!B47 -> 500 | C47: =TypeListTemplate!C47 -> 450.01
A48: =TypeListTemplate!A48 -> 750.9722408 | B48: =TypeListTemplate!B48 -> 560 | C48: =TypeListTemplate!C48 -> 500.01
A49: =TypeListTemplate!A49 -> 844.843771 | B49: =TypeListTemplate!B49 -> 630 | C49: =TypeListTemplate!C49 -> 560.01
A50: =TypeListTemplate!A50 -> 952.1255196 | B50: =TypeListTemplate!B50 -> 710 | C50: =TypeListTemplate!C50 -> 630.01
A51: =TypeListTemplate!A51 -> 1072.817487 | B51: =TypeListTemplate!B51 -> 800 | C51: =TypeListTemplate!C51 -> 710.01
A52: =TypeListTemplate!A52 -> 1206.919673 | B52: =TypeListTemplate!B52 -> 900 | C52: =TypeListTemplate!C52 -> 800.01
A53: =TypeListTemplate!A53 -> 1341.021859 | B53: =TypeListTemplate!B53 -> 1000 | C53: =TypeListTemplate!C53 -> 900.01
A54: =TypeListTemplate!A54 -> 1501.944482 | B54: =TypeListTemplate!B54 -> 1120 | C54: =TypeListTemplate!C54 -> 1000.01
A55: =TypeListTemplate!A55 -> 1676.277323 | B55: =TypeListTemplate!B55 -> 1250 | C55: =TypeListTemplate!C55 -> 1120.01
A56: =TypeListTemplate!A56 -> 1877.430602 | B56: =TypeListTemplate!B56 -> 1400 | C56: =TypeListTemplate!C56 -> 1250.01
A57: =TypeListTemplate!A57 -> 2145.634974 | B57: =TypeListTemplate!B57 -> 1600 | C57: =TypeListTemplate!C57 -> 1400.01
A58: =TypeListTemplate!A58 -> 2346.788253 | B58: =TypeListTemplate!B58 -> 1750 | C58: =TypeListTemplate!C58 -> 1600.01
A59: =TypeListTemplate!A59 -> 2413.839346 | B59: =TypeListTemplate!B59 -> 1800 | C59: =TypeListTemplate!C59 -> 1750.01
A60: =TypeListTemplate!A60 -> 2682.043717 | B60: =TypeListTemplate!B60 -> 2000 | C60: =TypeListTemplate!C60 -> 1800.01
A61: =TypeListTemplate!A61 -> 2950.248089 | B61: =TypeListTemplate!B61 -> 2200 | C61: =TypeListTemplate!C61 -> 2000.01
A62: =TypeListTemplate!A62 -> 3017.299182 | B62: =TypeListTemplate!B62 -> 2250 | C62: =TypeListTemplate!C62 -> 2200.01
A63: =TypeListTemplate!A63 -> 3084.350275 | B63: =TypeListTemplate!B63 -> 2300 | C63: =TypeListTemplate!C63 -> 2250.01
A64: =TypeListTemplate!A64 -> 3352.554647 | B64: =TypeListTemplate!B64 -> 2500 | C64: =TypeListTemplate!C64 -> 2300.01
A65: =TypeListTemplate!A65 -> 3754.861204 | B65: =TypeListTemplate!B65 -> 2800 | C65: =TypeListTemplate!C65 -> 2500.01
A66: =TypeListTemplate!A66 -> 4224.218855 | B66: =TypeListTemplate!B66 -> 3150 | C66: =TypeListTemplate!C66 -> 2800.01
A67: =TypeListTemplate!A67 -> 4760.627598 | B67: =TypeListTemplate!B67 -> 3550 | C67: =TypeListTemplate!C67 -> 3150.01
A68: =TypeListTemplate!A68 -> 5364.087435 | B68: =TypeListTemplate!B68 -> 4000 | C68: =TypeListTemplate!C68 -> 3550.01
A69: =TypeListTemplate!A69 -> 6034.598364 | B69: =TypeListTemplate!B69 -> 4500 | C69: =TypeListTemplate!C69 -> 4000.01
A70: =TypeListTemplate!A70 -> 6705.109293 | B70: =TypeListTemplate!B70 -> 5000 | C70: =TypeListTemplate!C70 -> 4500.01
A71: =TypeListTemplate!A71 -> 0 | B71: =TypeListTemplate!B71 -> 999999999 | C71: =TypeListTemplate!C71 -> 5000.01
A72: =TypeListTemplate!A72 -> 0 | B72: =TypeListTemplate!B72 -> 0 | C72: =TypeListTemplate!C72 -> 0
A73: =TypeListTemplate!A73 -> 0 | B73: =TypeListTemplate!B73 -> 0 | C73: =TypeListTemplate!C73 -> 0 | D73: =TypeListTemplate!D73 -> Drive type | E73: =TypeListTemplate!E73 -> 0 | F73: =TypeListTemplate!F73 -> Drive type | G73: =TypeListTemplate!G73 -> 0 | H73: =TypeListTemplate!H73 -> Drive type | I73: =TypeListTemplate!I73 -> 0 | J73: =TypeListTemplate!J73 -> Drive type | K73: =TypeListTemplate!K73 -> 0 | L73: =TypeListTemplate!L73 -> Drive type | M73: =TypeListTemplate!M73 -> 0 | N73: =TypeListTemplate!N73 -> Drive type | O73: =TypeListTemplate!O73 -> 0 | P73: =TypeListTemplate!P73 -> Drive type | Q73: =TypeListTemplate!Q73 -> 0
A74: =TypeListTemplate!A74 -> 0 | B74: =TypeListTemplate!B74 -> 0 | C74: =TypeListTemplate!C74 -> 0 | D74: =TypeListTemplate!D74 -> 115 V (1-ph) | E74: =TypeListTemplate!E74 -> 0 | F74: =TypeListTemplate!F74 -> 230 V (1-ph) | G74: =TypeListTemplate!G74 -> 0 | H74: =TypeListTemplate!H74 -> 230 V (3-ph) | I74: =TypeListTemplate!I74 -> 0 | J74: =TypeListTemplate!J74 -> 400 V | K74: =TypeListTemplate!K74 -> 0 | L74: =TypeListTemplate!L74 -> 460 V | M74: =TypeListTemplate!M74 -> 0 | N74: =TypeListTemplate!N74 -> 500 V | O74: =TypeListTemplate!O74 -> 0 | P74: =TypeListTemplate!P74 -> 690 V | Q74: =TypeListTemplate!Q74 -> 0
A75: =TypeListTemplate!A75 -> 0 | B75: =TypeListTemplate!B75 -> 0 | C75: =TypeListTemplate!C75 -> 0 | D75: =TypeListTemplate!D75 -> 0 | E75: =TypeListTemplate!E75 -> 0 | F75: =TypeListTemplate!F75 -> 0 | G75: =TypeListTemplate!G75 -> 0 | H75: =TypeListTemplate!H75 -> 0 | I75: =TypeListTemplate!I75 -> 0 | J75: =TypeListTemplate!J75 -> 0 | K75: =TypeListTemplate!K75 -> 0 | L75: =TypeListTemplate!L75 -> 0 | M75: =TypeListTemplate!M75 -> 0 | N75: =TypeListTemplate!N75 -> 0 | O75: =TypeListTemplate!O75 -> 0 | P75: =TypeListTemplate!P75 -> 0 | Q75: =TypeListTemplate!Q75 -> 0
A76: =TypeListTemplate!A76 -> 0 | B76: =TypeListTemplate!B76 -> 0 | C76: =TypeListTemplate!C76 -> 0 | D76: =TypeListTemplate!D76 -> 0 | E76: =TypeListTemplate!E76 -> 0 | F76: =TypeListTemplate!F76 -> 0 | G76: =TypeListTemplate!G76 -> 0 | H76: =TypeListTemplate!H76 -> 0 | I76: =TypeListTemplate!I76 -> 0 | J76: =TypeListTemplate!J76 -> 0 | K76: =TypeListTemplate!K76 -> 0 | L76: =TypeListTemplate!L76 -> 0 | M76: =TypeListTemplate!M76 -> 0 | N76: =TypeListTemplate!N76 -> 0 | O76: =TypeListTemplate!O76 -> 0 | P76: =TypeListTemplate!P76 -> 0 | Q76: =TypeListTemplate!Q76 -> 0
A77: =TypeListTemplate!A77 -> 0 | B77: =TypeListTemplate!B77 -> 0 | C77: =TypeListTemplate!C77 -> 0 | D77: =TypeListTemplate!D77 -> 0 | E77: =TypeListTemplate!E77 -> 0 | F77: =TypeListTemplate!F77 -> 0 | G77: =TypeListTemplate!G77 -> 0 | H77: =TypeListTemplate!H77 -> 0 | I77: =TypeListTemplate!I77 -> 0 | J77: =TypeListTemplate!J77 -> 0 | K77: =TypeListTemplate!K77 -> 0 | L77: =TypeListTemplate!L77 -> 0 | M77: =TypeListTemplate!M77 -> 0 | N77: =TypeListTemplate!N77 -> 0 | O77: =TypeListTemplate!O77 -> 0 | P77: =TypeListTemplate!P77 -> 0 | Q77: =TypeListTemplate!Q77 -> 0
A78: =TypeListTemplate!A78 -> 0 | B78: =TypeListTemplate!B78 -> 0 | C78: =TypeListTemplate!C78 -> 0 | D78: =TypeListTemplate!D78 -> 0 | E78: =TypeListTemplate!E78 -> 0 | F78: =TypeListTemplate!F78 -> 0 | G78: =TypeListTemplate!G78 -> 0 | H78: =TypeListTemplate!H78 -> 0 | I78: =TypeListTemplate!I78 -> 0 | J78: =TypeListTemplate!J78 -> 0 | K78: =TypeListTemplate!K78 -> 0 | L78: =TypeListTemplate!L78 -> 0 | M78: =TypeListTemplate!M78 -> 0 | N78: =TypeListTemplate!N78 -> 0 | O78: =TypeListTemplate!O78 -> 0 | P78: =TypeListTemplate!P78 -> 0 | Q78: =TypeListTemplate!Q78 -> 0
A79: =TypeListTemplate!A79 -> 0 | B79: =TypeListTemplate!B79 -> 0 | C79: =TypeListTemplate!C79 -> 0 | D79: =TypeListTemplate!D79 -> 0 | E79: =TypeListTemplate!E79 -> 0 | F79: =TypeListTemplate!F79 -> 0 | G79: =TypeListTemplate!G79 -> 0 | H79: =TypeListTemplate!H79 -> 0 | I79: =TypeListTemplate!I79 -> 0 | J79: =TypeListTemplate!J79 -> 0 | K79: =TypeListTemplate!K79 -> 0 | L79: =TypeListTemplate!L79 -> 0 | M79: =TypeListTemplate!M79 -> 0 | N79: =TypeListTemplate!N79 -> 0 | O79: =TypeListTemplate!O79 -> 0 | P79: =TypeListTemplate!P79 -> 0 | Q79: =TypeListTemplate!Q79 -> 0
A80: =TypeListTemplate!A80 -> 0 | B80: =TypeListTemplate!B80 -> 0 | C80: =TypeListTemplate!C80 -> 0 | D80: =TypeListTemplate!D80 -> 0 | E80: =TypeListTemplate!E80 -> 0 | F80: =TypeListTemplate!F80 -> 0 | G80: =TypeListTemplate!G80 -> 0 | H80: =TypeListTemplate!H80 -> 0 | I80: =TypeListTemplate!I80 -> 0 | J80: =TypeListTemplate!J80 -> 0 | K80: =TypeListTemplate!K80 -> 0 | L80: =TypeListTemplate!L80 -> 0 | M80: =TypeListTemplate!M80 -> 0 | N80: =TypeListTemplate!N80 -> 0 | O80: =TypeListTemplate!O80 -> 0 | P80: =TypeListTemplate!P80 -> 0 | Q80: =TypeListTemplate!Q80 -> 0
A81: =TypeListTemplate!A81 -> 0 | B81: =TypeListTemplate!B81 -> 0 | C81: =TypeListTemplate!C81 -> 0 | D81: =TypeListTemplate!D81 -> 0 | E81: =TypeListTemplate!E81 -> 0 | F81: =TypeListTemplate!F81 -> 0 | G81: =TypeListTemplate!G81 -> 0 | H81: =TypeListTemplate!H81 -> 0 | I81: =TypeListTemplate!I81 -> 0 | J81: =TypeListTemplate!J81 -> 0 | K81: =TypeListTemplate!K81 -> 0 | L81: =TypeListTemplate!L81 -> 0 | M81: =TypeListTemplate!M81 -> 0 | N81: =TypeListTemplate!N81 -> 0 | O81: =TypeListTemplate!O81 -> 0 | P81: =TypeListTemplate!P81 -> 0 | Q81: =TypeListTemplate!Q81 -> 0
A82: =TypeListTemplate!A82 -> 0 | B82: =TypeListTemplate!B82 -> 0 | C82: =TypeListTemplate!C82 -> 0 | D82: =TypeListTemplate!D82 -> 0 | E82: =TypeListTemplate!E82 -> 0 | F82: =TypeListTemplate!F82 -> 0 | G82: =TypeListTemplate!G82 -> 0 | H82: =TypeListTemplate!H82 -> 0 | I82: =TypeListTemplate!I82 -> 0 | J82: =TypeListTemplate!J82 -> 0 | K82: =TypeListTemplate!K82 -> 0 | L82: =TypeListTemplate!L82 -> 0 | M82: =TypeListTemplate!M82 -> 0 | N82: =TypeListTemplate!N82 -> 0 | O82: =TypeListTemplate!O82 -> 0 | P82: =TypeListTemplate!P82 -> 0 | Q82: =TypeListTemplate!Q82 -> 0
A83: =TypeListTemplate!A83 -> 0 | B83: =TypeListTemplate!B83 -> 0 | C83: =TypeListTemplate!C83 -> 0 | D83: =TypeListTemplate!D83 -> 0 | E83: =TypeListTemplate!E83 -> 0 | F83: =TypeListTemplate!F83 -> 0 | G83: =TypeListTemplate!G83 -> 0 | H83: =TypeListTemplate!H83 -> 0 | I83: =TypeListTemplate!I83 -> 0 | J83: =TypeListTemplate!J83 -> 0 | K83: =TypeListTemplate!K83 -> 0 | L83: =TypeListTemplate!L83 -> 0 | M83: =TypeListTemplate!M83 -> 0 | N83: =TypeListTemplate!N83 -> 0 | O83: =TypeListTemplate!O83 -> 0 | P83: =TypeListTemplate!P83 -> 0 | Q83: =TypeListTemplate!Q83 -> 0
A84: =TypeListTemplate!A84 -> 0 | B84: =TypeListTemplate!B84 -> 0 | C84: =TypeListTemplate!C84 -> 0 | D84: =TypeListTemplate!D84 -> 0 | E84: =TypeListTemplate!E84 -> 0 | F84: =TypeListTemplate!F84 -> 0 | G84: =TypeListTemplate!G84 -> 0 | H84: =TypeListTemplate!H84 -> 0 | I84: =TypeListTemplate!I84 -> 0 | J84: =TypeListTemplate!J84 -> 0 | K84: =TypeListTemplate!K84 -> 0 | L84: =TypeListTemplate!L84 -> 0 | M84: =TypeListTemplate!M84 -> 0 | N84: =TypeListTemplate!N84 -> 0 | O84: =TypeListTemplate!O84 -> 0 | P84: =TypeListTemplate!P84 -> 0 | Q84: =TypeListTemplate!Q84 -> 0
A85: =TypeListTemplate!A85 -> 0 | B85: =TypeListTemplate!B85 -> 0 | C85: =TypeListTemplate!C85 -> 0 | D85: =TypeListTemplate!D85 -> 0 | E85: =TypeListTemplate!E85 -> 0 | F85: =TypeListTemplate!F85 -> 0 | G85: =TypeListTemplate!G85 -> 0 | H85: =TypeListTemplate!H85 -> 0 | I85: =TypeListTemplate!I85 -> 0 | J85: =TypeListTemplate!J85 -> 0 | K85: =TypeListTemplate!K85 -> 0 | L85: =TypeListTemplate!L85 -> 0 | M85: =TypeListTemplate!M85 -> 0 | N85: =TypeListTemplate!N85 -> 0 | O85: =TypeListTemplate!O85 -> 0 | P85: =TypeListTemplate!P85 -> 0 | Q85: =TypeListTemplate!Q85 -> 0
A86: =TypeListTemplate!A86 -> 0 | B86: =TypeListTemplate!B86 -> 0 | C86: =TypeListTemplate!C86 -> 0 | D86: =TypeListTemplate!D86 -> 0 | E86: =TypeListTemplate!E86 -> 0 | F86: =TypeListTemplate!F86 -> 0 | G86: =TypeListTemplate!G86 -> 0 | H86: =TypeListTemplate!H86 -> 0 | I86: =TypeListTemplate!I86 -> 0 | J86: =TypeListTemplate!J86 -> 0 | K86: =TypeListTemplate!K86 -> 0 | L86: =TypeListTemplate!L86 -> 0 | M86: =TypeListTemplate!M86 -> 0 | N86: =TypeListTemplate!N86 -> 0 | O86: =TypeListTemplate!O86 -> 0 | P86: =TypeListTemplate!P86 -> 0 | Q86: =TypeListTemplate!Q86 -> 0
A87: =TypeListTemplate!A87 -> 0 | B87: =TypeListTemplate!B87 -> 0 | C87: =TypeListTemplate!C87 -> 0 | D87: =TypeListTemplate!D87 -> 0 | E87: =TypeListTemplate!E87 -> 0 | F87: =TypeListTemplate!F87 -> 0 | G87: =TypeListTemplate!G87 -> 0 | H87: =TypeListTemplate!H87 -> 0 | I87: =TypeListTemplate!I87 -> 0 | J87: =TypeListTemplate!J87 -> 0 | K87: =TypeListTemplate!K87 -> 0 | L87: =TypeListTemplate!L87 -> 0 | M87: =TypeListTemplate!M87 -> 0 | N87: =TypeListTemplate!N87 -> 0 | O87: =TypeListTemplate!O87 -> 0 | P87: =TypeListTemplate!P87 -> 0 | Q87: =TypeListTemplate!Q87 -> 0
A88: =TypeListTemplate!A88 -> 0 | B88: =TypeListTemplate!B88 -> 0 | C88: =TypeListTemplate!C88 -> 0 | D88: =TypeListTemplate!D88 -> 0 | E88: =TypeListTemplate!E88 -> 0 | F88: =TypeListTemplate!F88 -> 0 | G88: =TypeListTemplate!G88 -> 0 | H88: =TypeListTemplate!H88 -> 0 | I88: =TypeListTemplate!I88 -> 0 | J88: =TypeListTemplate!J88 -> 0 | K88: =TypeListTemplate!K88 -> 0 | L88: =TypeListTemplate!L88 -> 0 | M88: =TypeListTemplate!M88 -> 0 | N88: =TypeListTemplate!N88 -> 0 | O88: =TypeListTemplate!O88 -> 0 | P88: =TypeListTemplate!P88 -> 0 | Q88: =TypeListTemplate!Q88 -> 0
A89: =TypeListTemplate!A89 -> 0 | B89: =TypeListTemplate!B89 -> 0 | C89: =TypeListTemplate!C89 -> 0 | D89: =TypeListTemplate!D89 -> 0 | E89: =TypeListTemplate!E89 -> 0 | F89: =TypeListTemplate!F89 -> 0 | G89: =TypeListTemplate!G89 -> 0 | H89: =TypeListTemplate!H89 -> 0 | I89: =TypeListTemplate!I89 -> 0 | J89: =TypeListTemplate!J89 -> 0 | K89: =TypeListTemplate!K89 -> 0 | L89: =TypeListTemplate!L89 -> 0 | M89: =TypeListTemplate!M89 -> 0 | N89: =TypeListTemplate!N89 -> 0 | O89: =TypeListTemplate!O89 -> 0 | P89: =TypeListTemplate!P89 -> 0 | Q89: =TypeListTemplate!Q89 -> 0
A90: =TypeListTemplate!A90 -> 0 | B90: =TypeListTemplate!B90 -> 0 | C90: =TypeListTemplate!C90 -> 0 | D90: =TypeListTemplate!D90 -> 0 | E90: =TypeListTemplate!E90 -> 0 | F90: =TypeListTemplate!F90 -> 0 | G90: =TypeListTemplate!G90 -> 0 | H90: =TypeListTemplate!H90 -> 0 | I90: =TypeListTemplate!I90 -> 0 | J90: =TypeListTemplate!J90 -> 0 | K90: =TypeListTemplate!K90 -> 0 | L90: =TypeListTemplate!L90 -> 0 | M90: =TypeListTemplate!M90 -> 0 | N90: =TypeListTemplate!N90 -> 0 | O90: =TypeListTemplate!O90 -> 0 | P90: =TypeListTemplate!P90 -> 0 | Q90: =TypeListTemplate!Q90 -> 0
A91: =TypeListTemplate!A91 -> 0 | B91: =TypeListTemplate!B91 -> 0 | C91: =TypeListTemplate!C91 -> 0 | D91: =TypeListTemplate!D91 -> 0 | E91: =TypeListTemplate!E91 -> 0 | F91: =TypeListTemplate!F91 -> 0 | G91: =TypeListTemplate!G91 -> 0 | H91: =TypeListTemplate!H91 -> 0 | I91: =TypeListTemplate!I91 -> 0 | J91: =TypeListTemplate!J91 -> 0 | K91: =TypeListTemplate!K91 -> 0 | L91: =TypeListTemplate!L91 -> 0 | M91: =TypeListTemplate!M91 -> 0 | N91: =TypeListTemplate!N91 -> 0 | O91: =TypeListTemplate!O91 -> 0 | P91: =TypeListTemplate!P91 -> 0 | Q91: =TypeListTemplate!Q91 -> 0
A92: =TypeListTemplate!A92 -> 0 | B92: =TypeListTemplate!B92 -> 0 | C92: =TypeListTemplate!C92 -> 0 | D92: =TypeListTemplate!D92 -> 0 | E92: =TypeListTemplate!E92 -> 0 | F92: =TypeListTemplate!F92 -> 0 | G92: =TypeListTemplate!G92 -> 0 | H92: =TypeListTemplate!H92 -> 0 | I92: =TypeListTemplate!I92 -> 0 | J92: =TypeListTemplate!J92 -> 0 | K92: =TypeListTemplate!K92 -> 0 | L92: =TypeListTemplate!L92 -> 0 | M92: =TypeListTemplate!M92 -> 0 | N92: =TypeListTemplate!N92 -> 0 | O92: =TypeListTemplate!O92 -> 0 | P92: =TypeListTemplate!P92 -> 0 | Q92: =TypeListTemplate!Q92 -> 0
A93: =TypeListTemplate!A93 -> 0 | B93: =TypeListTemplate!B93 -> 0 | C93: =TypeListTemplate!C93 -> 0 | D93: =TypeListTemplate!D93 -> 0 | E93: =TypeListTemplate!E93 -> 0 | F93: =TypeListTemplate!F93 -> 0 | G93: =TypeListTemplate!G93 -> 0 | H93: =TypeListTemplate!H93 -> 0 | I93: =TypeListTemplate!I93 -> 0 | J93: =TypeListTemplate!J93 -> 0 | K93: =TypeListTemplate!K93 -> 0 | L93: =TypeListTemplate!L93 -> 0 | M93: =TypeListTemplate!M93 -> 0 | N93: =TypeListTemplate!N93 -> 0 | O93: =TypeListTemplate!O93 -> 0 | P93: =TypeListTemplate!P93 -> 0 | Q93: =TypeListTemplate!Q93 -> 0
A94: =TypeListTemplate!A94 -> 0 | B94: =TypeListTemplate!B94 -> 0 | C94: =TypeListTemplate!C94 -> 0 | D94: =TypeListTemplate!D94 -> 0 | E94: =TypeListTemplate!E94 -> 0 | F94: =TypeListTemplate!F94 -> 0 | G94: =TypeListTemplate!G94 -> 0 | H94: =TypeListTemplate!H94 -> 0 | I94: =TypeListTemplate!I94 -> 0 | J94: =TypeListTemplate!J94 -> 0 | K94: =TypeListTemplate!K94 -> 0 | L94: =TypeListTemplate!L94 -> 0 | M94: =TypeListTemplate!M94 -> 0 | N94: =TypeListTemplate!N94 -> 0 | O94: =TypeListTemplate!O94 -> 0 | P94: =TypeListTemplate!P94 -> 0 | Q94: =TypeListTemplate!Q94 -> 0
A95: =TypeListTemplate!A95 -> 0 | B95: =TypeListTemplate!B95 -> 0 | C95: =TypeListTemplate!C95 -> 0 | D95: =TypeListTemplate!D95 -> 0 | E95: =TypeListTemplate!E95 -> 0 | F95: =TypeListTemplate!F95 -> 0 | G95: =TypeListTemplate!G95 -> 0 | H95: =TypeListTemplate!H95 -> 0 | I95: =TypeListTemplate!I95 -> 0 | J95: =TypeListTemplate!J95 -> 0 | K95: =TypeListTemplate!K95 -> 0 | L95: =TypeListTemplate!L95 -> 0 | M95: =TypeListTemplate!M95 -> 0 | N95: =TypeListTemplate!N95 -> 0 | O95: =TypeListTemplate!O95 -> 0 | P95: =TypeListTemplate!P95 -> 0 | Q95: =TypeListTemplate!Q95 -> 0

Sheet DriveSel (hidden)
B1: Motor and supply voltage | G1: Drive Product series | J1: non-US
D2: Column Ordinate | G2: 0 | H2: - Pick the preferred product series! -> | J2: =IF(USUnits,FALSE,TRUE) -> TRUE
B3: 0 | C3: - Select -> | D3: 0 | G3: 1 | H3: ACS55 | I3: =H3 -> ACS55 | J3: ='ACS55'!A$2 -> 0
B4: =B3+1 -> 1 | C4: 115 V (1-ph) | D4: =TypeListTemplate!D7 -> 2 | E4: =TypeListTemplate!D4 -> 115 V 1-ph | G4: 2 | H4: ACS150 | I4: =H4 -> ACS150 | J4: ='ACS150'!A$2 -> 0
B5: =B4+1 -> 2 | C5: 230 V (1-ph) | D5: =TypeListTemplate!F7 -> 4 | E5: =TypeListTemplate!F4 -> 200/208/230/240 V 1-ph | G5: 3 | H5: ACS310 | I5: ACS310 | J5: ='ACS310'!A$2 -> 0
B6: 3 | C6: 230 V (3-ph) | D6: =TypeListTemplate!H7 -> 6 | E6: =TypeListTemplate!H4 -> 200/208/230/240 V 3-ph | G6: 4 | H6: ACS355 | I6: =H6 -> ACS355 | J6: ='ACS355'!A$2 -> 0
B7: 4 | C7: 400 V | D7: =TypeListTemplate!J7 -> 8 | E7: =TypeListTemplate!J4 -> 380/400/415 V | G7: 5 | H7: ACS550 | I7: =H7 -> ACS550 | J7: ='ACS550'!A$2 -> ACS550-01-246A-4
B8: 5 | C8: 460 V | D8: =TypeListTemplate!L7 -> 10 | E8: =TypeListTemplate!L4 -> 440/460/480 V | G8: 6 | H8: ACH550 | I8: StdDrives | J8: =StdDrives!A$2 -> ACH550-01-246A-4
B9: 6 | C9: 500 V | D9: =TypeListTemplate!N7 -> 12 | E9: =TypeListTemplate!N4 -> 500 V | G9: 7 | H9: ACS580 | I9: ACS580 | J9: ='ACS580'!A2 -> ACS580-01-246A-4
B10: 7 | C10: 690 V | D10: =TypeListTemplate!P7 -> 14 | E10: =TypeListTemplate!P4 -> 525/550/575/600/660/690 V | G10: 8 | H10: ACS800 | I10: =H10 -> ACS800 | J10: ='ACS800'!A2 -> ACS800-01-0165-3
B11: 8 | C11: 2,3 kV | D11: =TypeListTemplate!R7 -> 0 | E11: =TypeListTemplate!R4 -> 0 | G11: 9 | H11: ACQ810 | I11: ACQ810 | J11: ='ACQ810'!A$2 -> ACQ810-04-240A-4
B12: 9 | C12: 3,3 kV | D12: =TypeListTemplate!T7 -> 0 | E12: =TypeListTemplate!T4 -> 0 | G12: 10 | H12: ACS880 | I12: ACS880 | J12: ='ACS880'!A$2 -> ACS880-01-246A-3
B13: 10 | C13: 4,16 kV | D13: =TypeListTemplate!V7 -> 0 | E13: =TypeListTemplate!V4 -> 0
B14: 11 | C14: 6,6 kV | D14: =TypeListTemplate!X7 -> 0 | E14: =TypeListTemplate!X4 -> 0
I15: Uncensored: | J15: =VLOOKUP($G$16,G3:J12,4,FALSE) -> ACS550-01-246A-4
G16: 5 | H16: =VLOOKUP($G16,G3:H12,2,FALSE) -> ACS550 | I16: =VLOOKUP($G16,G3:I12,3,FALSE) -> ACS550 | J16: =IF(ISERROR(J15),"0",J15) -> ACS550-01-246A-4
J17: =IF(G16=0,"",IF(J16=0,"No suitable type found.",J16)) -> ACS550-01-246A-4
B18: 4 | C18: =VLOOKUP(B18,B3:C14,2) -> 400 V | D18: =VLOOKUP(B18,B3:D14,3,FALSE) -> 8 | E18: =VLOOKUP(B18,B3:E14,4) -> 380/400/415 V
D20: Rtd Mot P | E20: =IF(PumpCalculation,PumpRtdMotPower,FanRtdMotPower) -> 132 | F20: kW
A21: PumpCalculation ? | C21: TRUE | E21: 132 | F21: kW
A22: FanCalculation ? | C22: =IF(PumpCalculation,FALSE,TRUE) -> FALSE | E22: =IF(USUnits,0.7457*#REF!,#REF!) ->  | F22: kW

Sheet TypeListTemplate (hidden)
D1: Voltage range 1 | F1: Voltage range 2 (1-ph) | H1: Voltage range 2 | J1: Voltage range 3 | L1: Voltage range 4.6 | N1: Voltage range 5 | P1: Voltage range 7/6
C2: non-US (50Hz) | D2: 115 V (1-ph) | F2: 230 V (1-ph) | H2: 230 V (3-ph) | J2: 400 V | L2: 460 V | N2: 500 V | P2: 690 V
A3: Col.ordinal | B3: Col.ordinal
C4: Alternatives: | D4: 115 V 1-ph | F4: 200/208/230/240 V 1-ph | H4: 200/208/230/240 V 3-ph | J4: 380/400/415 V | L4: 440/460/480 V | N4: 500 V | P4: 525/550/575/600/660/690 V
A5: Motor Power | B5: Motor | D5: Drive type | F5: Drive type | H5: Drive type | J5: Drive type | L5: Drive type | N5: Drive type | P5: Drive type
A6: Hp | B6: power kW
B7: Column Ordinal -> | C7: 1 | D7: =C7+1 -> 2 | E7: =D7+1 -> 3 | F7: 4 | G7: 5 | H7: 6 | I7: 7 | J7: 8 | K7: 9 | L7: 10 | M7: 11 | N7: 12 | O7: 13 | P7: 14 | Q7: 15
A8: =B8/0.7457 -> 0 | B8: 0 | C8: 0
A9: 0.07375620223 | B9: 0.055 | C9: =B8+0.01 -> 0.01
A10: 0.1206919673 | B10: 0.09 | C10: 0.065
A11: 0.160922623 | B11: 0.12 | C11: 0.1
A12: 0.2413839346 | B12: 0.18 | C12: 0.13
A13: 0.4961780877 | B13: 0.37 | C13: 0.19
A14: 0.7375620223 | B14: 0.55 | C14: 0.38
A15: 1.005766394 | B15: 0.75 | C15: 0.56
A16: 1.475124045 | B16: 1.1 | C16: 0.76
A17: 2.011532788 | B17: 1.5 | C17: 1.11
A18: 2.950248089 | B18: 2.2 | C18: 1.51
A19: 4.023065576 | B19: 3 | C19: 2.21
A20: 5 | B20: =0.7457*A20 -> 3.7285 | C20: 3.01
A21: =B21/0.7457 -> 5.364087435 | B21: 4 | C21: 3.7385
A22: 7.375620223 | B22: 5.5 | C22: 4.01
A23: 10.05766394 | B23: 7.5 | C23: 5.51
A24: 14.75124045 | B24: 11 | C24: 7.51
A25: 20.11532788 | B25: 15 | C25: 11.01
A26: 24.80890439 | B26: 18.5 | C26: 15.01
A27: 29.50248089 | B27: 22 | C27: 18.51
A28: 40.23065576 | B28: 30 | C28: 22.01
A29: 49.61780877 | B29: 37 | C29: 30.01
A30: 60.34598364 | B30: 45 | C30: 37.01
A31: 73.75620223 | B31: 55 | C31: 45.01
A32: 100.5766394 | B32: 75 | C32: 55.01
A33: 120.6919673 | B33: 90 | C33: 75.01
A34: 147.5124045 | B34: 110 | C34: 90.01
A35: 177.0148853 | B35: 132 | C35: 110.01
A36: 200 | B36: =0.7457*A36 -> 149.14 | C36: 132.01
A37: =B37/0.7457 -> 214.5634974 | B37: 160 | C37: 149.15
A38: 250 | B38: =A38*0.7457 -> 186.425 | C38: 160.01
A39: =B39/0.7457 -> 268.2043717 | B39: 200 | C39: 186.435
A40: 300 | B40: =A40*0.7457 -> 223.71 | C40: 200.01
A41: =B41/0.7457 -> 335.2554647 | B41: 250 | C41: 223.72
A42: 400 | B42: =A42*0.7457 -> 298.28 | C42: 250.01
A43: =B43/0.7457 -> 422.4218855 | B43: 315 | C43: 298.29
A44: 476.0627598 | B44: 355 | C44: 315.01
A45: 536.4087435 | B45: 400 | C45: 355.01
A46: 603.4598364 | B46: 450 | C46: =B45+0.01 -> 400.01
A47: 670.5109293 | B47: 500 | C47: 450.01
A48: 750.9722408 | B48: 560 | C48: 500.01
A49: 844.843771 | B49: 630 | C49: 560.01
A50: 952.1255196 | B50: 710 | C50: 630.01
A51: 1072.817487 | B51: 800 | C51: 710.01
A52: 1206.919673 | B52: 900 | C52: 800.01
A53: 1341.021859 | B53: 1000 | C53: 900.01
A54: 1501.944482 | B54: 1120 | C54: 1000.01
A55: 1676.277323 | B55: 1250 | C55: 1120.01
A56: 1877.430602 | B56: 1400 | C56: 1250.01
A57: 2145.634974 | B57: 1600 | C57: 1400.01
A58: 2346.788253 | B58: 1750 | C58: 1600.01
A59: 2413.839346 | B59: 1800 | C59: =B58+0.01 -> 1750.01
A60: 2682.043717 | B60: 2000 | C60: 1800.01
A61: 2950.248089 | B61: 2200 | C61: 2000.01
A62: 3017.299182 | B62: 2250 | C62: 2200.01
A63: 3084.350275 | B63: 2300 | C63: 2250.01
A64: 3352.554647 | B64: 2500 | C64: 2300.01
A65: 3754.861204 | B65: 2800 | C65: 2500.01
A66: 4224.218855 | B66: 3150 | C66: 2800.01
A67: 4760.627598 | B67: 3550 | C67: 3150.01
A68: 5364.087435 | B68: 4000 | C68: 3550.01
A69: 6034.598364 | B69: 4500 | C69: 4000.01
A70: 6705.109293 | B70: 5000 | C70: 4500.01
B71: 999999999 | C71: 5000.01
D73: Drive type | F73: Drive type | H73: Drive type | J73: Drive type | L73: Drive type | N73: Drive type | P73: Drive type
D74: =D2 -> 115 V (1-ph) | F74: =F2 -> 230 V (1-ph) | H74: =H2 -> 230 V (3-ph) | J74: =J2 -> 400 V | L74: =L2 -> 460 V | N74: =N2 -> 500 V | P74: =P2 -> 690 V

Sheet ACS55 (hidden)
A1: Typecode | B1: Prod.class | D1: Voltage range 1 | F1: Voltage range 2 (1-ph) | H1: Voltage range 2 | J1: Voltage range 3 | L1: Voltage range 4.6 | N1: Voltage range 5 | P1: Voltage range 7/6
A2: =VLOOKUP(DriveSel!E20,C8:Y71,DriveSel!D18) -> 0 | B2: =VLOOKUP(#REF!,C8:X70,7) ->  | C2: non-US (50Hz) | D2: 115 V (1-ph) | F2: 230 V (1-ph) | H2: 230 V (3-ph) | J2: 400 V | L2: 460 V | N2: 500 V | P2: 690 V
A3: Col.ordinal | B3: Col.ordinal
C4: Alternatives: | D4: 115 V 1-ph | F4: 200/208/230/240 V 1-ph | H4: 200/208/230/240 V 3-ph | J4: 380/400/415 V | L4: 440/460/480 V | N4: 500 V | P4: 525/550/575/600/660/690 V
A5: =TypeListTemplate!A5 -> Motor Power | B5: =TypeListTemplate!B5 -> Motor | C5: =TypeListTemplate!C5 -> 0 | D5: =TypeListTemplate!D5 -> Drive type | E5: =TypeListTemplate!E5 -> 0 | F5: =TypeListTemplate!F5 -> Drive type | G5: =TypeListTemplate!G5 -> 0 | H5: =TypeListTemplate!H5 -> Drive type | I5: =TypeListTemplate!I5 -> 0 | J5: =TypeListTemplate!J5 -> Drive type | K5: =TypeListTemplate!K5 -> 0 | L5: =TypeListTemplate!L5 -> Drive type | M5: =TypeListTemplate!M5 -> 0 | N5: =TypeListTemplate!N5 -> Drive type | O5: =TypeListTemplate!O5 -> 0 | P5: =TypeListTemplate!P5 -> Drive type | Q5: =TypeListTemplate!Q5 -> 0
A6: =TypeListTemplate!A6 -> Hp | B6: =TypeListTemplate!B6 -> power kW
A7: =TypeListTemplate!A7 -> 0 | B7: =TypeListTemplate!B7 -> Column Ordinal -> | C7: =TypeListTemplate!C7 -> 1 | D7: =TypeListTemplate!D7 -> 2 | E7: =TypeListTemplate!E7 -> 3 | F7: =TypeListTemplate!F7 -> 4 | G7: =TypeListTemplate!G7 -> 5 | H7: =TypeListTemplate!H7 -> 6 | I7: =TypeListTemplate!I7 -> 7 | J7: =TypeListTemplate!J7 -> 8 | K7: =TypeListTemplate!K7 -> 9 | L7: =TypeListTemplate!L7 -> 10 | M7: =TypeListTemplate!M7 -> 11 | N7: =TypeListTemplate!N7 -> 12 | O7: =TypeListTemplate!O7 -> 13 | P7: =TypeListTemplate!P7 -> 14 | Q7: =TypeListTemplate!Q7 -> 15
A8: =TypeListTemplate!A8 -> 0 | B8: =TypeListTemplate!B8 -> 0 | C8: =TypeListTemplate!C8 -> 0
A9: =TypeListTemplate!A9 -> 0.07375620223 | B9: =TypeListTemplate!B9 -> 0.055 | C9: =TypeListTemplate!C9 -> 0.01
A10: =TypeListTemplate!A10 -> 0.1206919673 | B10: =TypeListTemplate!B10 -> 0.09 | C10: =TypeListTemplate!C10 -> 0.065 | D10: ACS55-01E-01A4-1
A11: =TypeListTemplate!A11 -> 0.160922623 | B11: =TypeListTemplate!B11 -> 0.12 | C11: =TypeListTemplate!C11 -> 0.1 | D11: ACS55-01E-01A4-1 | F11: ACS55-01E-01A4-2
A12: =TypeListTemplate!A12 -> 0.2413839346 | B12: =TypeListTemplate!B12 -> 0.18 | C12: =TypeListTemplate!C12 -> 0.13 | D12: ACS55-01E-01A4-1 | F12: ACS55-01E-01A4-2
A13: =TypeListTemplate!A13 -> 0.4961780877 | B13: =TypeListTemplate!B13 -> 0.37 | C13: =TypeListTemplate!C13 -> 0.19 | D13: ACS55-01E-02A2-1 | F13: ACS55-01E-02A2-2
A14: =TypeListTemplate!A14 -> 0.7375620223 | B14: =TypeListTemplate!B14 -> 0.55 | C14: =TypeListTemplate!C14 -> 0.38 | F14: ACS55-01E-04A3-2
A15: =TypeListTemplate!A15 -> 1.005766394 | B15: =TypeListTemplate!B15 -> 0.75 | C15: =TypeListTemplate!C15 -> 0.56 | F15: ACS55-01E-04A3-2
A16: =TypeListTemplate!A16 -> 1.475124045 | B16: =TypeListTemplate!B16 -> 1.1 | C16: =TypeListTemplate!C16 -> 0.76 | F16: ACS55-01E-07A6-2
A17: =TypeListTemplate!A17 -> 2.011532788 | B17: =TypeListTemplate!B17 -> 1.5 | C17: =TypeListTemplate!C17 -> 1.11 | F17: ACS55-01E-07A6-2
A18: =TypeListTemplate!A18 -> 2.950248089 | B18: =TypeListTemplate!B18 -> 2.2 | C18: =TypeListTemplate!C18 -> 1.51 | F18: ACS55-01E-09A8-2
A19: =TypeListTemplate!A19 -> 4.023065576 | B19: =TypeListTemplate!B19 -> 3 | C19: =TypeListTemplate!C19 -> 2.21
A20: =TypeListTemplate!A20 -> 5 | B20: =TypeListTemplate!B20 -> 3.7285 | C20: =TypeListTemplate!C20 -> 3.01
A21: =TypeListTemplate!A21 -> 5.364087435 | B21: =TypeListTemplate!B21 -> 4 | C21: =TypeListTemplate!C21 -> 3.7385
A22: =TypeListTemplate!A22 -> 7.375620223 | B22: =TypeListTemplate!B22 -> 5.5 | C22: =TypeListTemplate!C22 -> 4.01
A23: =TypeListTemplate!A23 -> 10.05766394 | B23: =TypeListTemplate!B23 -> 7.5 | C23: =TypeListTemplate!C23 -> 5.51
A24: =TypeListTemplate!A24 -> 14.75124045 | B24: =TypeListTemplate!B24 -> 11 | C24: =TypeListTemplate!C24 -> 7.51
A25: =TypeListTemplate!A25 -> 20.11532788 | B25: =TypeListTemplate!B25 -> 15 | C25: =TypeListTemplate!C25 -> 11.01
A26: =TypeListTemplate!A26 -> 24.80890439 | B26: =TypeListTemplate!B26 -> 18.5 | C26: =TypeListTemplate!C26 -> 15.01
A27: =TypeListTemplate!A27 -> 29.50248089 | B27: =TypeListTemplate!B27 -> 22 | C27: =TypeListTemplate!C27 -> 18.51
A28: =TypeListTemplate!A28 -> 40.23065576 | B28: =TypeListTemplate!B28 -> 30 | C28: =TypeListTemplate!C28 -> 22.01
A29: =TypeListTemplate!A29 -> 49.61780877 | B29: =TypeListTemplate!B29 -> 37 | C29: =TypeListTemplate!C29 -> 30.01
A30: =TypeListTemplate!A30 -> 60.34598364 | B30: =TypeListTemplate!B30 -> 45 | C30: =TypeListTemplate!C30 -> 37.01
A31: =TypeListTemplate!A31 -> 73.75620223 | B31: =TypeListTemplate!B31 -> 55 | C31: =TypeListTemplate!C31 -> 45.01
A32: =TypeListTemplate!A32 -> 100.5766394 | B32: =TypeListTemplate!B32 -> 75 | C32: =TypeListTemplate!C32 -> 55.01
A33: =TypeListTemplate!A33 -> 120.6919673 | B33: =TypeListTemplate!B33 -> 90 | C33: =TypeListTemplate!C33 -> 75.01
A34: =TypeListTemplate!A34 -> 147.5124045 | B34: =TypeListTemplate!B34 -> 110 | C34: =TypeListTemplate!C34 -> 90.01
A35: =TypeListTemplate!A35 -> 177.0148853 | B35: =TypeListTemplate!B35 -> 132 | C35: =TypeListTemplate!C35 -> 110.01
A36: =TypeListTemplate!A36 -> 200 | B36: =TypeListTemplate!B36 -> 149.14 | C36: =TypeListTemplate!C36 -> 132.01
A37: =TypeListTemplate!A37 -> 214.5634974 | B37: =TypeListTemplate!B37 -> 160 | C37: =TypeListTemplate!C37 -> 149.15
A38: =TypeListTemplate!A38 -> 250 | B38: =TypeListTemplate!B38 -> 186.425 | C38: =TypeListTemplate!C38 -> 160.01
A39: =TypeListTemplate!A39 -> 268.2043717 | B39: =TypeListTemplate!B39 -> 200 | C39: =TypeListTemplate!C39 -> 186.435
A40: =TypeListTemplate!A40 -> 300 | B40: =TypeListTemplate!B40 -> 223.71 | C40: =TypeListTemplate!C40 -> 200.01
A41: =TypeListTemplate!A41 -> 335.2554647 | B41: =TypeListTemplate!B41 -> 250 | C41: =TypeListTemplate!C41 -> 223.72
A42: =TypeListTemplate!A42 -> 400 | B42: =TypeListTemplate!B42 -> 298.28 | C42: =TypeListTemplate!C42 -> 250.01
A43: =TypeListTemplate!A43 -> 422.4218855 | B43: =TypeListTemplate!B43 -> 315 | C43: =TypeListTemplate!C43 -> 298.29
A44: =TypeListTemplate!A44 -> 476.0627598 | B44: =TypeListTemplate!B44 -> 355 | C44: =TypeListTemplate!C44 -> 315.01
A45: =TypeListTemplate!A45 -> 536.4087435 | B45: =TypeListTemplate!B45 -> 400 | C45: =TypeListTemplate!C45 -> 355.01
A46: =TypeListTemplate!A46 -> 603.4598364 | B46: =TypeListTemplate!B46 -> 450 | C46: =TypeListTemplate!C46 -> 400.01
A47: =TypeListTemplate!A47 -> 670.5109293 | B47: =TypeListTemplate!B47 -> 500 | C47: =TypeListTemplate!C47 -> 450.01
A48: =TypeListTemplate!A48 -> 750.9722408 | B48: =TypeListTemplate!B48 -> 560 | C48: =TypeListTemplate!C48 -> 500.01
A49: =TypeListTemplate!A49 -> 844.843771 | B49: =TypeListTemplate!B49 -> 630 | C49: =TypeListTemplate!C49 -> 560.01
A50: =TypeListTemplate!A50 -> 952.1255196 | B50: =TypeListTemplate!B50 -> 710 | C50: =TypeListTemplate!C50 -> 630.01
A51: =TypeListTemplate!A51 -> 1072.817487 | B51: =TypeListTemplate!B51 -> 800 | C51: =TypeListTemplate!C51 -> 710.01
A52: =TypeListTemplate!A52 -> 1206.919673 | B52: =TypeListTemplate!B52 -> 900 | C52: =TypeListTemplate!C52 -> 800.01
A53: =TypeListTemplate!A53 -> 1341.021859 | B53: =TypeListTemplate!B53 -> 1000 | C53: =TypeListTemplate!C53 -> 900.01
A54: =TypeListTemplate!A54 -> 1501.944482 | B54: =TypeListTemplate!B54 -> 1120 | C54: =TypeListTemplate!C54 -> 1000.01
A55: =TypeListTemplate!A55 -> 1676.277323 | B55: =TypeListTemplate!B55 -> 1250 | C55: =TypeListTemplate!C55 -> 1120.01
A56: =TypeListTemplate!A56 -> 1877.430602 | B56: =TypeListTemplate!B56 -> 1400 | C56: =TypeListTemplate!C56 -> 1250.01
A57: =TypeListTemplate!A57 -> 2145.634974 | B57: =TypeListTemplate!B57 -> 1600 | C57: =TypeListTemplate!C57 -> 1400.01
A58: =TypeListTemplate!A58 -> 2346.788253 | B58: =TypeListTemplate!B58 -> 1750 | C58: =TypeListTemplate!C58 -> 1600.01
A59: =TypeListTemplate!A59 -> 2413.839346 | B59: =TypeListTemplate!B59 -> 1800 | C59: =TypeListTemplate!C59 -> 1750.01
A60: =TypeListTemplate!A60 -> 2682.043717 | B60: =TypeListTemplate!B60 -> 2000 | C60: =TypeListTemplate!C60 -> 1800.01
A61: =TypeListTemplate!A61 -> 2950.248089 | B61: =TypeListTemplate!B61 -> 2200 | C61: =TypeListTemplate!C61 -> 2000.01
A62: =TypeListTemplate!A62 -> 3017.299182 | B62: =TypeListTemplate!B62 -> 2250 | C62: =TypeListTemplate!C62 -> 2200.01
A63: =TypeListTemplate!A63 -> 3084.350275 | B63: =TypeListTemplate!B63 -> 2300 | C63: =TypeListTemplate!C63 -> 2250.01
A64: =TypeListTemplate!A64 -> 3352.554647 | B64: =TypeListTemplate!B64 -> 2500 | C64: =TypeListTemplate!C64 -> 2300.01
A65: =TypeListTemplate!A65 -> 3754.861204 | B65: =TypeListTemplate!B65 -> 2800 | C65: =TypeListTemplate!C65 -> 2500.01
A66: =TypeListTemplate!A66 -> 4224.218855 | B66: =TypeListTemplate!B66 -> 3150 | C66: =TypeListTemplate!C66 -> 2800.01
A67: =TypeListTemplate!A67 -> 4760.627598 | B67: =TypeListTemplate!B67 -> 3550 | C67: =TypeListTemplate!C67 -> 3150.01
A68: =TypeListTemplate!A68 -> 5364.087435 | B68: =TypeListTemplate!B68 -> 4000 | C68: =TypeListTemplate!C68 -> 3550.01
A69: =TypeListTemplate!A69 -> 6034.598364 | B69: =TypeListTemplate!B69 -> 4500 | C69: =TypeListTemplate!C69 -> 4000.01
A70: =TypeListTemplate!A70 -> 6705.109293 | B70: =TypeListTemplate!B70 -> 5000 | C70: =TypeListTemplate!C70 -> 4500.01
A71: =TypeListTemplate!A71 -> 0 | B71: =TypeListTemplate!B71 -> 999999999 | C71: =TypeListTemplate!C71 -> 5000.01
A72: =TypeListTemplate!A72 -> 0 | B72: =TypeListTemplate!B72 -> 0 | C72: =TypeListTemplate!C72 -> 0
A73: =TypeListTemplate!A73 -> 0 | B73: =TypeListTemplate!B73 -> 0 | C73: =TypeListTemplate!C73 -> 0 | D73: =TypeListTemplate!D73 -> Drive type | E73: =TypeListTemplate!E73 -> 0 | F73: =TypeListTemplate!F73 -> Drive type | G73: =TypeListTemplate!G73 -> 0 | H73: =TypeListTemplate!H73 -> Drive type | I73: =TypeListTemplate!I73 -> 0 | J73: =TypeListTemplate!J73 -> Drive type | K73: =TypeListTemplate!K73 -> 0 | L73: =TypeListTemplate!L73 -> Drive type | M73: =TypeListTemplate!M73 -> 0 | N73: =TypeListTemplate!N73 -> Drive type | O73: =TypeListTemplate!O73 -> 0 | P73: =TypeListTemplate!P73 -> Drive type | Q73: =TypeListTemplate!Q73 -> 0
A74: =TypeListTemplate!A74 -> 0 | B74: =TypeListTemplate!B74 -> 0 | C74: =TypeListTemplate!C74 -> 0 | D74: =TypeListTemplate!D74 -> 115 V (1-ph) | E74: =TypeListTemplate!E74 -> 0 | F74: =TypeListTemplate!F74 -> 230 V (1-ph) | G74: =TypeListTemplate!G74 -> 0 | H74: =TypeListTemplate!H74 -> 230 V (3-ph) | I74: =TypeListTemplate!I74 -> 0 | J74: =TypeListTemplate!J74 -> 400 V | K74: =TypeListTemplate!K74 -> 0 | L74: =TypeListTemplate!L74 -> 460 V | M74: =TypeListTemplate!M74 -> 0 | N74: =TypeListTemplate!N74 -> 500 V | O74: =TypeListTemplate!O74 -> 0 | P74: =TypeListTemplate!P74 -> 690 V | Q74: =TypeListTemplate!Q74 -> 0
A75: =TypeListTemplate!A75 -> 0 | B75: =TypeListTemplate!B75 -> 0 | C75: =TypeListTemplate!C75 -> 0 | D75: =TypeListTemplate!D75 -> 0 | E75: =TypeListTemplate!E75 -> 0 | F75: =TypeListTemplate!F75 -> 0 | G75: =TypeListTemplate!G75 -> 0 | H75: =TypeListTemplate!H75 -> 0 | I75: =TypeListTemplate!I75 -> 0 | J75: =TypeListTemplate!J75 -> 0 | K75: =TypeListTemplate!K75 -> 0 | L75: =TypeListTemplate!L75 -> 0 | M75: =TypeListTemplate!M75 -> 0 | N75: =TypeListTemplate!N75 -> 0 | O75: =TypeListTemplate!O75 -> 0 | P75: =TypeListTemplate!P75 -> 0 | Q75: =TypeListTemplate!Q75 -> 0
A76: =TypeListTemplate!A76 -> 0 | B76: =TypeListTemplate!B76 -> 0 | C76: =TypeListTemplate!C76 -> 0 | D76: =TypeListTemplate!D76 -> 0 | E76: =TypeListTemplate!E76 -> 0 | F76: =TypeListTemplate!F76 -> 0 | G76: =TypeListTemplate!G76 -> 0 | H76: =TypeListTemplate!H76 -> 0 | I76: =TypeListTemplate!I76 -> 0 | J76: =TypeListTemplate!J76 -> 0 | K76: =TypeListTemplate!K76 -> 0 | L76: =TypeListTemplate!L76 -> 0 | M76: =TypeListTemplate!M76 -> 0 | N76: =TypeListTemplate!N76 -> 0 | O76: =TypeListTemplate!O76 -> 0 | P76: =TypeListTemplate!P76 -> 0 | Q76: =TypeListTemplate!Q76 -> 0
A77: =TypeListTemplate!A77 -> 0 | B77: =TypeListTemplate!B77 -> 0 | C77: =TypeListTemplate!C77 -> 0 | D77: =TypeListTemplate!D77 -> 0 | E77: =TypeListTemplate!E77 -> 0 | F77: =TypeListTemplate!F77 -> 0 | G77: =TypeListTemplate!G77 -> 0 | H77: =TypeListTemplate!H77 -> 0 | I77: =TypeListTemplate!I77 -> 0 | J77: =TypeListTemplate!J77 -> 0 | K77: =TypeListTemplate!K77 -> 0 | L77: =TypeListTemplate!L77 -> 0 | M77: =TypeListTemplate!M77 -> 0 | N77: =TypeListTemplate!N77 -> 0 | O77: =TypeListTemplate!O77 -> 0 | P77: =TypeListTemplate!P77 -> 0 | Q77: =TypeListTemplate!Q77 -> 0
A78: =TypeListTemplate!A78 -> 0 | B78: =TypeListTemplate!B78 -> 0 | C78: =TypeListTemplate!C78 -> 0 | D78: =TypeListTemplate!D78 -> 0 | E78: =TypeListTemplate!E78 -> 0 | F78: =TypeListTemplate!F78 -> 0 | G78: =TypeListTemplate!G78 -> 0 | H78: =TypeListTemplate!H78 -> 0 | I78: =TypeListTemplate!I78 -> 0 | J78: =TypeListTemplate!J78 -> 0 | K78: =TypeListTemplate!K78 -> 0 | L78: =TypeListTemplate!L78 -> 0 | M78: =TypeListTemplate!M78 -> 0 | N78: =TypeListTemplate!N78 -> 0 | O78: =TypeListTemplate!O78 -> 0 | P78: =TypeListTemplate!P78 -> 0 | Q78: =TypeListTemplate!Q78 -> 0
A79: =TypeListTemplate!A79 -> 0 | B79: =TypeListTemplate!B79 -> 0 | C79: =TypeListTemplate!C79 -> 0 | D79: =TypeListTemplate!D79 -> 0 | E79: =TypeListTemplate!E79 -> 0 | F79: =TypeListTemplate!F79 -> 0 | G79: =TypeListTemplate!G79 -> 0 | H79: =TypeListTemplate!H79 -> 0 | I79: =TypeListTemplate!I79 -> 0 | J79: =TypeListTemplate!J79 -> 0 | K79: =TypeListTemplate!K79 -> 0 | L79: =TypeListTemplate!L79 -> 0 | M79: =TypeListTemplate!M79 -> 0 | N79: =TypeListTemplate!N79 -> 0 | O79: =TypeListTemplate!O79 -> 0 | P79: =TypeListTemplate!P79 -> 0 | Q79: =TypeListTemplate!Q79 -> 0
A80: =TypeListTemplate!A80 -> 0 | B80: =TypeListTemplate!B80 -> 0 | C80: =TypeListTemplate!C80 -> 0 | D80: =TypeListTemplate!D80 -> 0 | E80: =TypeListTemplate!E80 -> 0 | F80: =TypeListTemplate!F80 -> 0 | G80: =TypeListTemplate!G80 -> 0 | H80: =TypeListTemplate!H80 -> 0 | I80: =TypeListTemplate!I80 -> 0 | J80: =TypeListTemplate!J80 -> 0 | K80: =TypeListTemplate!K80 -> 0 | L80: =TypeListTemplate!L80 -> 0 | M80: =TypeListTemplate!M80 -> 0 | N80: =TypeListTemplate!N80 -> 0 | O80: =TypeListTemplate!O80 -> 0 | P80: =TypeListTemplate!P80 -> 0 | Q80: =TypeListTemplate!Q80 -> 0
A81: =TypeListTemplate!A81 -> 0 | B81: =TypeListTemplate!B81 -> 0 | C81: =TypeListTemplate!C81 -> 0 | D81: =TypeListTemplate!D81 -> 0 | E81: =TypeListTemplate!E81 -> 0 | F81: =TypeListTemplate!F81 -> 0 | G81: =TypeListTemplate!G81 -> 0 | H81: =TypeListTemplate!H81 -> 0 | I81: =TypeListTemplate!I81 -> 0 | J81: =TypeListTemplate!J81 -> 0 | K81: =TypeListTemplate!K81 -> 0 | L81: =TypeListTemplate!L81 -> 0 | M81: =TypeListTemplate!M81 -> 0 | N81: =TypeListTemplate!N81 -> 0 | O81: =TypeListTemplate!O81 -> 0 | P81: =TypeListTemplate!P81 -> 0 | Q81: =TypeListTemplate!Q81 -> 0
A82: =TypeListTemplate!A82 -> 0 | B82: =TypeListTemplate!B82 -> 0 | C82: =TypeListTemplate!C82 -> 0 | D82: =TypeListTemplate!D82 -> 0 | E82: =TypeListTemplate!E82 -> 0 | F82: =TypeListTemplate!F82 -> 0 | G82: =TypeListTemplate!G82 -> 0 | H82: =TypeListTemplate!H82 -> 0 | I82: =TypeListTemplate!I82 -> 0 | J82: =TypeListTemplate!J82 -> 0 | K82: =TypeListTemplate!K82 -> 0 | L82: =TypeListTemplate!L82 -> 0 | M82: =TypeListTemplate!M82 -> 0 | N82: =TypeListTemplate!N82 -> 0 | O82: =TypeListTemplate!O82 -> 0 | P82: =TypeListTemplate!P82 -> 0 | Q82: =TypeListTemplate!Q82 -> 0
A83: =TypeListTemplate!A83 -> 0 | B83: =TypeListTemplate!B83 -> 0 | C83: =TypeListTemplate!C83 -> 0 | D83: =TypeListTemplate!D83 -> 0 | E83: =TypeListTemplate!E83 -> 0 | F83: =TypeListTemplate!F83 -> 0 | G83: =TypeListTemplate!G83 -> 0 | H83: =TypeListTemplate!H83 -> 0 | I83: =TypeListTemplate!I83 -> 0 | J83: =TypeListTemplate!J83 -> 0 | K83: =TypeListTemplate!K83 -> 0 | L83: =TypeListTemplate!L83 -> 0 | M83: =TypeListTemplate!M83 -> 0 | N83: =TypeListTemplate!N83 -> 0 | O83: =TypeListTemplate!O83 -> 0 | P83: =TypeListTemplate!P83 -> 0 | Q83: =TypeListTemplate!Q83 -> 0
A84: =TypeListTemplate!A84 -> 0 | B84: =TypeListTemplate!B84 -> 0 | C84: =TypeListTemplate!C84 -> 0 | D84: =TypeListTemplate!D84 -> 0 | E84: =TypeListTemplate!E84 -> 0 | F84: =TypeListTemplate!F84 -> 0 | G84: =TypeListTemplate!G84 -> 0 | H84: =TypeListTemplate!H84 -> 0 | I84: =TypeListTemplate!I84 -> 0 | J84: =TypeListTemplate!J84 -> 0 | K84: =TypeListTemplate!K84 -> 0 | L84: =TypeListTemplate!L84 -> 0 | M84: =TypeListTemplate!M84 -> 0 | N84: =TypeListTemplate!N84 -> 0 | O84: =TypeListTemplate!O84 -> 0 | P84: =TypeListTemplate!P84 -> 0 | Q84: =TypeListTemplate!Q84 -> 0
A85: =TypeListTemplate!A85 -> 0 | B85: =TypeListTemplate!B85 -> 0 | C85: =TypeListTemplate!C85 -> 0 | D85: =TypeListTemplate!D85 -> 0 | E85: =TypeListTemplate!E85 -> 0 | F85: =TypeListTemplate!F85 -> 0 | G85: =TypeListTemplate!G85 -> 0 | H85: =TypeListTemplate!H85 -> 0 | I85: =TypeListTemplate!I85 -> 0 | J85: =TypeListTemplate!J85 -> 0 | K85: =TypeListTemplate!K85 -> 0 | L85: =TypeListTemplate!L85 -> 0 | M85: =TypeListTemplate!M85 -> 0 | N85: =TypeListTemplate!N85 -> 0 | O85: =TypeListTemplate!O85 -> 0 | P85: =TypeListTemplate!P85 -> 0 | Q85: =TypeListTemplate!Q85 -> 0
A86: =TypeListTemplate!A86 -> 0 | B86: =TypeListTemplate!B86 -> 0 | C86: =TypeListTemplate!C86 -> 0 | D86: =TypeListTemplate!D86 -> 0 | E86: =TypeListTemplate!E86 -> 0 | F86: =TypeListTemplate!F86 -> 0 | G86: =TypeListTemplate!G86 -> 0 | H86: =TypeListTemplate!H86 -> 0 | I86: =TypeListTemplate!I86 -> 0 | J86: =TypeListTemplate!J86 -> 0 | K86: =TypeListTemplate!K86 -> 0 | L86: =TypeListTemplate!L86 -> 0 | M86: =TypeListTemplate!M86 -> 0 | N86: =TypeListTemplate!N86 -> 0 | O86: =TypeListTemplate!O86 -> 0 | P86: =TypeListTemplate!P86 -> 0 | Q86: =TypeListTemplate!Q86 -> 0
A87: =TypeListTemplate!A87 -> 0 | B87: =TypeListTemplate!B87 -> 0 | C87: =TypeListTemplate!C87 -> 0 | D87: =TypeListTemplate!D87 -> 0 | E87: =TypeListTemplate!E87 -> 0 | F87: =TypeListTemplate!F87 -> 0 | G87: =TypeListTemplate!G87 -> 0 | H87: =TypeListTemplate!H87 -> 0 | I87: =TypeListTemplate!I87 -> 0 | J87: =TypeListTemplate!J87 -> 0 | K87: =TypeListTemplate!K87 -> 0 | L87: =TypeListTemplate!L87 -> 0 | M87: =TypeListTemplate!M87 -> 0 | N87: =TypeListTemplate!N87 -> 0 | O87: =TypeListTemplate!O87 -> 0 | P87: =TypeListTemplate!P87 -> 0 | Q87: =TypeListTemplate!Q87 -> 0
A88: =TypeListTemplate!A88 -> 0 | B88: =TypeListTemplate!B88 -> 0 | C88: =TypeListTemplate!C88 -> 0 | D88: =TypeListTemplate!D88 -> 0 | E88: =TypeListTemplate!E88 -> 0 | F88: =TypeListTemplate!F88 -> 0 | G88: =TypeListTemplate!G88 -> 0 | H88: =TypeListTemplate!H88 -> 0 | I88: =TypeListTemplate!I88 -> 0 | J88: =TypeListTemplate!J88 -> 0 | K88: =TypeListTemplate!K88 -> 0 | L88: =TypeListTemplate!L88 -> 0 | M88: =TypeListTemplate!M88 -> 0 | N88: =TypeListTemplate!N88 -> 0 | O88: =TypeListTemplate!O88 -> 0 | P88: =TypeListTemplate!P88 -> 0 | Q88: =TypeListTemplate!Q88 -> 0
A89: =TypeListTemplate!A89 -> 0 | B89: =TypeListTemplate!B89 -> 0 | C89: =TypeListTemplate!C89 -> 0 | D89: =TypeListTemplate!D89 -> 0 | E89: =TypeListTemplate!E89 -> 0 | F89: =TypeListTemplate!F89 -> 0 | G89: =TypeListTemplate!G89 -> 0 | H89: =TypeListTemplate!H89 -> 0 | I89: =TypeListTemplate!I89 -> 0 | J89: =TypeListTemplate!J89 -> 0 | K89: =TypeListTemplate!K89 -> 0 | L89: =TypeListTemplate!L89 -> 0 | M89: =TypeListTemplate!M89 -> 0 | N89: =TypeListTemplate!N89 -> 0 | O89: =TypeListTemplate!O89 -> 0 | P89: =TypeListTemplate!P89 -> 0 | Q89: =TypeListTemplate!Q89 -> 0
A90: =TypeListTemplate!A90 -> 0 | B90: =TypeListTemplate!B90 -> 0 | C90: =TypeListTemplate!C90 -> 0 | D90: =TypeListTemplate!D90 -> 0 | E90: =TypeListTemplate!E90 -> 0 | F90: =TypeListTemplate!F90 -> 0 | G90: =TypeListTemplate!G90 -> 0 | H90: =TypeListTemplate!H90 -> 0 | I90: =TypeListTemplate!I90 -> 0 | J90: =TypeListTemplate!J90 -> 0 | K90: =TypeListTemplate!K90 -> 0 | L90: =TypeListTemplate!L90 -> 0 | M90: =TypeListTemplate!M90 -> 0 | N90: =TypeListTemplate!N90 -> 0 | O90: =TypeListTemplate!O90 -> 0 | P90: =TypeListTemplate!P90 -> 0 | Q90: =TypeListTemplate!Q90 -> 0
A91: =TypeListTemplate!A91 -> 0 | B91: =TypeListTemplate!B91 -> 0 | C91: =TypeListTemplate!C91 -> 0 | D91: =TypeListTemplate!D91 -> 0 | E91: =TypeListTemplate!E91 -> 0 | F91: =TypeListTemplate!F91 -> 0 | G91: =TypeListTemplate!G91 -> 0 | H91: =TypeListTemplate!H91 -> 0 | I91: =TypeListTemplate!I91 -> 0 | J91: =TypeListTemplate!J91 -> 0 | K91: =TypeListTemplate!K91 -> 0 | L91: =TypeListTemplate!L91 -> 0 | M91: =TypeListTemplate!M91 -> 0 | N91: =TypeListTemplate!N91 -> 0 | O91: =TypeListTemplate!O91 -> 0 | P91: =TypeListTemplate!P91 -> 0 | Q91: =TypeListTemplate!Q91 -> 0
A92: =TypeListTemplate!A92 -> 0 | B92: =TypeListTemplate!B92 -> 0 | C92: =TypeListTemplate!C92 -> 0 | D92: =TypeListTemplate!D92 -> 0 | E92: =TypeListTemplate!E92 -> 0 | F92: =TypeListTemplate!F92 -> 0 | G92: =TypeListTemplate!G92 -> 0 | H92: =TypeListTemplate!H92 -> 0 | I92: =TypeListTemplate!I92 -> 0 | J92: =TypeListTemplate!J92 -> 0 | K92: =TypeListTemplate!K92 -> 0 | L92: =TypeListTemplate!L92 -> 0 | M92: =TypeListTemplate!M92 -> 0 | N92: =TypeListTemplate!N92 -> 0 | O92: =TypeListTemplate!O92 -> 0 | P92: =TypeListTemplate!P92 -> 0 | Q92: =TypeListTemplate!Q92 -> 0
A93: =TypeListTemplate!A93 -> 0 | B93: =TypeListTemplate!B93 -> 0 | C93: =TypeListTemplate!C93 -> 0 | D93: =TypeListTemplate!D93 -> 0 | E93: =TypeListTemplate!E93 -> 0 | F93: =TypeListTemplate!F93 -> 0 | G93: =TypeListTemplate!G93 -> 0 | H93: =TypeListTemplate!H93 -> 0 | I93: =TypeListTemplate!I93 -> 0 | J93: =TypeListTemplate!J93 -> 0 | K93: =TypeListTemplate!K93 -> 0 | L93: =TypeListTemplate!L93 -> 0 | M93: =TypeListTemplate!M93 -> 0 | N93: =TypeListTemplate!N93 -> 0 | O93: =TypeListTemplate!O93 -> 0 | P93: =TypeListTemplate!P93 -> 0 | Q93: =TypeListTemplate!Q93 -> 0
A94: =TypeListTemplate!A94 -> 0 | B94: =TypeListTemplate!B94 -> 0 | C94: =TypeListTemplate!C94 -> 0 | D94: =TypeListTemplate!D94 -> 0 | E94: =TypeListTemplate!E94 -> 0 | F94: =TypeListTemplate!F94 -> 0 | G94: =TypeListTemplate!G94 -> 0 | H94: =TypeListTemplate!H94 -> 0 | I94: =TypeListTemplate!I94 -> 0 | J94: =TypeListTemplate!J94 -> 0 | K94: =TypeListTemplate!K94 -> 0 | L94: =TypeListTemplate!L94 -> 0 | M94: =TypeListTemplate!M94 -> 0 | N94: =TypeListTemplate!N94 -> 0 | O94: =TypeListTemplate!O94 -> 0 | P94: =TypeListTemplate!P94 -> 0 | Q94: =TypeListTemplate!Q94 -> 0
A95: =TypeListTemplate!A95 -> 0 | B95: =TypeListTemplate!B95 -> 0 | C95: =TypeListTemplate!C95 -> 0 | D95: =TypeListTemplate!D95 -> 0 | E95: =TypeListTemplate!E95 -> 0 | F95: =TypeListTemplate!F95 -> 0 | G95: =TypeListTemplate!G95 -> 0 | H95: =TypeListTemplate!H95 -> 0 | I95: =TypeListTemplate!I95 -> 0 | J95: =TypeListTemplate!J95 -> 0 | K95: =TypeListTemplate!K95 -> 0 | L95: =TypeListTemplate!L95 -> 0 | M95: =TypeListTemplate!M95 -> 0 | N95: =TypeListTemplate!N95 -> 0 | O95: =TypeListTemplate!O95 -> 0 | P95: =TypeListTemplate!P95 -> 0 | Q95: =TypeListTemplate!Q95 -> 0

Sheet ACS150 (hidden)
A1: Typecode | B1: Prod.class | D1: Voltage range 1 | F1: Voltage range 2 (1-ph) | H1: Voltage range 2 | J1: Voltage range 3 | L1: Voltage range 4.6 | N1: Voltage range 5 | P1: Voltage range 7/6
A2: =VLOOKUP(DriveSel!E20,C8:Y71,DriveSel!D18) -> 0 | B2: =VLOOKUP(#REF!,C8:X70,7) ->  | C2: non-US (50Hz) | D2: 115 V (1-ph) | F2: 230 V (1-ph) | H2: 230 V (3-ph) | J2: 400 V | L2: 460 V | N2: 500 V | P2: 690 V
A3: Col.ordinal | B3: Col.ordinal
C4: Alternatives: | D4: 115 V 1-ph | F4: 200/208/230/240 V 1-ph | H4: 200/208/230/240 V 3-ph | J4: 380/400/415 V | L4: 440/460/480 V | N4: 500 V | P4: 525/550/575/600/660/690 V
A5: =TypeListTemplate!A5 -> Motor Power | B5: =TypeListTemplate!B5 -> Motor | C5: =TypeListTemplate!C5 -> 0 | D5: =TypeListTemplate!D5 -> Drive type | E5: =TypeListTemplate!E5 -> 0 | F5: =TypeListTemplate!F5 -> Drive type | G5: =TypeListTemplate!G5 -> 0 | H5: =TypeListTemplate!H5 -> Drive type | I5: =TypeListTemplate!I5 -> 0 | J5: =TypeListTemplate!J5 -> Drive type | K5: =TypeListTemplate!K5 -> 0 | L5: =TypeListTemplate!L5 -> Drive type | M5: =TypeListTemplate!M5 -> 0 | N5: =TypeListTemplate!N5 -> Drive type | O5: =TypeListTemplate!O5 -> 0 | P5: =TypeListTemplate!P5 -> Drive type | Q5: =TypeListTemplate!Q5 -> 0
A6: =TypeListTemplate!A6 -> Hp | B6: =TypeListTemplate!B6 -> power kW
A7: =TypeListTemplate!A7 -> 0 | B7: =TypeListTemplate!B7 -> Column Ordinal -> | C7: =TypeListTemplate!C7 -> 1 | D7: =TypeListTemplate!D7 -> 2 | E7: =TypeListTemplate!E7 -> 3 | F7: =TypeListTemplate!F7 -> 4 | G7: =TypeListTemplate!G7 -> 5 | H7: =TypeListTemplate!H7 -> 6 | I7: =TypeListTemplate!I7 -> 7 | J7: =TypeListTemplate!J7 -> 8 | K7: =TypeListTemplate!K7 -> 9 | L7: =TypeListTemplate!L7 -> 10 | M7: =TypeListTemplate!M7 -> 11 | N7: =TypeListTemplate!N7 -> 12 | O7: =TypeListTemplate!O7 -> 13 | P7: =TypeListTemplate!P7 -> 14 | Q7: =TypeListTemplate!Q7 -> 15
A8: =TypeListTemplate!A8 -> 0 | B8: =TypeListTemplate!B8 -> 0 | C8: =TypeListTemplate!C8 -> 0
A9: =TypeListTemplate!A9 -> 0.07375620223 | B9: =TypeListTemplate!B9 -> 0.055 | C9: =TypeListTemplate!C9 -> 0.01
A10: =TypeListTemplate!A10 -> 0.1206919673 | B10: =TypeListTemplate!B10 -> 0.09 | C10: =TypeListTemplate!C10 -> 0.065
A11: =TypeListTemplate!A11 -> 0.160922623 | B11: =TypeListTemplate!B11 -> 0.12 | C11: =TypeListTemplate!C11 -> 0.1 | F11: ACS150-01E-02A4-2 | H11: ACS150-03E-02A4-2 | J11: ACS150-03E-01A2-4 | L11: ACS150-03E-01A2-4
A12: =TypeListTemplate!A12 -> 0.2413839346 | B12: =TypeListTemplate!B12 -> 0.18 | C12: =TypeListTemplate!C12 -> 0.13 | F12: ACS150-01E-02A4-2 | H12: ACS150-03E-02A4-2 | J12: ACS150-03E-01A2-4 | L12: ACS150-03E-01A2-4
A13: =TypeListTemplate!A13 -> 0.4961780877 | B13: =TypeListTemplate!B13 -> 0.37 | C13: =TypeListTemplate!C13 -> 0.19 | F13: ACS150-01E-02A4-2 | H13: ACS150-03E-02A4-2 | J13: ACS150-03E-01A2-4 | L13: ACS150-03E-01A2-4
A14: =TypeListTemplate!A14 -> 0.7375620223 | B14: =TypeListTemplate!B14 -> 0.55 | C14: =TypeListTemplate!C14 -> 0.38 | F14: ACS150-01E-02A4-2 | H14: ACS150-03E-03A5-2 | J14: ACS150-03E-01A9-4 | L14: ACS150-03E-01A9-4
A15: =TypeListTemplate!A15 -> 1.005766394 | B15: =TypeListTemplate!B15 -> 0.75 | C15: =TypeListTemplate!C15 -> 0.56 | F15: ACS150-01E-04A7-2 | H15: ACS150-03E-04A7-2 | J15: ACS150-03E-02A4-4 | L15: ACS150-03E-02A4-4
A16: =TypeListTemplate!A16 -> 1.475124045 | B16: =TypeListTemplate!B16 -> 1.1 | C16: =TypeListTemplate!C16 -> 0.76 | F16: ACS150-01E-04A7-2 | H16: ACS150-03E-06A7-2 | J16: ACS150-03E-03A3-4 | L16: ACS150-03E-03A3-4
A17: =TypeListTemplate!A17 -> 2.011532788 | B17: =TypeListTemplate!B17 -> 1.5 | C17: =TypeListTemplate!C17 -> 1.11 | F17: ACS150-01E-06A7-2 | H17: ACS150-03E-07A5-2 | J17: ACS150-03E-04A1-4 | L17: ACS150-03E-04A1-4
A18: =TypeListTemplate!A18 -> 2.950248089 | B18: =TypeListTemplate!B18 -> 2.2 | C18: =TypeListTemplate!C18 -> 1.51 | F18: ACS150-01E-07A5-2 | H18: ACS150-03E-09A8-2 | J18: ACS150-03E-05A6-4 | L18: ACS150-03E-05A6-4
A19: =TypeListTemplate!A19 -> 4.023065576 | B19: =TypeListTemplate!B19 -> 3 | C19: =TypeListTemplate!C19 -> 2.21 | F19: ACS150-01E-09A8-2 | J19: ACS150-03E-07A3-4 | L19: ACS150-03E-07A3-4
A20: =TypeListTemplate!A20 -> 5 | B20: =TypeListTemplate!B20 -> 3.7285 | C20: =TypeListTemplate!C20 -> 3.01 | J20: ACS150-03E-08A8-4 | L20: ACS150-03E-08A8-4
A21: =TypeListTemplate!A21 -> 5.364087435 | B21: =TypeListTemplate!B21 -> 4 | C21: =TypeListTemplate!C21 -> 3.7385 | J21: ACS150-03E-08A8-4 | L21: ACS150-03E-08A8-4
A22: =TypeListTemplate!A22 -> 7.375620223 | B22: =TypeListTemplate!B22 -> 5.5 | C22: =TypeListTemplate!C22 -> 4.01
A23: =TypeListTemplate!A23 -> 10.05766394 | B23: =TypeListTemplate!B23 -> 7.5 | C23: =TypeListTemplate!C23 -> 5.51
A24: =TypeListTemplate!A24 -> 14.75124045 | B24: =TypeListTemplate!B24 -> 11 | C24: =TypeListTemplate!C24 -> 7.51
A25: =TypeListTemplate!A25 -> 20.11532788 | B25: =TypeListTemplate!B25 -> 15 | C25: =TypeListTemplate!C25 -> 11.01
A26: =TypeListTemplate!A26 -> 24.80890439 | B26: =TypeListTemplate!B26 -> 18.5 | C26: =TypeListTemplate!C26 -> 15.01
A27: =TypeListTemplate!A27 -> 29.50248089 | B27: =TypeListTemplate!B27 -> 22 | C27: =TypeListTemplate!C27 -> 18.51
A28: =TypeListTemplate!A28 -> 40.23065576 | B28: =TypeListTemplate!B28 -> 30 | C28: =TypeListTemplate!C28 -> 22.01
A29: =TypeListTemplate!A29 -> 49.61780877 | B29: =TypeListTemplate!B29 -> 37 | C29: =TypeListTemplate!C29 -> 30.01
A30: =TypeListTemplate!A30 -> 60.34598364 | B30: =TypeListTemplate!B30 -> 45 | C30: =TypeListTemplate!C30 -> 37.01
A31: =TypeListTemplate!A31 -> 73.75620223 | B31: =TypeListTemplate!B31 -> 55 | C31: =TypeListTemplate!C31 -> 45.01
A32: =TypeListTemplate!A32 -> 100.5766394 | B32: =TypeListTemplate!B32 -> 75 | C32: =TypeListTemplate!C32 -> 55.01
A33: =TypeListTemplate!A33 -> 120.6919673 | B33: =TypeListTemplate!B33 -> 90 | C33: =TypeListTemplate!C33 -> 75.01
A34: =TypeListTemplate!A34 -> 147.5124045 | B34: =TypeListTemplate!B34 -> 110 | C34: =TypeListTemplate!C34 -> 90.01
A35: =TypeListTemplate!A35 -> 177.0148853 | B35: =TypeListTemplate!B35 -> 132 | C35: =TypeListTemplate!C35 -> 110.01
A36: =TypeListTemplate!A36 -> 200 | B36: =TypeListTemplate!B36 -> 149.14 | C36: =TypeListTemplate!C36 -> 132.01
A37: =TypeListTemplate!A37 -> 214.5634974 | B37: =TypeListTemplate!B37 -> 160 | C37: =TypeListTemplate!C37 -> 149.15
A38: =TypeListTemplate!A38 -> 250 | B38: =TypeListTemplate!B38 -> 186.425 | C38: =TypeListTemplate!C38 -> 160.01
A39: =TypeListTemplate!A39 -> 268.2043717 | B39: =TypeListTemplate!B39 -> 200 | C39: =TypeListTemplate!C39 -> 186.435
A40: =TypeListTemplate!A40 -> 300 | B40: =TypeListTemplate!B40 -> 223.71 | C40: =TypeListTemplate!C40 -> 200.01
A41: =TypeListTemplate!A41 -> 335.2554647 | B41: =TypeListTemplate!B41 -> 250 | C41: =TypeListTemplate!C41 -> 223.72
A42: =TypeListTemplate!A42 -> 400 | B42: =TypeListTemplate!B42 -> 298.28 | C42: =TypeListTemplate!C42 -> 250.01
A43: =TypeListTemplate!A43 -> 422.4218855 | B43: =TypeListTemplate!B43 -> 315 | C43: =TypeListTemplate!C43 -> 298.29
A44: =TypeListTemplate!A44 -> 476.0627598 | B44: =TypeListTemplate!B44 -> 355 | C44: =TypeListTemplate!C44 -> 315.01
A45: =TypeListTemplate!A45 -> 536.4087435 | B45: =TypeListTemplate!B45 -> 400 | C45: =TypeListTemplate!C45 -> 355.01
A46: =TypeListTemplate!A46 -> 603.4598364 | B46: =TypeListTemplate!B46 -> 450 | C46: =TypeListTemplate!C46 -> 400.01
A47: =TypeListTemplate!A47 -> 670.5109293 | B47: =TypeListTemplate!B47 -> 500 | C47: =TypeListTemplate!C47 -> 450.01
A48: =TypeListTemplate!A48 -> 750.9722408 | B48: =TypeListTemplate!B48 -> 560 | C48: =TypeListTemplate!C48 -> 500.01
A49: =TypeListTemplate!A49 -> 844.843771 | B49: =TypeListTemplate!B49 -> 630 | C49: =TypeListTemplate!C49 -> 560.01
A50: =TypeListTemplate!A50 -> 952.1255196 | B50: =TypeListTemplate!B50 -> 710 | C50: =TypeListTemplate!C50 -> 630.01
A51: =TypeListTemplate!A51 -> 1072.817487 | B51: =TypeListTemplate!B51 -> 800 | C51: =TypeListTemplate!C51 -> 710.01
A52: =TypeListTemplate!A52 -> 1206.919673 | B52: =TypeListTemplate!B52 -> 900 | C52: =TypeListTemplate!C52 -> 800.01
A53: =TypeListTemplate!A53 -> 1341.021859 | B53: =TypeListTemplate!B53 -> 1000 | C53: =TypeListTemplate!C53 -> 900.01
A54: =TypeListTemplate!A54 -> 1501.944482 | B54: =TypeListTemplate!B54 -> 1120 | C54: =TypeListTemplate!C54 -> 1000.01
A55: =TypeListTemplate!A55 -> 1676.277323 | B55: =TypeListTemplate!B55 -> 1250 | C55: =TypeListTemplate!C55 -> 1120.01
A56: =TypeListTemplate!A56 -> 1877.430602 | B56: =TypeListTemplate!B56 -> 1400 | C56: =TypeListTemplate!C56 -> 1250.01
A57: =TypeListTemplate!A57 -> 2145.634974 | B57: =TypeListTemplate!B57 -> 1600 | C57: =TypeListTemplate!C57 -> 1400.01
A58: =TypeListTemplate!A58 -> 2346.788253 | B58: =TypeListTemplate!B58 -> 1750 | C58: =TypeListTemplate!C58 -> 1600.01
A59: =TypeListTemplate!A59 -> 2413.839346 | B59: =TypeListTemplate!B59 -> 1800 | C59: =TypeListTemplate!C59 -> 1750.01
A60: =TypeListTemplate!A60 -> 2682.043717 | B60: =TypeListTemplate!B60 -> 2000 | C60: =TypeListTemplate!C60 -> 1800.01
A61: =TypeListTemplate!A61 -> 2950.248089 | B61: =TypeListTemplate!B61 -> 2200 | C61: =TypeListTemplate!C61 -> 2000.01
A62: =TypeListTemplate!A62 -> 3017.299182 | B62: =TypeListTemplate!B62 -> 2250 | C62: =TypeListTemplate!C62 -> 2200.01
A63: =TypeListTemplate!A63 -> 3084.350275 | B63: =TypeListTemplate!B63 -> 2300 | C63: =TypeListTemplate!C63 -> 2250.01
A64: =TypeListTemplate!A64 -> 3352.554647 | B64: =TypeListTemplate!B64 -> 2500 | C64: =TypeListTemplate!C64 -> 2300.01
A65: =TypeListTemplate!A65 -> 3754.861204 | B65: =TypeListTemplate!B65 -> 2800 | C65: =TypeListTemplate!C65 -> 2500.01
A66: =TypeListTemplate!A66 -> 4224.218855 | B66: =TypeListTemplate!B66 -> 3150 | C66: =TypeListTemplate!C66 -> 2800.01
A67: =TypeListTemplate!A67 -> 4760.627598 | B67: =TypeListTemplate!B67 -> 3550 | C67: =TypeListTemplate!C67 -> 3150.01
A68: =TypeListTemplate!A68 -> 5364.087435 | B68: =TypeListTemplate!B68 -> 4000 | C68: =TypeListTemplate!C68 -> 3550.01
A69: =TypeListTemplate!A69 -> 6034.598364 | B69: =TypeListTemplate!B69 -> 4500 | C69: =TypeListTemplate!C69 -> 4000.01
A70: =TypeListTemplate!A70 -> 6705.109293 | B70: =TypeListTemplate!B70 -> 5000 | C70: =TypeListTemplate!C70 -> 4500.01
A71: =TypeListTemplate!A71 -> 0 | B71: =TypeListTemplate!B71 -> 999999999 | C71: =TypeListTemplate!C71 -> 5000.01
A72: =TypeListTemplate!A72 -> 0 | B72: =TypeListTemplate!B72 -> 0 | C72: =TypeListTemplate!C72 -> 0
A73: =TypeListTemplate!A73 -> 0 | B73: =TypeListTemplate!B73 -> 0 | C73: =TypeListTemplate!C73 -> 0 | D73: =TypeListTemplate!D73 -> Drive type | E73: =TypeListTemplate!E73 -> 0 | F73: =TypeListTemplate!F73 -> Drive type | G73: =TypeListTemplate!G73 -> 0 | H73: =TypeListTemplate!H73 -> Drive type | I73: =TypeListTemplate!I73 -> 0 | J73: =TypeListTemplate!J73 -> Drive type | K73: =TypeListTemplate!K73 -> 0 | L73: =TypeListTemplate!L73 -> Drive type | M73: =TypeListTemplate!M73 -> 0 | N73: =TypeListTemplate!N73 -> Drive type | O73: =TypeListTemplate!O73 -> 0 | P73: =TypeListTemplate!P73 -> Drive type | Q73: =TypeListTemplate!Q73 -> 0
A74: =TypeListTemplate!A74 -> 0 | B74: =TypeListTemplate!B74 -> 0 | C74: =TypeListTemplate!C74 -> 0 | D74: =TypeListTemplate!D74 -> 115 V (1-ph) | E74: =TypeListTemplate!E74 -> 0 | F74: =TypeListTemplate!F74 -> 230 V (1-ph) | G74: =TypeListTemplate!G74 -> 0 | H74: =TypeListTemplate!H74 -> 230 V (3-ph) | I74: =TypeListTemplate!I74 -> 0 | J74: =TypeListTemplate!J74 -> 400 V | K74: =TypeListTemplate!K74 -> 0 | L74: =TypeListTemplate!L74 -> 460 V | M74: =TypeListTemplate!M74 -> 0 | N74: =TypeListTemplate!N74 -> 500 V | O74: =TypeListTemplate!O74 -> 0 | P74: =TypeListTemplate!P74 -> 690 V | Q74: =TypeListTemplate!Q74 -> 0
A75: =TypeListTemplate!A75 -> 0 | B75: =TypeListTemplate!B75 -> 0 | C75: =TypeListTemplate!C75 -> 0 | D75: =TypeListTemplate!D75 -> 0 | E75: =TypeListTemplate!E75 -> 0 | F75: =TypeListTemplate!F75 -> 0 | G75: =TypeListTemplate!G75 -> 0 | H75: =TypeListTemplate!H75 -> 0 | I75: =TypeListTemplate!I75 -> 0 | J75: =TypeListTemplate!J75 -> 0 | K75: =TypeListTemplate!K75 -> 0 | L75: =TypeListTemplate!L75 -> 0 | M75: =TypeListTemplate!M75 -> 0 | N75: =TypeListTemplate!N75 -> 0 | O75: =TypeListTemplate!O75 -> 0 | P75: =TypeListTemplate!P75 -> 0 | Q75: =TypeListTemplate!Q75 -> 0
A76: =TypeListTemplate!A76 -> 0 | B76: =TypeListTemplate!B76 -> 0 | C76: =TypeListTemplate!C76 -> 0 | D76: =TypeListTemplate!D76 -> 0 | E76: =TypeListTemplate!E76 -> 0 | F76: =TypeListTemplate!F76 -> 0 | G76: =TypeListTemplate!G76 -> 0 | H76: =TypeListTemplate!H76 -> 0 | I76: =TypeListTemplate!I76 -> 0 | J76: =TypeListTemplate!J76 -> 0 | K76: =TypeListTemplate!K76 -> 0 | L76: =TypeListTemplate!L76 -> 0 | M76: =TypeListTemplate!M76 -> 0 | N76: =TypeListTemplate!N76 -> 0 | O76: =TypeListTemplate!O76 -> 0 | P76: =TypeListTemplate!P76 -> 0 | Q76: =TypeListTemplate!Q76 -> 0
A77: =TypeListTemplate!A77 -> 0 | B77: =TypeListTemplate!B77 -> 0 | C77: =TypeListTemplate!C77 -> 0 | D77: =TypeListTemplate!D77 -> 0 | E77: =TypeListTemplate!E77 -> 0 | F77: =TypeListTemplate!F77 -> 0 | G77: =TypeListTemplate!G77 -> 0 | H77: =TypeListTemplate!H77 -> 0 | I77: =TypeListTemplate!I77 -> 0 | J77: =TypeListTemplate!J77 -> 0 | K77: =TypeListTemplate!K77 -> 0 | L77: =TypeListTemplate!L77 -> 0 | M77: =TypeListTemplate!M77 -> 0 | N77: =TypeListTemplate!N77 -> 0 | O77: =TypeListTemplate!O77 -> 0 | P77: =TypeListTemplate!P77 -> 0 | Q77: =TypeListTemplate!Q77 -> 0
A78: =TypeListTemplate!A78 -> 0 | B78: =TypeListTemplate!B78 -> 0 | C78: =TypeListTemplate!C78 -> 0 | D78: =TypeListTemplate!D78 -> 0 | E78: =TypeListTemplate!E78 -> 0 | F78: =TypeListTemplate!F78 -> 0 | G78: =TypeListTemplate!G78 -> 0 | H78: =TypeListTemplate!H78 -> 0 | I78: =TypeListTemplate!I78 -> 0 | J78: =TypeListTemplate!J78 -> 0 | K78: =TypeListTemplate!K78 -> 0 | L78: =TypeListTemplate!L78 -> 0 | M78: =TypeListTemplate!M78 -> 0 | N78: =TypeListTemplate!N78 -> 0 | O78: =TypeListTemplate!O78 -> 0 | P78: =TypeListTemplate!P78 -> 0 | Q78: =TypeListTemplate!Q78 -> 0
A79: =TypeListTemplate!A79 -> 0 | B79: =TypeListTemplate!B79 -> 0 | C79: =TypeListTemplate!C79 -> 0 | D79: =TypeListTemplate!D79 -> 0 | E79: =TypeListTemplate!E79 -> 0 | F79: =TypeListTemplate!F79 -> 0 | G79: =TypeListTemplate!G79 -> 0 | H79: =TypeListTemplate!H79 -> 0 | I79: =TypeListTemplate!I79 -> 0 | J79: =TypeListTemplate!J79 -> 0 | K79: =TypeListTemplate!K79 -> 0 | L79: =TypeListTemplate!L79 -> 0 | M79: =TypeListTemplate!M79 -> 0 | N79: =TypeListTemplate!N79 -> 0 | O79: =TypeListTemplate!O79 -> 0 | P79: =TypeListTemplate!P79 -> 0 | Q79: =TypeListTemplate!Q79 -> 0
A80: =TypeListTemplate!A80 -> 0 | B80: =TypeListTemplate!B80 -> 0 | C80: =TypeListTemplate!C80 -> 0 | D80: =TypeListTemplate!D80 -> 0 | E80: =TypeListTemplate!E80 -> 0 | F80: =TypeListTemplate!F80 -> 0 | G80: =TypeListTemplate!G80 -> 0 | H80: =TypeListTemplate!H80 -> 0 | I80: =TypeListTemplate!I80 -> 0 | J80: =TypeListTemplate!J80 -> 0 | K80: =TypeListTemplate!K80 -> 0 | L80: =TypeListTemplate!L80 -> 0 | M80: =TypeListTemplate!M80 -> 0 | N80: =TypeListTemplate!N80 -> 0 | O80: =TypeListTemplate!O80 -> 0 | P80: =TypeListTemplate!P80 -> 0 | Q80: =TypeListTemplate!Q80 -> 0
A81: =TypeListTemplate!A81 -> 0 | B81: =TypeListTemplate!B81 -> 0 | C81: =TypeListTemplate!C81 -> 0 | D81: =TypeListTemplate!D81 -> 0 | E81: =TypeListTemplate!E81 -> 0 | F81: =TypeListTemplate!F81 -> 0 | G81: =TypeListTemplate!G81 -> 0 | H81: =TypeListTemplate!H81 -> 0 | I81: =TypeListTemplate!I81 -> 0 | J81: =TypeListTemplate!J81 -> 0 | K81: =TypeListTemplate!K81 -> 0 | L81: =TypeListTemplate!L81 -> 0 | M81: =TypeListTemplate!M81 -> 0 | N81: =TypeListTemplate!N81 -> 0 | O81: =TypeListTemplate!O81 -> 0 | P81: =TypeListTemplate!P81 -> 0 | Q81: =TypeListTemplate!Q81 -> 0
A82: =TypeListTemplate!A82 -> 0 | B82: =TypeListTemplate!B82 -> 0 | C82: =TypeListTemplate!C82 -> 0 | D82: =TypeListTemplate!D82 -> 0 | E82: =TypeListTemplate!E82 -> 0 | F82: =TypeListTemplate!F82 -> 0 | G82: =TypeListTemplate!G82 -> 0 | H82: =TypeListTemplate!H82 -> 0 | I82: =TypeListTemplate!I82 -> 0 | J82: =TypeListTemplate!J82 -> 0 | K82: =TypeListTemplate!K82 -> 0 | L82: =TypeListTemplate!L82 -> 0 | M82: =TypeListTemplate!M82 -> 0 | N82: =TypeListTemplate!N82 -> 0 | O82: =TypeListTemplate!O82 -> 0 | P82: =TypeListTemplate!P82 -> 0 | Q82: =TypeListTemplate!Q82 -> 0
A83: =TypeListTemplate!A83 -> 0 | B83: =TypeListTemplate!B83 -> 0 | C83: =TypeListTemplate!C83 -> 0 | D83: =TypeListTemplate!D83 -> 0 | E83: =TypeListTemplate!E83 -> 0 | F83: =TypeListTemplate!F83 -> 0 | G83: =TypeListTemplate!G83 -> 0 | H83: =TypeListTemplate!H83 -> 0 | I83: =TypeListTemplate!I83 -> 0 | J83: =TypeListTemplate!J83 -> 0 | K83: =TypeListTemplate!K83 -> 0 | L83: =TypeListTemplate!L83 -> 0 | M83: =TypeListTemplate!M83 -> 0 | N83: =TypeListTemplate!N83 -> 0 | O83: =TypeListTemplate!O83 -> 0 | P83: =TypeListTemplate!P83 -> 0 | Q83: =TypeListTemplate!Q83 -> 0
A84: =TypeListTemplate!A84 -> 0 | B84: =TypeListTemplate!B84 -> 0 | C84: =TypeListTemplate!C84 -> 0 | D84: =TypeListTemplate!D84 -> 0 | E84: =TypeListTemplate!E84 -> 0 | F84: =TypeListTemplate!F84 -> 0 | G84: =TypeListTemplate!G84 -> 0 | H84: =TypeListTemplate!H84 -> 0 | I84: =TypeListTemplate!I84 -> 0 | J84: =TypeListTemplate!J84 -> 0 | K84: =TypeListTemplate!K84 -> 0 | L84: =TypeListTemplate!L84 -> 0 | M84: =TypeListTemplate!M84 -> 0 | N84: =TypeListTemplate!N84 -> 0 | O84: =TypeListTemplate!O84 -> 0 | P84: =TypeListTemplate!P84 -> 0 | Q84: =TypeListTemplate!Q84 -> 0
A85: =TypeListTemplate!A85 -> 0 | B85: =TypeListTemplate!B85 -> 0 | C85: =TypeListTemplate!C85 -> 0 | D85: =TypeListTemplate!D85 -> 0 | E85: =TypeListTemplate!E85 -> 0 | F85: =TypeListTemplate!F85 -> 0 | G85: =TypeListTemplate!G85 -> 0 | H85: =TypeListTemplate!H85 -> 0 | I85: =TypeListTemplate!I85 -> 0 | J85: =TypeListTemplate!J85 -> 0 | K85: =TypeListTemplate!K85 -> 0 | L85: =TypeListTemplate!L85 -> 0 | M85: =TypeListTemplate!M85 -> 0 | N85: =TypeListTemplate!N85 -> 0 | O85: =TypeListTemplate!O85 -> 0 | P85: =TypeListTemplate!P85 -> 0 | Q85: =TypeListTemplate!Q85 -> 0
A86: =TypeListTemplate!A86 -> 0 | B86: =TypeListTemplate!B86 -> 0 | C86: =TypeListTemplate!C86 -> 0 | D86: =TypeListTemplate!D86 -> 0 | E86: =TypeListTemplate!E86 -> 0 | F86: =TypeListTemplate!F86 -> 0 | G86: =TypeListTemplate!G86 -> 0 | H86: =TypeListTemplate!H86 -> 0 | I86: =TypeListTemplate!I86 -> 0 | J86: =TypeListTemplate!J86 -> 0 | K86: =TypeListTemplate!K86 -> 0 | L86: =TypeListTemplate!L86 -> 0 | M86: =TypeListTemplate!M86 -> 0 | N86: =TypeListTemplate!N86 -> 0 | O86: =TypeListTemplate!O86 -> 0 | P86: =TypeListTemplate!P86 -> 0 | Q86: =TypeListTemplate!Q86 -> 0
A87: =TypeListTemplate!A87 -> 0 | B87: =TypeListTemplate!B87 -> 0 | C87: =TypeListTemplate!C87 -> 0 | D87: =TypeListTemplate!D87 -> 0 | E87: =TypeListTemplate!E87 -> 0 | F87: =TypeListTemplate!F87 -> 0 | G87: =TypeListTemplate!G87 -> 0 | H87: =TypeListTemplate!H87 -> 0 | I87: =TypeListTemplate!I87 -> 0 | J87: =TypeListTemplate!J87 -> 0 | K87: =TypeListTemplate!K87 -> 0 | L87: =TypeListTemplate!L87 -> 0 | M87: =TypeListTemplate!M87 -> 0 | N87: =TypeListTemplate!N87 -> 0 | O87: =TypeListTemplate!O87 -> 0 | P87: =TypeListTemplate!P87 -> 0 | Q87: =TypeListTemplate!Q87 -> 0
A88: =TypeListTemplate!A88 -> 0 | B88: =TypeListTemplate!B88 -> 0 | C88: =TypeListTemplate!C88 -> 0 | D88: =TypeListTemplate!D88 -> 0 | E88: =TypeListTemplate!E88 -> 0 | F88: =TypeListTemplate!F88 -> 0 | G88: =TypeListTemplate!G88 -> 0 | H88: =TypeListTemplate!H88 -> 0 | I88: =TypeListTemplate!I88 -> 0 | J88: =TypeListTemplate!J88 -> 0 | K88: =TypeListTemplate!K88 -> 0 | L88: =TypeListTemplate!L88 -> 0 | M88: =TypeListTemplate!M88 -> 0 | N88: =TypeListTemplate!N88 -> 0 | O88: =TypeListTemplate!O88 -> 0 | P88: =TypeListTemplate!P88 -> 0 | Q88: =TypeListTemplate!Q88 -> 0
A89: =TypeListTemplate!A89 -> 0 | B89: =TypeListTemplate!B89 -> 0 | C89: =TypeListTemplate!C89 -> 0 | D89: =TypeListTemplate!D89 -> 0 | E89: =TypeListTemplate!E89 -> 0 | F89: =TypeListTemplate!F89 -> 0 | G89: =TypeListTemplate!G89 -> 0 | H89: =TypeListTemplate!H89 -> 0 | I89: =TypeListTemplate!I89 -> 0 | J89: =TypeListTemplate!J89 -> 0 | K89: =TypeListTemplate!K89 -> 0 | L89: =TypeListTemplate!L89 -> 0 | M89: =TypeListTemplate!M89 -> 0 | N89: =TypeListTemplate!N89 -> 0 | O89: =TypeListTemplate!O89 -> 0 | P89: =TypeListTemplate!P89 -> 0 | Q89: =TypeListTemplate!Q89 -> 0
A90: =TypeListTemplate!A90 -> 0 | B90: =TypeListTemplate!B90 -> 0 | C90: =TypeListTemplate!C90 -> 0 | D90: =TypeListTemplate!D90 -> 0 | E90: =TypeListTemplate!E90 -> 0 | F90: =TypeListTemplate!F90 -> 0 | G90: =TypeListTemplate!G90 -> 0 | H90: =TypeListTemplate!H90 -> 0 | I90: =TypeListTemplate!I90 -> 0 | J90: =TypeListTemplate!J90 -> 0 | K90: =TypeListTemplate!K90 -> 0 | L90: =TypeListTemplate!L90 -> 0 | M90: =TypeListTemplate!M90 -> 0 | N90: =TypeListTemplate!N90 -> 0 | O90: =TypeListTemplate!O90 -> 0 | P90: =TypeListTemplate!P90 -> 0 | Q90: =TypeListTemplate!Q90 -> 0
A91: =TypeListTemplate!A91 -> 0 | B91: =TypeListTemplate!B91 -> 0 | C91: =TypeListTemplate!C91 -> 0 | D91: =TypeListTemplate!D91 -> 0 | E91: =TypeListTemplate!E91 -> 0 | F91: =TypeListTemplate!F91 -> 0 | G91: =TypeListTemplate!G91 -> 0 | H91: =TypeListTemplate!H91 -> 0 | I91: =TypeListTemplate!I91 -> 0 | J91: =TypeListTemplate!J91 -> 0 | K91: =TypeListTemplate!K91 -> 0 | L91: =TypeListTemplate!L91 -> 0 | M91: =TypeListTemplate!M91 -> 0 | N91: =TypeListTemplate!N91 -> 0 | O91: =TypeListTemplate!O91 -> 0 | P91: =TypeListTemplate!P91 -> 0 | Q91: =TypeListTemplate!Q91 -> 0
A92: =TypeListTemplate!A92 -> 0 | B92: =TypeListTemplate!B92 -> 0 | C92: =TypeListTemplate!C92 -> 0 | D92: =TypeListTemplate!D92 -> 0 | E92: =TypeListTemplate!E92 -> 0 | F92: =TypeListTemplate!F92 -> 0 | G92: =TypeListTemplate!G92 -> 0 | H92: =TypeListTemplate!H92 -> 0 | I92: =TypeListTemplate!I92 -> 0 | J92: =TypeListTemplate!J92 -> 0 | K92: =TypeListTemplate!K92 -> 0 | L92: =TypeListTemplate!L92 -> 0 | M92: =TypeListTemplate!M92 -> 0 | N92: =TypeListTemplate!N92 -> 0 | O92: =TypeListTemplate!O92 -> 0 | P92: =TypeListTemplate!P92 -> 0 | Q92: =TypeListTemplate!Q92 -> 0
A93: =TypeListTemplate!A93 -> 0 | B93: =TypeListTemplate!B93 -> 0 | C93: =TypeListTemplate!C93 -> 0 | D93: =TypeListTemplate!D93 -> 0 | E93: =TypeListTemplate!E93 -> 0 | F93: =TypeListTemplate!F93 -> 0 | G93: =TypeListTemplate!G93 -> 0 | H93: =TypeListTemplate!H93 -> 0 | I93: =TypeListTemplate!I93 -> 0 | J93: =TypeListTemplate!J93 -> 0 | K93: =TypeListTemplate!K93 -> 0 | L93: =TypeListTemplate!L93 -> 0 | M93: =TypeListTemplate!M93 -> 0 | N93: =TypeListTemplate!N93 -> 0 | O93: =TypeListTemplate!O93 -> 0 | P93: =TypeListTemplate!P93 -> 0 | Q93: =TypeListTemplate!Q93 -> 0
A94: =TypeListTemplate!A94 -> 0 | B94: =TypeListTemplate!B94 -> 0 | C94: =TypeListTemplate!C94 -> 0 | D94: =TypeListTemplate!D94 -> 0 | E94: =TypeListTemplate!E94 -> 0 | F94: =TypeListTemplate!F94 -> 0 | G94: =TypeListTemplate!G94 -> 0 | H94: =TypeListTemplate!H94 -> 0 | I94: =TypeListTemplate!I94 -> 0 | J94: =TypeListTemplate!J94 -> 0 | K94: =TypeListTemplate!K94 -> 0 | L94: =TypeListTemplate!L94 -> 0 | M94: =TypeListTemplate!M94 -> 0 | N94: =TypeListTemplate!N94 -> 0 | O94: =TypeListTemplate!O94 -> 0 | P94: =TypeListTemplate!P94 -> 0 | Q94: =TypeListTemplate!Q94 -> 0
A95: =TypeListTemplate!A95 -> 0 | B95: =TypeListTemplate!B95 -> 0 | C95: =TypeListTemplate!C95 -> 0 | D95: =TypeListTemplate!D95 -> 0 | E95: =TypeListTemplate!E95 -> 0 | F95: =TypeListTemplate!F95 -> 0 | G95: =TypeListTemplate!G95 -> 0 | H95: =TypeListTemplate!H95 -> 0 | I95: =TypeListTemplate!I95 -> 0 | J95: =TypeListTemplate!J95 -> 0 | K95: =TypeListTemplate!K95 -> 0 | L95: =TypeListTemplate!L95 -> 0 | M95: =TypeListTemplate!M95 -> 0 | N95: =TypeListTemplate!N95 -> 0 | O95: =TypeListTemplate!O95 -> 0 | P95: =TypeListTemplate!P95 -> 0 | Q95: =TypeListTemplate!Q95 -> 0

Sheet ACS310 (hidden)
A1: Typecode | B1: Prod.class | D1: Voltage range 1 | F1: Voltage range 2 (1-ph) | H1: Voltage range 2 | J1: Voltage range 3 | L1: Voltage range 4.6 | N1: Voltage range 5 | P1: Voltage range 7/6
A2: =VLOOKUP(DriveSel!E20,C8:Y70,DriveSel!D18) -> 0 | B2: =VLOOKUP(#REF!,C8:X69,7) ->  | C2: non-US (50Hz) | D2: 115 V (1-ph) | F2: 230 V (1-ph) | H2: 230 V (3-ph) | J2: 400 V | L2: 460 V | N2: 500 V | P2: 690 V
A3: Col.ordinal | B3: Col.ordinal
C4: Alternatives: | D4: 115 V 1-ph | F4: 200/208/230/240 V 1-ph | H4: 200/208/230/240 V 3-ph | J4: 380/400/415 V | L4: 440/460/480 V | N4: 500 V | P4: 525/550/575/600/660/690 V
A5: =TypeListTemplate!A5 -> Motor Power | B5: =TypeListTemplate!B5 -> Motor | C5: =TypeListTemplate!C5 -> 0 | D5: =TypeListTemplate!D5 -> Drive type | E5: =TypeListTemplate!E5 -> 0 | F5: =TypeListTemplate!F5 -> Drive type | G5: =TypeListTemplate!G5 -> 0 | H5: =TypeListTemplate!H5 -> Drive type | I5: =TypeListTemplate!I5 -> 0 | J5: =TypeListTemplate!J5 -> Drive type | K5: =TypeListTemplate!K5 -> 0 | L5: =TypeListTemplate!L5 -> Drive type | M5: =TypeListTemplate!M5 -> 0 | N5: =TypeListTemplate!N5 -> Drive type | O5: =TypeListTemplate!O5 -> 0 | P5: =TypeListTemplate!P5 -> Drive type | Q5: =TypeListTemplate!Q5 -> 0
A6: =TypeListTemplate!A6 -> Hp | B6: =TypeListTemplate!B6 -> power kW
A7: =TypeListTemplate!A7 -> 0 | B7: =TypeListTemplate!B7 -> Column Ordinal -> | C7: =TypeListTemplate!C7 -> 1 | D7: =TypeListTemplate!D7 -> 2 | E7: =TypeListTemplate!E7 -> 3 | F7: =TypeListTemplate!F7 -> 4 | G7: =TypeListTemplate!G7 -> 5 | H7: =TypeListTemplate!H7 -> 6 | I7: =TypeListTemplate!I7 -> 7 | J7: =TypeListTemplate!J7 -> 8 | K7: =TypeListTemplate!K7 -> 9 | L7: =TypeListTemplate!L7 -> 10 | M7: =TypeListTemplate!M7 -> 11 | N7: =TypeListTemplate!N7 -> 12 | O7: =TypeListTemplate!O7 -> 13 | P7: =TypeListTemplate!P7 -> 14 | Q7: =TypeListTemplate!Q7 -> 15
A8: =TypeListTemplate!A8 -> 0 | B8: =TypeListTemplate!B8 -> 0 | C8: =TypeListTemplate!C8 -> 0
A9: =TypeListTemplate!A9 -> 0.07375620223 | B9: =TypeListTemplate!B9 -> 0.055 | C9: =TypeListTemplate!C9 -> 0.01
A10: =TypeListTemplate!A10 -> 0.1206919673 | B10: =TypeListTemplate!B10 -> 0.09 | C10: =TypeListTemplate!C10 -> 0.065 | F10: ACS310-01E-02A4-2
A11: =TypeListTemplate!A11 -> 0.160922623 | B11: =TypeListTemplate!B11 -> 0.12 | C11: =TypeListTemplate!C11 -> 0.1 | F11: ACS310-01E-02A4-2
A12: =TypeListTemplate!A12 -> 0.2413839346 | B12: =TypeListTemplate!B12 -> 0.18 | C12: =TypeListTemplate!C12 -> 0.13 | F12: ACS310-01E-02A4-2
A13: =TypeListTemplate!A13 -> 0.4961780877 | B13: =TypeListTemplate!B13 -> 0.37 | C13: =TypeListTemplate!C13 -> 0.19 | F13: ACS310-01E-02A4-2 | H13: ACS310-03E-02A6-2 | J13: ACS310-03E-01A3-4 | L13: ACS310-03E-01A3-4
A14: =TypeListTemplate!A14 -> 0.7375620223 | B14: =TypeListTemplate!B14 -> 0.55 | C14: =TypeListTemplate!C14 -> 0.38 | F14: ACS310-01E-04A7-2 | H14: ACS310-03E-03A9-2 | J14: ACS310-03E-02A1-4 | L14: ACS310-03E-02A1-4
A15: =TypeListTemplate!A15 -> 1.005766394 | B15: =TypeListTemplate!B15 -> 0.75 | C15: =TypeListTemplate!C15 -> 0.56 | F15: ACS310-01E-04A7-2 | H15: ACS310-03E-05A2-2 | J15: ACS310-03E-02A6-4 | L15: ACS310-03E-02A6-4
A16: =TypeListTemplate!A16 -> 1.475124045 | B16: =TypeListTemplate!B16 -> 1.1 | C16: =TypeListTemplate!C16 -> 0.76 | F16: ACS310-01E-06A7-2 | H16: ACS310-03E-07A4-2 | J16: ACS310-03E-03A6-4 | L16: ACS310-03E-03A6-4
A17: =TypeListTemplate!A17 -> 2.011532788 | B17: =TypeListTemplate!B17 -> 1.5 | C17: =TypeListTemplate!C17 -> 1.11 | F17: ACS310-01E-07A5-2 | H17: ACS310-03E-08A3-2 | J17: ACS310-03E-04A5-4 | L17: ACS310-03E-04A5-4
A18: =TypeListTemplate!A18 -> 2.950248089 | B18: =TypeListTemplate!B18 -> 2.2 | C18: =TypeListTemplate!C18 -> 1.51 | F18: ACS310-01E-09A8-2 | H18: ACS310-03E-10A8-2 | J18: ACS310-03E-06A2-4 | L18: ACS310-03E-06A2-4
A19: =TypeListTemplate!A19 -> 4.023065576 | B19: =TypeListTemplate!B19 -> 3 | C19: =TypeListTemplate!C19 -> 2.21 | H19: ACS310-03E-14A6-2 | J19: ACS310-03E-08A0-4 | L19: ACS310-03E-08A0-4
A20: =TypeListTemplate!A21 -> 5.364087435 | B20: =TypeListTemplate!B21 -> 4 | C20: =TypeListTemplate!C21 -> 3.7385 | H20: ACS310-03E-19A4-2 | J20: ACS310-03E-09A7-4 | L20: ACS310-03E-09A7-4
A21: =TypeListTemplate!A22 -> 7.375620223 | B21: =TypeListTemplate!B22 -> 5.5 | C21: =TypeListTemplate!C22 -> 4.01 | H21: ACS310-03E-26A8-2 | J21: ACS310-03E-13A8-4 | L21: ACS310-03E-13A8-4
A22: =TypeListTemplate!A23 -> 10.05766394 | B22: =TypeListTemplate!B23 -> 7.5 | C22: =TypeListTemplate!C23 -> 5.51 | H22: ACS310-03E-34A1-2 | J22: ACS310-03E-17A2-4 | L22: ACS310-03E-17A2-4
A23: =TypeListTemplate!A24 -> 14.75124045 | B23: =TypeListTemplate!B24 -> 11 | C23: =TypeListTemplate!C24 -> 7.51 | H23: ACS310-03E-50A8-2 | J23: ACS310-03E-25A4-4 | L23: ACS310-03E-25A4-4
A24: =TypeListTemplate!A25 -> 20.11532788 | B24: =TypeListTemplate!B25 -> 15 | C24: =TypeListTemplate!C25 -> 11.01 | J24: ACS310-03E-34A1-4 | L24: ACS310-03E-34A1-4
A25: =TypeListTemplate!A26 -> 24.80890439 | B25: =TypeListTemplate!B26 -> 18.5 | C25: =TypeListTemplate!C26 -> 15.01 | J25: ACS310-03E-41A8-4 | L25: ACS310-03E-41A8-4
A26: =TypeListTemplate!A27 -> 29.50248089 | B26: =TypeListTemplate!B27 -> 22 | C26: =TypeListTemplate!C27 -> 18.51 | J26: ACS310-03E-48A4-4 | L26: ACS310-03E-48A4-4
A27: =TypeListTemplate!A28 -> 40.23065576 | B27: =TypeListTemplate!B28 -> 30 | C27: =TypeListTemplate!C28 -> 22.01
A28: =TypeListTemplate!A29 -> 49.61780877 | B28: =TypeListTemplate!B29 -> 37 | C28: =TypeListTemplate!C29 -> 30.01
A29: =TypeListTemplate!A30 -> 60.34598364 | B29: =TypeListTemplate!B30 -> 45 | C29: =TypeListTemplate!C30 -> 37.01
A30: =TypeListTemplate!A31 -> 73.75620223 | B30: =TypeListTemplate!B31 -> 55 | C30: =TypeListTemplate!C31 -> 45.01
A31: =TypeListTemplate!A32 -> 100.5766394 | B31: =TypeListTemplate!B32 -> 75 | C31: =TypeListTemplate!C32 -> 55.01
A32: =TypeListTemplate!A33 -> 120.6919673 | B32: =TypeListTemplate!B33 -> 90 | C32: =TypeListTemplate!C33 -> 75.01
A33: =TypeListTemplate!A34 -> 147.5124045 | B33: =TypeListTemplate!B34 -> 110 | C33: =TypeListTemplate!C34 -> 90.01
A34: =TypeListTemplate!A35 -> 177.0148853 | B34: =TypeListTemplate!B35 -> 132 | C34: =TypeListTemplate!C35 -> 110.01
A35: =TypeListTemplate!A36 -> 200 | B35: =TypeListTemplate!B36 -> 149.14 | C35: =TypeListTemplate!C36 -> 132.01
A36: =TypeListTemplate!A37 -> 214.5634974 | B36: =TypeListTemplate!B37 -> 160 | C36: =TypeListTemplate!C37 -> 149.15
A37: =TypeListTemplate!A38 -> 250 | B37: =TypeListTemplate!B38 -> 186.425 | C37: =TypeListTemplate!C38 -> 160.01
A38: =TypeListTemplate!A39 -> 268.2043717 | B38: =TypeListTemplate!B39 -> 200 | C38: =TypeListTemplate!C39 -> 186.435
A39: =TypeListTemplate!A40 -> 300 | B39: =TypeListTemplate!B40 -> 223.71 | C39: =TypeListTemplate!C40 -> 200.01
A40: =TypeListTemplate!A41 -> 335.2554647 | B40: =TypeListTemplate!B41 -> 250 | C40: =TypeListTemplate!C41 -> 223.72
A41: =TypeListTemplate!A42 -> 400 | B41: =TypeListTemplate!B42 -> 298.28 | C41: =TypeListTemplate!C42 -> 250.01
A42: =TypeListTemplate!A43 -> 422.4218855 | B42: =TypeListTemplate!B43 -> 315 | C42: =TypeListTemplate!C43 -> 298.29
A43: =TypeListTemplate!A44 -> 476.0627598 | B43: =TypeListTemplate!B44 -> 355 | C43: =TypeListTemplate!C44 -> 315.01
A44: =TypeListTemplate!A45 -> 536.4087435 | B44: =TypeListTemplate!B45 -> 400 | C44: =TypeListTemplate!C45 -> 355.01
A45: =TypeListTemplate!A46 -> 603.4598364 | B45: =TypeListTemplate!B46 -> 450 | C45: =TypeListTemplate!C46 -> 400.01
A46: =TypeListTemplate!A47 -> 670.5109293 | B46: =TypeListTemplate!B47 -> 500 | C46: =TypeListTemplate!C47 -> 450.01
A47: =TypeListTemplate!A48 -> 750.9722408 | B47: =TypeListTemplate!B48 -> 560 | C47: =TypeListTemplate!C48 -> 500.01
A48: =TypeListTemplate!A49 -> 844.843771 | B48: =TypeListTemplate!B49 -> 630 | C48: =TypeListTemplate!C49 -> 560.01
A49: =TypeListTemplate!A50 -> 952.1255196 | B49: =TypeListTemplate!B50 -> 710 | C49: =TypeListTemplate!C50 -> 630.01
A50: =TypeListTemplate!A51 -> 1072.817487 | B50: =TypeListTemplate!B51 -> 800 | C50: =TypeListTemplate!C51 -> 710.01
A51: =TypeListTemplate!A52 -> 1206.919673 | B51: =TypeListTemplate!B52 -> 900 | C51: =TypeListTemplate!C52 -> 800.01
A52: =TypeListTemplate!A53 -> 1341.021859 | B52: =TypeListTemplate!B53 -> 1000 | C52: =TypeListTemplate!C53 -> 900.01
A53: =TypeListTemplate!A54 -> 1501.944482 | B53: =TypeListTemplate!B54 -> 1120 | C53: =TypeListTemplate!C54 -> 1000.01
A54: =TypeListTemplate!A55 -> 1676.277323 | B54: =TypeListTemplate!B55 -> 1250 | C54: =TypeListTemplate!C55 -> 1120.01
A55: =TypeListTemplate!A56 -> 1877.430602 | B55: =TypeListTemplate!B56 -> 1400 | C55: =TypeListTemplate!C56 -> 1250.01
A56: =TypeListTemplate!A57 -> 2145.634974 | B56: =TypeListTemplate!B57 -> 1600 | C56: =TypeListTemplate!C57 -> 1400.01
A57: =TypeListTemplate!A58 -> 2346.788253 | B57: =TypeListTemplate!B58 -> 1750 | C57: =TypeListTemplate!C58 -> 1600.01
A58: =TypeListTemplate!A59 -> 2413.839346 | B58: =TypeListTemplate!B59 -> 1800 | C58: =TypeListTemplate!C59 -> 1750.01
A59: =TypeListTemplate!A60 -> 2682.043717 | B59: =TypeListTemplate!B60 -> 2000 | C59: =TypeListTemplate!C60 -> 1800.01
A60: =TypeListTemplate!A61 -> 2950.248089 | B60: =TypeListTemplate!B61 -> 2200 | C60: =TypeListTemplate!C61 -> 2000.01
A61: =TypeListTemplate!A62 -> 3017.299182 | B61: =TypeListTemplate!B62 -> 2250 | C61: =TypeListTemplate!C62 -> 2200.01
A62: =TypeListTemplate!A63 -> 3084.350275 | B62: =TypeListTemplate!B63 -> 2300 | C62: =TypeListTemplate!C63 -> 2250.01
A63: =TypeListTemplate!A64 -> 3352.554647 | B63: =TypeListTemplate!B64 -> 2500 | C63: =TypeListTemplate!C64 -> 2300.01
A64: =TypeListTemplate!A65 -> 3754.861204 | B64: =TypeListTemplate!B65 -> 2800 | C64: =TypeListTemplate!C65 -> 2500.01
A65: =TypeListTemplate!A66 -> 4224.218855 | B65: =TypeListTemplate!B66 -> 3150 | C65: =TypeListTemplate!C66 -> 2800.01
A66: =TypeListTemplate!A67 -> 4760.627598 | B66: =TypeListTemplate!B67 -> 3550 | C66: =TypeListTemplate!C67 -> 3150.01
A67: =TypeListTemplate!A68 -> 5364.087435 | B67: =TypeListTemplate!B68 -> 4000 | C67: =TypeListTemplate!C68 -> 3550.01
A68: =TypeListTemplate!A69 -> 6034.598364 | B68: =TypeListTemplate!B69 -> 4500 | C68: =TypeListTemplate!C69 -> 4000.01
A69: =TypeListTemplate!A70 -> 6705.109293 | B69: =TypeListTemplate!B70 -> 5000 | C69: =TypeListTemplate!C70 -> 4500.01
A70: =TypeListTemplate!A71 -> 0 | B70: =TypeListTemplate!B71 -> 999999999 | C70: =TypeListTemplate!C71 -> 5000.01
A71: =TypeListTemplate!A72 -> 0 | B71: =TypeListTemplate!B72 -> 0 | C71: =TypeListTemplate!C72 -> 0
A72: =TypeListTemplate!A73 -> 0 | B72: =TypeListTemplate!B73 -> 0 | C72: =TypeListTemplate!C73 -> 0 | D72: =TypeListTemplate!D73 -> Drive type | E72: =TypeListTemplate!E73 -> 0 | F72: =TypeListTemplate!F73 -> Drive type | G72: =TypeListTemplate!G73 -> 0 | H72: =TypeListTemplate!H73 -> Drive type | I72: =TypeListTemplate!I73 -> 0 | J72: =TypeListTemplate!J73 -> Drive type | K72: =TypeListTemplate!K73 -> 0 | L72: =TypeListTemplate!L73 -> Drive type | M72: =TypeListTemplate!M73 -> 0 | N72: =TypeListTemplate!N73 -> Drive type | O72: =TypeListTemplate!O73 -> 0 | P72: =TypeListTemplate!P73 -> Drive type | Q72: =TypeListTemplate!Q73 -> 0
A73: =TypeListTemplate!A74 -> 0 | B73: =TypeListTemplate!B74 -> 0 | C73: =TypeListTemplate!C74 -> 0 | D73: =TypeListTemplate!D74 -> 115 V (1-ph) | E73: =TypeListTemplate!E74 -> 0 | F73: =TypeListTemplate!F74 -> 230 V (1-ph) | G73: =TypeListTemplate!G74 -> 0 | H73: =TypeListTemplate!H74 -> 230 V (3-ph) | I73: =TypeListTemplate!I74 -> 0 | J73: =TypeListTemplate!J74 -> 400 V | K73: =TypeListTemplate!K74 -> 0 | L73: =TypeListTemplate!L74 -> 460 V | M73: =TypeListTemplate!M74 -> 0 | N73: =TypeListTemplate!N74 -> 500 V | O73: =TypeListTemplate!O74 -> 0 | P73: =TypeListTemplate!P74 -> 690 V | Q73: =TypeListTemplate!Q74 -> 0
A74: =TypeListTemplate!A75 -> 0 | B74: =TypeListTemplate!B75 -> 0 | C74: =TypeListTemplate!C75 -> 0 | D74: =TypeListTemplate!D75 -> 0 | E74: =TypeListTemplate!E75 -> 0 | F74: =TypeListTemplate!F75 -> 0 | G74: =TypeListTemplate!G75 -> 0 | H74: =TypeListTemplate!H75 -> 0 | I74: =TypeListTemplate!I75 -> 0 | J74: =TypeListTemplate!J75 -> 0 | K74: =TypeListTemplate!K75 -> 0 | L74: =TypeListTemplate!L75 -> 0 | M74: =TypeListTemplate!M75 -> 0 | N74: =TypeListTemplate!N75 -> 0 | O74: =TypeListTemplate!O75 -> 0 | P74: =TypeListTemplate!P75 -> 0 | Q74: =TypeListTemplate!Q75 -> 0
A75: =TypeListTemplate!A76 -> 0 | B75: =TypeListTemplate!B76 -> 0 | C75: =TypeListTemplate!C76 -> 0 | D75: =TypeListTemplate!D76 -> 0 | E75: =TypeListTemplate!E76 -> 0 | F75: =TypeListTemplate!F76 -> 0 | G75: =TypeListTemplate!G76 -> 0 | H75: =TypeListTemplate!H76 -> 0 | I75: =TypeListTemplate!I76 -> 0 | J75: =TypeListTemplate!J76 -> 0 | K75: =TypeListTemplate!K76 -> 0 | L75: =TypeListTemplate!L76 -> 0 | M75: =TypeListTemplate!M76 -> 0 | N75: =TypeListTemplate!N76 -> 0 | O75: =TypeListTemplate!O76 -> 0 | P75: =TypeListTemplate!P76 -> 0 | Q75: =TypeListTemplate!Q76 -> 0
A76: =TypeListTemplate!A77 -> 0 | B76: =TypeListTemplate!B77 -> 0 | C76: =TypeListTemplate!C77 -> 0 | D76: =TypeListTemplate!D77 -> 0 | E76: =TypeListTemplate!E77 -> 0 | F76: =TypeListTemplate!F77 -> 0 | G76: =TypeListTemplate!G77 -> 0 | H76: =TypeListTemplate!H77 -> 0 | I76: =TypeListTemplate!I77 -> 0 | J76: =TypeListTemplate!J77 -> 0 | K76: =TypeListTemplate!K77 -> 0 | L76: =TypeListTemplate!L77 -> 0 | M76: =TypeListTemplate!M77 -> 0 | N76: =TypeListTemplate!N77 -> 0 | O76: =TypeListTemplate!O77 -> 0 | P76: =TypeListTemplate!P77 -> 0 | Q76: =TypeListTemplate!Q77 -> 0
A77: =TypeListTemplate!A78 -> 0 | B77: =TypeListTemplate!B78 -> 0 | C77: =TypeListTemplate!C78 -> 0 | D77: =TypeListTemplate!D78 -> 0 | E77: =TypeListTemplate!E78 -> 0 | F77: =TypeListTemplate!F78 -> 0 | G77: =TypeListTemplate!G78 -> 0 | H77: =TypeListTemplate!H78 -> 0 | I77: =TypeListTemplate!I78 -> 0 | J77: =TypeListTemplate!J78 -> 0 | K77: =TypeListTemplate!K78 -> 0 | L77: =TypeListTemplate!L78 -> 0 | M77: =TypeListTemplate!M78 -> 0 | N77: =TypeListTemplate!N78 -> 0 | O77: =TypeListTemplate!O78 -> 0 | P77: =TypeListTemplate!P78 -> 0 | Q77: =TypeListTemplate!Q78 -> 0
A78: =TypeListTemplate!A79 -> 0 | B78: =TypeListTemplate!B79 -> 0 | C78: =TypeListTemplate!C79 -> 0 | D78: =TypeListTemplate!D79 -> 0 | E78: =TypeListTemplate!E79 -> 0 | F78: =TypeListTemplate!F79 -> 0 | G78: =TypeListTemplate!G79 -> 0 | H78: =TypeListTemplate!H79 -> 0 | I78: =TypeListTemplate!I79 -> 0 | J78: =TypeListTemplate!J79 -> 0 | K78: =TypeListTemplate!K79 -> 0 | L78: =TypeListTemplate!L79 -> 0 | M78: =TypeListTemplate!M79 -> 0 | N78: =TypeListTemplate!N79 -> 0 | O78: =TypeListTemplate!O79 -> 0 | P78: =TypeListTemplate!P79 -> 0 | Q78: =TypeListTemplate!Q79 -> 0
A79: =TypeListTemplate!A80 -> 0 | B79: =TypeListTemplate!B80 -> 0 | C79: =TypeListTemplate!C80 -> 0 | D79: =TypeListTemplate!D80 -> 0 | E79: =TypeListTemplate!E80 -> 0 | F79: =TypeListTemplate!F80 -> 0 | G79: =TypeListTemplate!G80 -> 0 | H79: =TypeListTemplate!H80 -> 0 | I79: =TypeListTemplate!I80 -> 0 | J79: =TypeListTemplate!J80 -> 0 | K79: =TypeListTemplate!K80 -> 0 | L79: =TypeListTemplate!L80 -> 0 | M79: =TypeListTemplate!M80 -> 0 | N79: =TypeListTemplate!N80 -> 0 | O79: =TypeListTemplate!O80 -> 0 | P79: =TypeListTemplate!P80 -> 0 | Q79: =TypeListTemplate!Q80 -> 0
A80: =TypeListTemplate!A81 -> 0 | B80: =TypeListTemplate!B81 -> 0 | C80: =TypeListTemplate!C81 -> 0 | D80: =TypeListTemplate!D81 -> 0 | E80: =TypeListTemplate!E81 -> 0 | F80: =TypeListTemplate!F81 -> 0 | G80: =TypeListTemplate!G81 -> 0 | H80: =TypeListTemplate!H81 -> 0 | I80: =TypeListTemplate!I81 -> 0 | J80: =TypeListTemplate!J81 -> 0 | K80: =TypeListTemplate!K81 -> 0 | L80: =TypeListTemplate!L81 -> 0 | M80: =TypeListTemplate!M81 -> 0 | N80: =TypeListTemplate!N81 -> 0 | O80: =TypeListTemplate!O81 -> 0 | P80: =TypeListTemplate!P81 -> 0 | Q80: =TypeListTemplate!Q81 -> 0
A81: =TypeListTemplate!A82 -> 0 | B81: =TypeListTemplate!B82 -> 0 | C81: =TypeListTemplate!C82 -> 0 | D81: =TypeListTemplate!D82 -> 0 | E81: =TypeListTemplate!E82 -> 0 | F81: =TypeListTemplate!F82 -> 0 | G81: =TypeListTemplate!G82 -> 0 | H81: =TypeListTemplate!H82 -> 0 | I81: =TypeListTemplate!I82 -> 0 | J81: =TypeListTemplate!J82 -> 0 | K81: =TypeListTemplate!K82 -> 0 | L81: =TypeListTemplate!L82 -> 0 | M81: =TypeListTemplate!M82 -> 0 | N81: =TypeListTemplate!N82 -> 0 | O81: =TypeListTemplate!O82 -> 0 | P81: =TypeListTemplate!P82 -> 0 | Q81: =TypeListTemplate!Q82 -> 0
A82: =TypeListTemplate!A83 -> 0 | B82: =TypeListTemplate!B83 -> 0 | C82: =TypeListTemplate!C83 -> 0 | D82: =TypeListTemplate!D83 -> 0 | E82: =TypeListTemplate!E83 -> 0 | F82: =TypeListTemplate!F83 -> 0 | G82: =TypeListTemplate!G83 -> 0 | H82: =TypeListTemplate!H83 -> 0 | I82: =TypeListTemplate!I83 -> 0 | J82: =TypeListTemplate!J83 -> 0 | K82: =TypeListTemplate!K83 -> 0 | L82: =TypeListTemplate!L83 -> 0 | M82: =TypeListTemplate!M83 -> 0 | N82: =TypeListTemplate!N83 -> 0 | O82: =TypeListTemplate!O83 -> 0 | P82: =TypeListTemplate!P83 -> 0 | Q82: =TypeListTemplate!Q83 -> 0
A83: =TypeListTemplate!A84 -> 0 | B83: =TypeListTemplate!B84 -> 0 | C83: =TypeListTemplate!C84 -> 0 | D83: =TypeListTemplate!D84 -> 0 | E83: =TypeListTemplate!E84 -> 0 | F83: =TypeListTemplate!F84 -> 0 | G83: =TypeListTemplate!G84 -> 0 | H83: =TypeListTemplate!H84 -> 0 | I83: =TypeListTemplate!I84 -> 0 | J83: =TypeListTemplate!J84 -> 0 | K83: =TypeListTemplate!K84 -> 0 | L83: =TypeListTemplate!L84 -> 0 | M83: =TypeListTemplate!M84 -> 0 | N83: =TypeListTemplate!N84 -> 0 | O83: =TypeListTemplate!O84 -> 0 | P83: =TypeListTemplate!P84 -> 0 | Q83: =TypeListTemplate!Q84 -> 0
A84: =TypeListTemplate!A85 -> 0 | B84: =TypeListTemplate!B85 -> 0 | C84: =TypeListTemplate!C85 -> 0 | D84: =TypeListTemplate!D85 -> 0 | E84: =TypeListTemplate!E85 -> 0 | F84: =TypeListTemplate!F85 -> 0 | G84: =TypeListTemplate!G85 -> 0 | H84: =TypeListTemplate!H85 -> 0 | I84: =TypeListTemplate!I85 -> 0 | J84: =TypeListTemplate!J85 -> 0 | K84: =TypeListTemplate!K85 -> 0 | L84: =TypeListTemplate!L85 -> 0 | M84: =TypeListTemplate!M85 -> 0 | N84: =TypeListTemplate!N85 -> 0 | O84: =TypeListTemplate!O85 -> 0 | P84: =TypeListTemplate!P85 -> 0 | Q84: =TypeListTemplate!Q85 -> 0
A85: =TypeListTemplate!A86 -> 0 | B85: =TypeListTemplate!B86 -> 0 | C85: =TypeListTemplate!C86 -> 0 | D85: =TypeListTemplate!D86 -> 0 | E85: =TypeListTemplate!E86 -> 0 | F85: =TypeListTemplate!F86 -> 0 | G85: =TypeListTemplate!G86 -> 0 | H85: =TypeListTemplate!H86 -> 0 | I85: =TypeListTemplate!I86 -> 0 | J85: =TypeListTemplate!J86 -> 0 | K85: =TypeListTemplate!K86 -> 0 | L85: =TypeListTemplate!L86 -> 0 | M85: =TypeListTemplate!M86 -> 0 | N85: =TypeListTemplate!N86 -> 0 | O85: =TypeListTemplate!O86 -> 0 | P85: =TypeListTemplate!P86 -> 0 | Q85: =TypeListTemplate!Q86 -> 0
A86: =TypeListTemplate!A87 -> 0 | B86: =TypeListTemplate!B87 -> 0 | C86: =TypeListTemplate!C87 -> 0 | D86: =TypeListTemplate!D87 -> 0 | E86: =TypeListTemplate!E87 -> 0 | F86: =TypeListTemplate!F87 -> 0 | G86: =TypeListTemplate!G87 -> 0 | H86: =TypeListTemplate!H87 -> 0 | I86: =TypeListTemplate!I87 -> 0 | J86: =TypeListTemplate!J87 -> 0 | K86: =TypeListTemplate!K87 -> 0 | L86: =TypeListTemplate!L87 -> 0 | M86: =TypeListTemplate!M87 -> 0 | N86: =TypeListTemplate!N87 -> 0 | O86: =TypeListTemplate!O87 -> 0 | P86: =TypeListTemplate!P87 -> 0 | Q86: =TypeListTemplate!Q87 -> 0
A87: =TypeListTemplate!A88 -> 0 | B87: =TypeListTemplate!B88 -> 0 | C87: =TypeListTemplate!C88 -> 0 | D87: =TypeListTemplate!D88 -> 0 | E87: =TypeListTemplate!E88 -> 0 | F87: =TypeListTemplate!F88 -> 0 | G87: =TypeListTemplate!G88 -> 0 | H87: =TypeListTemplate!H88 -> 0 | I87: =TypeListTemplate!I88 -> 0 | J87: =TypeListTemplate!J88 -> 0 | K87: =TypeListTemplate!K88 -> 0 | L87: =TypeListTemplate!L88 -> 0 | M87: =TypeListTemplate!M88 -> 0 | N87: =TypeListTemplate!N88 -> 0 | O87: =TypeListTemplate!O88 -> 0 | P87: =TypeListTemplate!P88 -> 0 | Q87: =TypeListTemplate!Q88 -> 0
A88: =TypeListTemplate!A89 -> 0 | B88: =TypeListTemplate!B89 -> 0 | C88: =TypeListTemplate!C89 -> 0 | D88: =TypeListTemplate!D89 -> 0 | E88: =TypeListTemplate!E89 -> 0 | F88: =TypeListTemplate!F89 -> 0 | G88: =TypeListTemplate!G89 -> 0 | H88: =TypeListTemplate!H89 -> 0 | I88: =TypeListTemplate!I89 -> 0 | J88: =TypeListTemplate!J89 -> 0 | K88: =TypeListTemplate!K89 -> 0 | L88: =TypeListTemplate!L89 -> 0 | M88: =TypeListTemplate!M89 -> 0 | N88: =TypeListTemplate!N89 -> 0 | O88: =TypeListTemplate!O89 -> 0 | P88: =TypeListTemplate!P89 -> 0 | Q88: =TypeListTemplate!Q89 -> 0
A89: =TypeListTemplate!A90 -> 0 | B89: =TypeListTemplate!B90 -> 0 | C89: =TypeListTemplate!C90 -> 0 | D89: =TypeListTemplate!D90 -> 0 | E89: =TypeListTemplate!E90 -> 0 | F89: =TypeListTemplate!F90 -> 0 | G89: =TypeListTemplate!G90 -> 0 | H89: =TypeListTemplate!H90 -> 0 | I89: =TypeListTemplate!I90 -> 0 | J89: =TypeListTemplate!J90 -> 0 | K89: =TypeListTemplate!K90 -> 0 | L89: =TypeListTemplate!L90 -> 0 | M89: =TypeListTemplate!M90 -> 0 | N89: =TypeListTemplate!N90 -> 0 | O89: =TypeListTemplate!O90 -> 0 | P89: =TypeListTemplate!P90 -> 0 | Q89: =TypeListTemplate!Q90 -> 0
A90: =TypeListTemplate!A91 -> 0 | B90: =TypeListTemplate!B91 -> 0 | C90: =TypeListTemplate!C91 -> 0 | D90: =TypeListTemplate!D91 -> 0 | E90: =TypeListTemplate!E91 -> 0 | F90: =TypeListTemplate!F91 -> 0 | G90: =TypeListTemplate!G91 -> 0 | H90: =TypeListTemplate!H91 -> 0 | I90: =TypeListTemplate!I91 -> 0 | J90: =TypeListTemplate!J91 -> 0 | K90: =TypeListTemplate!K91 -> 0 | L90: =TypeListTemplate!L91 -> 0 | M90: =TypeListTemplate!M91 -> 0 | N90: =TypeListTemplate!N91 -> 0 | O90: =TypeListTemplate!O91 -> 0 | P90: =TypeListTemplate!P91 -> 0 | Q90: =TypeListTemplate!Q91 -> 0
A91: =TypeListTemplate!A92 -> 0 | B91: =TypeListTemplate!B92 -> 0 | C91: =TypeListTemplate!C92 -> 0 | D91: =TypeListTemplate!D92 -> 0 | E91: =TypeListTemplate!E92 -> 0 | F91: =TypeListTemplate!F92 -> 0 | G91: =TypeListTemplate!G92 -> 0 | H91: =TypeListTemplate!H92 -> 0 | I91: =TypeListTemplate!I92 -> 0 | J91: =TypeListTemplate!J92 -> 0 | K91: =TypeListTemplate!K92 -> 0 | L91: =TypeListTemplate!L92 -> 0 | M91: =TypeListTemplate!M92 -> 0 | N91: =TypeListTemplate!N92 -> 0 | O91: =TypeListTemplate!O92 -> 0 | P91: =TypeListTemplate!P92 -> 0 | Q91: =TypeListTemplate!Q92 -> 0
A92: =TypeListTemplate!A93 -> 0 | B92: =TypeListTemplate!B93 -> 0 | C92: =TypeListTemplate!C93 -> 0 | D92: =TypeListTemplate!D93 -> 0 | E92: =TypeListTemplate!E93 -> 0 | F92: =TypeListTemplate!F93 -> 0 | G92: =TypeListTemplate!G93 -> 0 | H92: =TypeListTemplate!H93 -> 0 | I92: =TypeListTemplate!I93 -> 0 | J92: =TypeListTemplate!J93 -> 0 | K92: =TypeListTemplate!K93 -> 0 | L92: =TypeListTemplate!L93 -> 0 | M92: =TypeListTemplate!M93 -> 0 | N92: =TypeListTemplate!N93 -> 0 | O92: =TypeListTemplate!O93 -> 0 | P92: =TypeListTemplate!P93 -> 0 | Q92: =TypeListTemplate!Q93 -> 0
A93: =TypeListTemplate!A94 -> 0 | B93: =TypeListTemplate!B94 -> 0 | C93: =TypeListTemplate!C94 -> 0 | D93: =TypeListTemplate!D94 -> 0 | E93: =TypeListTemplate!E94 -> 0 | F93: =TypeListTemplate!F94 -> 0 | G93: =TypeListTemplate!G94 -> 0 | H93: =TypeListTemplate!H94 -> 0 | I93: =TypeListTemplate!I94 -> 0 | J93: =TypeListTemplate!J94 -> 0 | K93: =TypeListTemplate!K94 -> 0 | L93: =TypeListTemplate!L94 -> 0 | M93: =TypeListTemplate!M94 -> 0 | N93: =TypeListTemplate!N94 -> 0 | O93: =TypeListTemplate!O94 -> 0 | P93: =TypeListTemplate!P94 -> 0 | Q93: =TypeListTemplate!Q94 -> 0
A94: =TypeListTemplate!A95 -> 0 | B94: =TypeListTemplate!B95 -> 0 | C94: =TypeListTemplate!C95 -> 0 | D94: =TypeListTemplate!D95 -> 0 | E94: =TypeListTemplate!E95 -> 0 | F94: =TypeListTemplate!F95 -> 0 | G94: 0 | H94: =TypeListTemplate!H95 -> 0 | I94: =TypeListTemplate!I95 -> 0 | J94: =TypeListTemplate!J95 -> 0 | K94: =TypeListTemplate!K95 -> 0 | L94: =TypeListTemplate!L95 -> 0 | M94: =TypeListTemplate!M95 -> 0 | N94: =TypeListTemplate!N95 -> 0 | O94: =TypeListTemplate!O95 -> 0 | P94: =TypeListTemplate!P95 -> 0 | Q94: =TypeListTemplate!Q95 -> 0

Sheet ACS355 (hidden)
A1: Typecode | B1: Prod.class | D1: Voltage range 1 | F1: Voltage range 2 (1-ph) | H1: Voltage range 2 | J1: Voltage range 3 | L1: Voltage range 4.6 | N1: Voltage range 5 | P1: Voltage range 7/6
A2: =VLOOKUP(DriveSel!E20,C8:Y71,DriveSel!D18) -> 0 | B2: =VLOOKUP(#REF!,C8:X70,7) ->  | C2: non-US (50Hz) | D2: 115 V (1-ph) | F2: 230 V (1-ph) | H2: 230 V (3-ph) | J2: 400 V | L2: 460 V | N2: 500 V | P2: 690 V
A3: Col.ordinal | B3: Col.ordinal
C4: Alternatives: | D4: 115 V 1-ph | F4: 200/208/230/240 V 1-ph | H4: 200/208/230/240 V 3-ph | J4: 380/400/415 V | L4: 440/460/480 V | N4: 500 V | P4: 525/550/575/600/660/690 V
A5: =TypeListTemplate!A5 -> Motor Power | B5: =TypeListTemplate!B5 -> Motor | C5: =TypeListTemplate!C5 -> 0 | D5: =TypeListTemplate!D5 -> Drive type | E5: =TypeListTemplate!E5 -> 0 | F5: =TypeListTemplate!F5 -> Drive type | G5: =TypeListTemplate!G5 -> 0 | H5: =TypeListTemplate!H5 -> Drive type | I5: =TypeListTemplate!I5 -> 0 | J5: =TypeListTemplate!J5 -> Drive type | K5: =TypeListTemplate!K5 -> 0 | L5: =TypeListTemplate!L5 -> Drive type | M5: =TypeListTemplate!M5 -> 0 | N5: =TypeListTemplate!N5 -> Drive type | O5: =TypeListTemplate!O5 -> 0 | P5: =TypeListTemplate!P5 -> Drive type | Q5: =TypeListTemplate!Q5 -> 0
A6: =TypeListTemplate!A6 -> Hp | B6: =TypeListTemplate!B6 -> power kW
A7: =TypeListTemplate!A7 -> 0 | B7: =TypeListTemplate!B7 -> Column Ordinal -> | C7: =TypeListTemplate!C7 -> 1 | D7: =TypeListTemplate!D7 -> 2 | E7: =TypeListTemplate!E7 -> 3 | F7: =TypeListTemplate!F7 -> 4 | G7: =TypeListTemplate!G7 -> 5 | H7: =TypeListTemplate!H7 -> 6 | I7: =TypeListTemplate!I7 -> 7 | J7: =TypeListTemplate!J7 -> 8 | K7: =TypeListTemplate!K7 -> 9 | L7: =TypeListTemplate!L7 -> 10 | M7: =TypeListTemplate!M7 -> 11 | N7: =TypeListTemplate!N7 -> 12 | O7: =TypeListTemplate!O7 -> 13 | P7: =TypeListTemplate!P7 -> 14 | Q7: =TypeListTemplate!Q7 -> 15
A8: =TypeListTemplate!A8 -> 0 | B8: =TypeListTemplate!B8 -> 0 | C8: =TypeListTemplate!C8 -> 0
A9: =TypeListTemplate!A9 -> 0.07375620223 | B9: =TypeListTemplate!B9 -> 0.055 | C9: =TypeListTemplate!C9 -> 0.01
A10: =TypeListTemplate!A10 -> 0.1206919673 | B10: =TypeListTemplate!B10 -> 0.09 | C10: =TypeListTemplate!C10 -> 0.065 | F10: ACS355-01E-02A4-2
A11: =TypeListTemplate!A11 -> 0.160922623 | B11: =TypeListTemplate!B11 -> 0.12 | C11: =TypeListTemplate!C11 -> 0.1 | F11: ACS355-01E-02A4-2 | H11: ACS355-03E-02A4-2 | J11: ACS355-03E-01A2-4 | L11: ACS355-03E-01A2-4
A12: =TypeListTemplate!A12 -> 0.2413839346 | B12: =TypeListTemplate!B12 -> 0.18 | C12: =TypeListTemplate!C12 -> 0.13 | F12: ACS355-01E-02A4-2 | H12: ACS355-03E-02A4-2 | J12: ACS355-03E-01A2-4 | L12: ACS355-03E-01A2-4
A13: =TypeListTemplate!A13 -> 0.4961780877 | B13: =TypeListTemplate!B13 -> 0.37 | C13: =TypeListTemplate!C13 -> 0.19 | F13: ACS355-01E-02A4-2 | H13: ACS355-03E-02A4-2 | J13: ACS355-03E-01A2-4 | L13: ACS355-03E-01A2-4
A14: =TypeListTemplate!A14 -> 0.7375620223 | B14: =TypeListTemplate!B14 -> 0.55 | C14: =TypeListTemplate!C14 -> 0.38 | F14: ACS355-01E-04A7-2 | H14: ACS355-03E-03A5-2 | J14: ACS355-03E-01A9-4 | L14: ACS355-03E-01A9-4
A15: =TypeListTemplate!A15 -> 1.005766394 | B15: =TypeListTemplate!B15 -> 0.75 | C15: =TypeListTemplate!C15 -> 0.56 | F15: ACS355-01E-04A7-2 | H15: ACS355-03E-04A7-2 | J15: ACS355-03E-02A4-4 | L15: ACS355-03E-02A4-4
A16: =TypeListTemplate!A16 -> 1.475124045 | B16: =TypeListTemplate!B16 -> 1.1 | C16: =TypeListTemplate!C16 -> 0.76 | F16: ACS355-01E-06A7-2 | H16: ACS355-03E-06A7-2 | J16: ACS355-03E-03A3-4 | L16: ACS355-03E-03A3-4
A17: =TypeListTemplate!A17 -> 2.011532788 | B17: =TypeListTemplate!B17 -> 1.5 | C17: =TypeListTemplate!C17 -> 1.11 | F17: ACS355-01E-07A5-2 | H17: ACS355-03E-07A5-2 | J17: ACS355-03E-04A1-4 | L17: ACS355-03E-04A1-4
A18: =TypeListTemplate!A18 -> 2.950248089 | B18: =TypeListTemplate!B18 -> 2.2 | C18: =TypeListTemplate!C18 -> 1.51 | F18: ACS355-01E-09A8-2 | H18: ACS355-03E-09A8-2 | J18: ACS355-03E-05A6-4 | L18: ACS355-03E-05A6-4
A19: =TypeListTemplate!A19 -> 4.023065576 | B19: =TypeListTemplate!B19 -> 3 | C19: =TypeListTemplate!C19 -> 2.21 | H19: ACS355-03E-13A3-2 | J19: ACS355-03E-07A3-4 | L19: ACS355-03E-07A3-4
A20: =TypeListTemplate!A20 -> 5 | B20: =TypeListTemplate!B20 -> 3.7285 | C20: =TypeListTemplate!C20 -> 3.01 | H20: ACS355-03E-17A6-2 | J20: ACS355-03E-08A8-4 | L20: ACS355-03E-07A3-4
A21: =TypeListTemplate!A21 -> 5.364087435 | B21: =TypeListTemplate!B21 -> 4 | C21: =TypeListTemplate!C21 -> 3.7385 | H21: ACS355-03E-17A6-2 | J21: ACS355-03E-08A8-4 | L21: ACS355-03E-08A8-4
A22: =TypeListTemplate!A22 -> 7.375620223 | B22: =TypeListTemplate!B22 -> 5.5 | C22: =TypeListTemplate!C22 -> 4.01 | H22: ACS355-03E-24A4-2 | J22: ACS355-03E-12A5-4 | L22: ACS355-03E-12A5-4
A23: =TypeListTemplate!A23 -> 10.05766394 | B23: =TypeListTemplate!B23 -> 7.5 | C23: =TypeListTemplate!C23 -> 5.51 | H23: ACS355-03E-31A0-2 | J23: ACS355-03E-15A6-4 | L23: ACS355-03E-15A6-4
A24: =TypeListTemplate!A24 -> 14.75124045 | B24: =TypeListTemplate!B24 -> 11 | C24: =TypeListTemplate!C24 -> 7.51 | H24: ACS355-03E-46A2-2 | J24: ACS355-03E-23A1-4 | L24: ACS355-03E-23A1-4
A25: =TypeListTemplate!A25 -> 20.11532788 | B25: =TypeListTemplate!B25 -> 15 | C25: =TypeListTemplate!C25 -> 11.01 | J25: ACS355-03E-31A0-4 | L25: ACS355-03E-31A0-4
A26: =TypeListTemplate!A26 -> 24.80890439 | B26: =TypeListTemplate!B26 -> 18.5 | C26: =TypeListTemplate!C26 -> 15.01 | J26: ACS355-03E-38A0-4 | L26: ACS355-03E-38A0-4
A27: =TypeListTemplate!A27 -> 29.50248089 | B27: =TypeListTemplate!B27 -> 22 | C27: =TypeListTemplate!C27 -> 18.51 | J27: ACS355-03E-44A0-4 | L27: ACS355-03E-44A0-4
A28: =TypeListTemplate!A28 -> 40.23065576 | B28: =TypeListTemplate!B28 -> 30 | C28: =TypeListTemplate!C28 -> 22.01
A29: =TypeListTemplate!A29 -> 49.61780877 | B29: =TypeListTemplate!B29 -> 37 | C29: =TypeListTemplate!C29 -> 30.01
A30: =TypeListTemplate!A30 -> 60.34598364 | B30: =TypeListTemplate!B30 -> 45 | C30: =TypeListTemplate!C30 -> 37.01
A31: =TypeListTemplate!A31 -> 73.75620223 | B31: =TypeListTemplate!B31 -> 55 | C31: =TypeListTemplate!C31 -> 45.01
A32: =TypeListTemplate!A32 -> 100.5766394 | B32: =TypeListTemplate!B32 -> 75 | C32: =TypeListTemplate!C32 -> 55.01
A33: =TypeListTemplate!A33 -> 120.6919673 | B33: =TypeListTemplate!B33 -> 90 | C33: =TypeListTemplate!C33 -> 75.01
A34: =TypeListTemplate!A34 -> 147.5124045 | B34: =TypeListTemplate!B34 -> 110 | C34: =TypeListTemplate!C34 -> 90.01
A35: =TypeListTemplate!A35 -> 177.0148853 | B35: =TypeListTemplate!B35 -> 132 | C35: =TypeListTemplate!C35 -> 110.01
A36: =TypeListTemplate!A36 -> 200 | B36: =TypeListTemplate!B36 -> 149.14 | C36: =TypeListTemplate!C36 -> 132.01
A37: =TypeListTemplate!A37 -> 214.5634974 | B37: =TypeListTemplate!B37 -> 160 | C37: =TypeListTemplate!C37 -> 149.15
A38: =TypeListTemplate!A38 -> 250 | B38: =TypeListTemplate!B38 -> 186.425 | C38: =TypeListTemplate!C38 -> 160.01
A39: =TypeListTemplate!A39 -> 268.2043717 | B39: =TypeListTemplate!B39 -> 200 | C39: =TypeListTemplate!C39 -> 186.435
A40: =TypeListTemplate!A40 -> 300 | B40: =TypeListTemplate!B40 -> 223.71 | C40: =TypeListTemplate!C40 -> 200.01
A41: =TypeListTemplate!A41 -> 335.2554647 | B41: =TypeListTemplate!B41 -> 250 | C41: =TypeListTemplate!C41 -> 223.72
A42: =TypeListTemplate!A42 -> 400 | B42: =TypeListTemplate!B42 -> 298.28 | C42: =TypeListTemplate!C42 -> 250.01
A43: =TypeListTemplate!A43 -> 422.4218855 | B43: =TypeListTemplate!B43 -> 315 | C43: =TypeListTemplate!C43 -> 298.29
A44: =TypeListTemplate!A44 -> 476.0627598 | B44: =TypeListTemplate!B44 -> 355 | C44: =TypeListTemplate!C44 -> 315.01
A45: =TypeListTemplate!A45 -> 536.4087435 | B45: =TypeListTemplate!B45 -> 400 | C45: =TypeListTemplate!C45 -> 355.01
A46: =TypeListTemplate!A46 -> 603.4598364 | B46: =TypeListTemplate!B46 -> 450 | C46: =TypeListTemplate!C46 -> 400.01
A47: =TypeListTemplate!A47 -> 670.5109293 | B47: =TypeListTemplate!B47 -> 500 | C47: =TypeListTemplate!C47 -> 450.01
A48: =TypeListTemplate!A48 -> 750.9722408 | B48: =TypeListTemplate!B48 -> 560 | C48: =TypeListTemplate!C48 -> 500.01
A49: =TypeListTemplate!A49 -> 844.843771 | B49: =TypeListTemplate!B49 -> 630 | C49: =TypeListTemplate!C49 -> 560.01
A50: =TypeListTemplate!A50 -> 952.1255196 | B50: =TypeListTemplate!B50 -> 710 | C50: =TypeListTemplate!C50 -> 630.01
A51: =TypeListTemplate!A51 -> 1072.817487 | B51: =TypeListTemplate!B51 -> 800 | C51: =TypeListTemplate!C51 -> 710.01
A52: =TypeListTemplate!A52 -> 1206.919673 | B52: =TypeListTemplate!B52 -> 900 | C52: =TypeListTemplate!C52 -> 800.01
A53: =TypeListTemplate!A53 -> 1341.021859 | B53: =TypeListTemplate!B53 -> 1000 | C53: =TypeListTemplate!C53 -> 900.01
A54: =TypeListTemplate!A54 -> 1501.944482 | B54: =TypeListTemplate!B54 -> 1120 | C54: =TypeListTemplate!C54 -> 1000.01
A55: =TypeListTemplate!A55 -> 1676.277323 | B55: =TypeListTemplate!B55 -> 1250 | C55: =TypeListTemplate!C55 -> 1120.01
A56: =TypeListTemplate!A56 -> 1877.430602 | B56: =TypeListTemplate!B56 -> 1400 | C56: =TypeListTemplate!C56 -> 1250.01
A57: =TypeListTemplate!A57 -> 2145.634974 | B57: =TypeListTemplate!B57 -> 1600 | C57: =TypeListTemplate!C57 -> 1400.01
A58: =TypeListTemplate!A58 -> 2346.788253 | B58: =TypeListTemplate!B58 -> 1750 | C58: =TypeListTemplate!C58 -> 1600.01
A59: =TypeListTemplate!A59 -> 2413.839346 | B59: =TypeListTemplate!B59 -> 1800 | C59: =TypeListTemplate!C59 -> 1750.01
A60: =TypeListTemplate!A60 -> 2682.043717 | B60: =TypeListTemplate!B60 -> 2000 | C60: =TypeListTemplate!C60 -> 1800.01
A61: =TypeListTemplate!A61 -> 2950.248089 | B61: =TypeListTemplate!B61 -> 2200 | C61: =TypeListTemplate!C61 -> 2000.01
A62: =TypeListTemplate!A62 -> 3017.299182 | B62: =TypeListTemplate!B62 -> 2250 | C62: =TypeListTemplate!C62 -> 2200.01
A63: =TypeListTemplate!A63 -> 3084.350275 | B63: =TypeListTemplate!B63 -> 2300 | C63: =TypeListTemplate!C63 -> 2250.01
A64: =TypeListTemplate!A64 -> 3352.554647 | B64: =TypeListTemplate!B64 -> 2500 | C64: =TypeListTemplate!C64 -> 2300.01
A65: =TypeListTemplate!A65 -> 3754.861204 | B65: =TypeListTemplate!B65 -> 2800 | C65: =TypeListTemplate!C65 -> 2500.01
A66: =TypeListTemplate!A66 -> 4224.218855 | B66: =TypeListTemplate!B66 -> 3150 | C66: =TypeListTemplate!C66 -> 2800.01
A67: =TypeListTemplate!A67 -> 4760.627598 | B67: =TypeListTemplate!B67 -> 3550 | C67: =TypeListTemplate!C67 -> 3150.01
A68: =TypeListTemplate!A68 -> 5364.087435 | B68: =TypeListTemplate!B68 -> 4000 | C68: =TypeListTemplate!C68 -> 3550.01
A69: =TypeListTemplate!A69 -> 6034.598364 | B69: =TypeListTemplate!B69 -> 4500 | C69: =TypeListTemplate!C69 -> 4000.01
A70: =TypeListTemplate!A70 -> 6705.109293 | B70: =TypeListTemplate!B70 -> 5000 | C70: =TypeListTemplate!C70 -> 4500.01
A71: =TypeListTemplate!A71 -> 0 | B71: =TypeListTemplate!B71 -> 999999999 | C71: =TypeListTemplate!C71 -> 5000.01
A72: =TypeListTemplate!A72 -> 0 | B72: =TypeListTemplate!B72 -> 0 | C72: =TypeListTemplate!C72 -> 0
A73: =TypeListTemplate!A73 -> 0 | B73: =TypeListTemplate!B73 -> 0 | C73: =TypeListTemplate!C73 -> 0 | D73: =TypeListTemplate!D73 -> Drive type | E73: =TypeListTemplate!E73 -> 0 | F73: =TypeListTemplate!F73 -> Drive type | G73: =TypeListTemplate!G73 -> 0 | H73: =TypeListTemplate!H73 -> Drive type | I73: =TypeListTemplate!I73 -> 0 | J73: =TypeListTemplate!J73 -> Drive type | K73: =TypeListTemplate!K73 -> 0 | L73: =TypeListTemplate!L73 -> Drive type | M73: =TypeListTemplate!M73 -> 0 | N73: =TypeListTemplate!N73 -> Drive type | O73: =TypeListTemplate!O73 -> 0 | P73: =TypeListTemplate!P73 -> Drive type | Q73: =TypeListTemplate!Q73 -> 0
A74: =TypeListTemplate!A74 -> 0 | B74: =TypeListTemplate!B74 -> 0 | C74: =TypeListTemplate!C74 -> 0 | D74: =TypeListTemplate!D74 -> 115 V (1-ph) | E74: =TypeListTemplate!E74 -> 0 | F74: =TypeListTemplate!F74 -> 230 V (1-ph) | G74: =TypeListTemplate!G74 -> 0 | H74: =TypeListTemplate!H74 -> 230 V (3-ph) | I74: =TypeListTemplate!I74 -> 0 | J74: =TypeListTemplate!J74 -> 400 V | K74: =TypeListTemplate!K74 -> 0 | L74: =TypeListTemplate!L74 -> 460 V | M74: =TypeListTemplate!M74 -> 0 | N74: =TypeListTemplate!N74 -> 500 V | O74: =TypeListTemplate!O74 -> 0 | P74: =TypeListTemplate!P74 -> 690 V | Q74: =TypeListTemplate!Q74 -> 0
A75: =TypeListTemplate!A75 -> 0 | B75: =TypeListTemplate!B75 -> 0 | C75: =TypeListTemplate!C75 -> 0 | D75: =TypeListTemplate!D75 -> 0 | E75: =TypeListTemplate!E75 -> 0 | F75: =TypeListTemplate!F75 -> 0 | G75: =TypeListTemplate!G75 -> 0 | H75: =TypeListTemplate!H75 -> 0 | I75: =TypeListTemplate!I75 -> 0 | J75: =TypeListTemplate!J75 -> 0 | K75: =TypeListTemplate!K75 -> 0 | L75: =TypeListTemplate!L75 -> 0 | M75: =TypeListTemplate!M75 -> 0 | N75: =TypeListTemplate!N75 -> 0 | O75: =TypeListTemplate!O75 -> 0 | P75: =TypeListTemplate!P75 -> 0 | Q75: =TypeListTemplate!Q75 -> 0
A76: =TypeListTemplate!A76 -> 0 | B76: =TypeListTemplate!B76 -> 0 | C76: =TypeListTemplate!C76 -> 0 | D76: =TypeListTemplate!D76 -> 0 | E76: =TypeListTemplate!E76 -> 0 | F76: =TypeListTemplate!F76 -> 0 | G76: =TypeListTemplate!G76 -> 0 | H76: =TypeListTemplate!H76 -> 0 | I76: =TypeListTemplate!I76 -> 0 | J76: =TypeListTemplate!J76 -> 0 | K76: =TypeListTemplate!K76 -> 0 | L76: =TypeListTemplate!L76 -> 0 | M76: =TypeListTemplate!M76 -> 0 | N76: =TypeListTemplate!N76 -> 0 | O76: =TypeListTemplate!O76 -> 0 | P76: =TypeListTemplate!P76 -> 0 | Q76: =TypeListTemplate!Q76 -> 0
A77: =TypeListTemplate!A77 -> 0 | B77: =TypeListTemplate!B77 -> 0 | C77: =TypeListTemplate!C77 -> 0 | D77: =TypeListTemplate!D77 -> 0 | E77: =TypeListTemplate!E77 -> 0 | F77: =TypeListTemplate!F77 -> 0 | G77: =TypeListTemplate!G77 -> 0 | H77: =TypeListTemplate!H77 -> 0 | I77: =TypeListTemplate!I77 -> 0 | J77: =TypeListTemplate!J77 -> 0 | K77: =TypeListTemplate!K77 -> 0 | L77: =TypeListTemplate!L77 -> 0 | M77: =TypeListTemplate!M77 -> 0 | N77: =TypeListTemplate!N77 -> 0 | O77: =TypeListTemplate!O77 -> 0 | P77: =TypeListTemplate!P77 -> 0 | Q77: =TypeListTemplate!Q77 -> 0
A78: =TypeListTemplate!A78 -> 0 | B78: =TypeListTemplate!B78 -> 0 | C78: =TypeListTemplate!C78 -> 0 | D78: =TypeListTemplate!D78 -> 0 | E78: =TypeListTemplate!E78 -> 0 | F78: =TypeListTemplate!F78 -> 0 | G78: =TypeListTemplate!G78 -> 0 | H78: =TypeListTemplate!H78 -> 0 | I78: =TypeListTemplate!I78 -> 0 | J78: =TypeListTemplate!J78 -> 0 | K78: =TypeListTemplate!K78 -> 0 | L78: =TypeListTemplate!L78 -> 0 | M78: =TypeListTemplate!M78 -> 0 | N78: =TypeListTemplate!N78 -> 0 | O78: =TypeListTemplate!O78 -> 0 | P78: =TypeListTemplate!P78 -> 0 | Q78: =TypeListTemplate!Q78 -> 0
A79: =TypeListTemplate!A79 -> 0 | B79: =TypeListTemplate!B79 -> 0 | C79: =TypeListTemplate!C79 -> 0 | D79: =TypeListTemplate!D79 -> 0 | E79: =TypeListTemplate!E79 -> 0 | F79: =TypeListTemplate!F79 -> 0 | G79: =TypeListTemplate!G79 -> 0 | H79: =TypeListTemplate!H79 -> 0 | I79: =TypeListTemplate!I79 -> 0 | J79: =TypeListTemplate!J79 -> 0 | K79: =TypeListTemplate!K79 -> 0 | L79: =TypeListTemplate!L79 -> 0 | M79: =TypeListTemplate!M79 -> 0 | N79: =TypeListTemplate!N79 -> 0 | O79: =TypeListTemplate!O79 -> 0 | P79: =TypeListTemplate!P79 -> 0 | Q79: =TypeListTemplate!Q79 -> 0
A80: =TypeListTemplate!A80 -> 0 | B80: =TypeListTemplate!B80 -> 0 | C80: =TypeListTemplate!C80 -> 0 | D80: =TypeListTemplate!D80 -> 0 | E80: =TypeListTemplate!E80 -> 0 | F80: =TypeListTemplate!F80 -> 0 | G80: =TypeListTemplate!G80 -> 0 | H80: =TypeListTemplate!H80 -> 0 | I80: =TypeListTemplate!I80 -> 0 | J80: =TypeListTemplate!J80 -> 0 | K80: =TypeListTemplate!K80 -> 0 | L80: =TypeListTemplate!L80 -> 0 | M80: =TypeListTemplate!M80 -> 0 | N80: =TypeListTemplate!N80 -> 0 | O80: =TypeListTemplate!O80 -> 0 | P80: =TypeListTemplate!P80 -> 0 | Q80: =TypeListTemplate!Q80 -> 0
A81: =TypeListTemplate!A81 -> 0 | B81: =TypeListTemplate!B81 -> 0 | C81: =TypeListTemplate!C81 -> 0 | D81: =TypeListTemplate!D81 -> 0 | E81: =TypeListTemplate!E81 -> 0 | F81: =TypeListTemplate!F81 -> 0 | G81: =TypeListTemplate!G81 -> 0 | H81: =TypeListTemplate!H81 -> 0 | I81: =TypeListTemplate!I81 -> 0 | J81: =TypeListTemplate!J81 -> 0 | K81: =TypeListTemplate!K81 -> 0 | L81: =TypeListTemplate!L81 -> 0 | M81: =TypeListTemplate!M81 -> 0 | N81: =TypeListTemplate!N81 -> 0 | O81: =TypeListTemplate!O81 -> 0 | P81: =TypeListTemplate!P81 -> 0 | Q81: =TypeListTemplate!Q81 -> 0
A82: =TypeListTemplate!A82 -> 0 | B82: =TypeListTemplate!B82 -> 0 | C82: =TypeListTemplate!C82 -> 0 | D82: =TypeListTemplate!D82 -> 0 | E82: =TypeListTemplate!E82 -> 0 | F82: =TypeListTemplate!F82 -> 0 | G82: =TypeListTemplate!G82 -> 0 | H82: =TypeListTemplate!H82 -> 0 | I82: =TypeListTemplate!I82 -> 0 | J82: =TypeListTemplate!J82 -> 0 | K82: =TypeListTemplate!K82 -> 0 | L82: =TypeListTemplate!L82 -> 0 | M82: =TypeListTemplate!M82 -> 0 | N82: =TypeListTemplate!N82 -> 0 | O82: =TypeListTemplate!O82 -> 0 | P82: =TypeListTemplate!P82 -> 0 | Q82: =TypeListTemplate!Q82 -> 0
A83: =TypeListTemplate!A83 -> 0 | B83: =TypeListTemplate!B83 -> 0 | C83: =TypeListTemplate!C83 -> 0 | D83: =TypeListTemplate!D83 -> 0 | E83: =TypeListTemplate!E83 -> 0 | F83: =TypeListTemplate!F83 -> 0 | G83: =TypeListTemplate!G83 -> 0 | H83: =TypeListTemplate!H83 -> 0 | I83: =TypeListTemplate!I83 -> 0 | J83: =TypeListTemplate!J83 -> 0 | K83: =TypeListTemplate!K83 -> 0 | L83: =TypeListTemplate!L83 -> 0 | M83: =TypeListTemplate!M83 -> 0 | N83: =TypeListTemplate!N83 -> 0 | O83: =TypeListTemplate!O83 -> 0 | P83: =TypeListTemplate!P83 -> 0 | Q83: =TypeListTemplate!Q83 -> 0
A84: =TypeListTemplate!A84 -> 0 | B84: =TypeListTemplate!B84 -> 0 | C84: =TypeListTemplate!C84 -> 0 | D84: =TypeListTemplate!D84 -> 0 | E84: =TypeListTemplate!E84 -> 0 | F84: =TypeListTemplate!F84 -> 0 | G84: =TypeListTemplate!G84 -> 0 | H84: =TypeListTemplate!H84 -> 0 | I84: =TypeListTemplate!I84 -> 0 | J84: =TypeListTemplate!J84 -> 0 | K84: =TypeListTemplate!K84 -> 0 | L84: =TypeListTemplate!L84 -> 0 | M84: =TypeListTemplate!M84 -> 0 | N84: =TypeListTemplate!N84 -> 0 | O84: =TypeListTemplate!O84 -> 0 | P84: =TypeListTemplate!P84 -> 0 | Q84: =TypeListTemplate!Q84 -> 0
A85: =TypeListTemplate!A85 -> 0 | B85: =TypeListTemplate!B85 -> 0 | C85: =TypeListTemplate!C85 -> 0 | D85: =TypeListTemplate!D85 -> 0 | E85: =TypeListTemplate!E85 -> 0 | F85: =TypeListTemplate!F85 -> 0 | G85: =TypeListTemplate!G85 -> 0 | H85: =TypeListTemplate!H85 -> 0 | I85: =TypeListTemplate!I85 -> 0 | J85: =TypeListTemplate!J85 -> 0 | K85: =TypeListTemplate!K85 -> 0 | L85: =TypeListTemplate!L85 -> 0 | M85: =TypeListTemplate!M85 -> 0 | N85: =TypeListTemplate!N85 -> 0 | O85: =TypeListTemplate!O85 -> 0 | P85: =TypeListTemplate!P85 -> 0 | Q85: =TypeListTemplate!Q85 -> 0
A86: =TypeListTemplate!A86 -> 0 | B86: =TypeListTemplate!B86 -> 0 | C86: =TypeListTemplate!C86 -> 0 | D86: =TypeListTemplate!D86 -> 0 | E86: =TypeListTemplate!E86 -> 0 | F86: =TypeListTemplate!F86 -> 0 | G86: =TypeListTemplate!G86 -> 0 | H86: =TypeListTemplate!H86 -> 0 | I86: =TypeListTemplate!I86 -> 0 | J86: =TypeListTemplate!J86 -> 0 | K86: =TypeListTemplate!K86 -> 0 | L86: =TypeListTemplate!L86 -> 0 | M86: =TypeListTemplate!M86 -> 0 | N86: =TypeListTemplate!N86 -> 0 | O86: =TypeListTemplate!O86 -> 0 | P86: =TypeListTemplate!P86 -> 0 | Q86: =TypeListTemplate!Q86 -> 0
A87: =TypeListTemplate!A87 -> 0 | B87: =TypeListTemplate!B87 -> 0 | C87: =TypeListTemplate!C87 -> 0 | D87: =TypeListTemplate!D87 -> 0 | E87: =TypeListTemplate!E87 -> 0 | F87: =TypeListTemplate!F87 -> 0 | G87: =TypeListTemplate!G87 -> 0 | H87: =TypeListTemplate!H87 -> 0 | I87: =TypeListTemplate!I87 -> 0 | J87: =TypeListTemplate!J87 -> 0 | K87: =TypeListTemplate!K87 -> 0 | L87: =TypeListTemplate!L87 -> 0 | M87: =TypeListTemplate!M87 -> 0 | N87: =TypeListTemplate!N87 -> 0 | O87: =TypeListTemplate!O87 -> 0 | P87: =TypeListTemplate!P87 -> 0 | Q87: =TypeListTemplate!Q87 -> 0
A88: =TypeListTemplate!A88 -> 0 | B88: =TypeListTemplate!B88 -> 0 | C88: =TypeListTemplate!C88 -> 0 | D88: =TypeListTemplate!D88 -> 0 | E88: =TypeListTemplate!E88 -> 0 | F88: =TypeListTemplate!F88 -> 0 | G88: =TypeListTemplate!G88 -> 0 | H88: =TypeListTemplate!H88 -> 0 | I88: =TypeListTemplate!I88 -> 0 | J88: =TypeListTemplate!J88 -> 0 | K88: =TypeListTemplate!K88 -> 0 | L88: =TypeListTemplate!L88 -> 0 | M88: =TypeListTemplate!M88 -> 0 | N88: =TypeListTemplate!N88 -> 0 | O88: =TypeListTemplate!O88 -> 0 | P88: =TypeListTemplate!P88 -> 0 | Q88: =TypeListTemplate!Q88 -> 0
A89: =TypeListTemplate!A89 -> 0 | B89: =TypeListTemplate!B89 -> 0 | C89: =TypeListTemplate!C89 -> 0 | D89: =TypeListTemplate!D89 -> 0 | E89: =TypeListTemplate!E89 -> 0 | F89: =TypeListTemplate!F89 -> 0 | G89: =TypeListTemplate!G89 -> 0 | H89: =TypeListTemplate!H89 -> 0 | I89: =TypeListTemplate!I89 -> 0 | J89: =TypeListTemplate!J89 -> 0 | K89: =TypeListTemplate!K89 -> 0 | L89: =TypeListTemplate!L89 -> 0 | M89: =TypeListTemplate!M89 -> 0 | N89: =TypeListTemplate!N89 -> 0 | O89: =TypeListTemplate!O89 -> 0 | P89: =TypeListTemplate!P89 -> 0 | Q89: =TypeListTemplate!Q89 -> 0
A90: =TypeListTemplate!A90 -> 0 | B90: =TypeListTemplate!B90 -> 0 | C90: =TypeListTemplate!C90 -> 0 | D90: =TypeListTemplate!D90 -> 0 | E90: =TypeListTemplate!E90 -> 0 | F90: =TypeListTemplate!F90 -> 0 | G90: =TypeListTemplate!G90 -> 0 | H90: =TypeListTemplate!H90 -> 0 | I90: =TypeListTemplate!I90 -> 0 | J90: =TypeListTemplate!J90 -> 0 | K90: =TypeListTemplate!K90 -> 0 | L90: =TypeListTemplate!L90 -> 0 | M90: =TypeListTemplate!M90 -> 0 | N90: =TypeListTemplate!N90 -> 0 | O90: =TypeListTemplate!O90 -> 0 | P90: =TypeListTemplate!P90 -> 0 | Q90: =TypeListTemplate!Q90 -> 0
A91: =TypeListTemplate!A91 -> 0 | B91: =TypeListTemplate!B91 -> 0 | C91: =TypeListTemplate!C91 -> 0 | D91: =TypeListTemplate!D91 -> 0 | E91: =TypeListTemplate!E91 -> 0 | F91: =TypeListTemplate!F91 -> 0 | G91: =TypeListTemplate!G91 -> 0 | H91: =TypeListTemplate!H91 -> 0 | I91: =TypeListTemplate!I91 -> 0 | J91: =TypeListTemplate!J91 -> 0 | K91: =TypeListTemplate!K91 -> 0 | L91: =TypeListTemplate!L91 -> 0 | M91: =TypeListTemplate!M91 -> 0 | N91: =TypeListTemplate!N91 -> 0 | O91: =TypeListTemplate!O91 -> 0 | P91: =TypeListTemplate!P91 -> 0 | Q91: =TypeListTemplate!Q91 -> 0
A92: =TypeListTemplate!A92 -> 0 | B92: =TypeListTemplate!B92 -> 0 | C92: =TypeListTemplate!C92 -> 0 | D92: =TypeListTemplate!D92 -> 0 | E92: =TypeListTemplate!E92 -> 0 | F92: =TypeListTemplate!F92 -> 0 | G92: =TypeListTemplate!G92 -> 0 | H92: =TypeListTemplate!H92 -> 0 | I92: =TypeListTemplate!I92 -> 0 | J92: =TypeListTemplate!J92 -> 0 | K92: =TypeListTemplate!K92 -> 0 | L92: =TypeListTemplate!L92 -> 0 | M92: =TypeListTemplate!M92 -> 0 | N92: =TypeListTemplate!N92 -> 0 | O92: =TypeListTemplate!O92 -> 0 | P92: =TypeListTemplate!P92 -> 0 | Q92: =TypeListTemplate!Q92 -> 0
A93: =TypeListTemplate!A93 -> 0 | B93: =TypeListTemplate!B93 -> 0 | C93: =TypeListTemplate!C93 -> 0 | D93: =TypeListTemplate!D93 -> 0 | E93: =TypeListTemplate!E93 -> 0 | F93: =TypeListTemplate!F93 -> 0 | G93: =TypeListTemplate!G93 -> 0 | H93: =TypeListTemplate!H93 -> 0 | I93: =TypeListTemplate!I93 -> 0 | J93: =TypeListTemplate!J93 -> 0 | K93: =TypeListTemplate!K93 -> 0 | L93: =TypeListTemplate!L93 -> 0 | M93: =TypeListTemplate!M93 -> 0 | N93: =TypeListTemplate!N93 -> 0 | O93: =TypeListTemplate!O93 -> 0 | P93: =TypeListTemplate!P93 -> 0 | Q93: =TypeListTemplate!Q93 -> 0
A94: =TypeListTemplate!A94 -> 0 | B94: =TypeListTemplate!B94 -> 0 | C94: =TypeListTemplate!C94 -> 0 | D94: =TypeListTemplate!D94 -> 0 | E94: =TypeListTemplate!E94 -> 0 | F94: =TypeListTemplate!F94 -> 0 | G94: =TypeListTemplate!G94 -> 0 | H94: =TypeListTemplate!H94 -> 0 | I94: =TypeListTemplate!I94 -> 0 | J94: =TypeListTemplate!J94 -> 0 | K94: =TypeListTemplate!K94 -> 0 | L94: =TypeListTemplate!L94 -> 0 | M94: =TypeListTemplate!M94 -> 0 | N94: =TypeListTemplate!N94 -> 0 | O94: =TypeListTemplate!O94 -> 0 | P94: =TypeListTemplate!P94 -> 0 | Q94: =TypeListTemplate!Q94 -> 0
A95: =TypeListTemplate!A95 -> 0 | B95: =TypeListTemplate!B95 -> 0 | C95: =TypeListTemplate!C95 -> 0 | D95: =TypeListTemplate!D95 -> 0 | E95: =TypeListTemplate!E95 -> 0 | F95: =TypeListTemplate!F95 -> 0 | G95: =TypeListTemplate!G95 -> 0 | H95: =TypeListTemplate!H95 -> 0 | I95: =TypeListTemplate!I95 -> 0 | J95: =TypeListTemplate!J95 -> 0 | K95: =TypeListTemplate!K95 -> 0 | L95: =TypeListTemplate!L95 -> 0 | M95: =TypeListTemplate!M95 -> 0 | N95: =TypeListTemplate!N95 -> 0 | O95: =TypeListTemplate!O95 -> 0 | P95: =TypeListTemplate!P95 -> 0 | Q95: =TypeListTemplate!Q95 -> 0

Sheet Language (hidden)
A1: Field or component | D1: Content or default value
B2: Chinese | C2: Dutch | D2: English | E2: Finnish | F2: French | G2: German | H2: Portuguese | I2: Russian | J2: Vietnamese
A3: Header_AppTitle | B3: PumpSave 5.3 | C3: PumpSave 5.3 | D3: PumpSave 5.3 | E3: PumpSave 5.3 | F3: PumpSave 5.3 | G3: PumpSave 5.3 | H3: PumpSave 5.3 | I3: PumpSave 5.3 | J3: PumpSave 5.3
A4: Header_AppSubTitle | B4: 水泵节能计算工具 | C4: Calculatie energiebesparing voor pompen | D4: Energy saving calculator for pumps | E4: Energiansäästölaskuri pumpuille | F4: Economies d'énergie pour pompes | G4: Energiesparrechner für Pumpen | H4: Cálculo de Economia de Energia | I4: Расчет энергосбережения для насосов | J4: Tính toán tiết kiệm năng lượng cho máy bơm
A5: Header_Pump | B5: 水泵 | C5: Pomp | D5: Pump | E5: Pumppu | F5: Pompe | G5: Pumpe | H5: Bomba | I5: насос | J5: Máy bơm
A6: Label_NominalVolume | B6: 额定流量 | C6: Nominaal debiet | D6: Nominal volume flow | E6: Tilavuusvirta | F6: Débit nominal | G6: Nennvolumenstrom | H6: Volume Fluxo nominal | I6: Номинальный расход | J6: Lưu lượng danh định
A7: Unit_NominalVolume | D7: m3/h | J7: m3/ giờ
A8: Label_NominalHead | B8: 额定扬程 | C8: Nominale opvoerhoogte | D8: Nominal head | E8: Nostokorkeus | F8: P Pression nominale | G8: Nenndruckhöhe | H8: Perdas nominais (Hd) | I8: Номинальный напор | J8: Độ cao danh định
A9: Unit_NominalHead | D9: m
A10: Label_MaxHead | B10: 最大扬程 | C10: Maximale opvoerhoogte | D10: Max head | E10: Maksimi nostokorkeus | F10: P max | G10: Max. Druckhöhe | H10: Perdas máximas (H) | I10: Максимальный напор\ | J10: Độ cao tối đa
A11: Unit_MaxHead | D11: m
A12: Label_Efficiency | B12: 水泵效率 | C12: Rendement | D12: Efficiency | E12: Hyötysuhde | F12: Rendement | G12: Wirkungsgrad | H12: Eficiência | I12: КПД | J12: Hiệu suất
A13: Unit_Efficiency | D13: %
A14: Label_Liquid | B14: 液体密度 | C14: Vloeistof dichtheid | D14: Liquid density | E14: Nesteen tiheys | F14: Densité du liquide | G14: Flüssigkeitsdichte | H14: Densidade do líquido | I14: Плотность жидкости | J14: Mật độ chất lỏng
A15: Unit_Liquid | D15: kg/m3
A16: Label_StaticHead | B16: 静态扬程 | C16: Dynamische opvoerhoogte | D16: Static head | E16: Stattinen nostokorkeus | F16: HMT | G16: Statische Druckhöhe | H16: Perdas dinâmicas (He) | I16: Статический напор | J16: Độ cao tĩnh
A17: Unit_StaticHead | D17: m
A18: Label_Existing | B18: 现有流量控制 | C18: Bestaande debietcontrole | D18: Existing flow control | E18: Nykyinen säätömenetelmä | F18: Méthode de control actuelle | G18: Bestehende Luftmengenregelung | H18: Controle existente de fluxo | I18: Существующий способ управления | J18: Điều chỉnh lưu lượng hiện hành
A19: Header_Drive | B19: 传动和电机 | C19: Drive en motor | D19: Drive and motor | E19: Käyttö ja moottori | F19: Drive et moteur | G19: Antrieb und Motor | H19: Drive motor | I19: электропривод и двигатель | J19: Biến tần và động cơ
A20: Label_Supply | B20: 电源电压 | C20: Voedingsspanning | D20: Supply voltage | E20: Syöttöjännite | F20: Tension d'alimentation | G20: Netzspannung | H20: Tensão de Alimentação | I20: Напряжение питания | J20: Điện áp nguồn
A21: Label_Required | B21: 电机需求功率 | C21: Benodigd motorvermogen | D21: Required motor power | E21: Moottorin teho | F21: Pw utile moteur | G21: Erforderliche Motorleistung | H21: Potência do motor necessário: | I21: Требуемая мощность двигателя | J21: Công suất động cơ yêu cầu
A22: Unit_Required | D22: kW
A23: Label_MotorPower | B23: 电机功率 | C23: Motorvermogen | D23: Motor power | E23: Moottorin teho | F23: Puissance moteur | G23: Motorleistung | H23: Potência do motor | I23: Мощность двигателя | J23: Công suất động cơ
A24: Unit_MotorPower | B24: kW | C24: kW | D24: kW | E24: kW | F24: kW | G24: kW | H24: kW | I24: kW | J24: kW
A25: Label_MotorEfficiency | B25: 电机效率 | C25: Motorrendement | D25: Motor efficiency | E25: Moottorin hyötysuhde | F25: Rendement moteur | G25: Motorwirkungsgrad | H25: Eficiência do Motor | I25: КПД двигателя | J25: Hiệu suất động cơ
A26: Unit_MotorEfficiency | D26: %
A27: Label_Improved | B27: 使用如下变频器控制流量 | C27: Verbeterde debietcontrole met frequentieomvormer | D27: Improved control by | E27: Säätö AC käytöllä | F27: Régulation de débit avec un variateur type | G27: Verbesserte Regelung durch Frequenzumrichter | H27: Melhoria do fluxo de controle com Inverosr | I27: Управление с помощью ПЧ АББ | J27: Điều khiển được cải tiến cho
A28: Value_FrequencyConverter
A29: Header_FlowProfile | B29: 运行状况 | C29: Debiet profiel | D29: Flow profile | E29: Virtausprofiili | F29: Débit profil | G29: Durchfluss Profil | H29: Vazão perfil | I29: Рacxoд профиль | J29: Biên dạng lưu lượng
A30: Label_Annual | B30: 年运行时间 | C30: Jaarlijkse draaitijd | D30: Annual running time | E30: Vuotuiset käyttötunnit | F30: Fonctionnement annuel | G30: Jährliche Laufzeit | H30: Tempo de utilização anual | I30: Время работы за год | J30: Thời gian hoạt động hàng năm
A31: Unit_Annual | B31: h | C31: h | D31: h | E31: h | F31: h | G31: h | H31: h | I31: h | J31: h
A32: Feedback_Annual | B32: 正常年为8760小时,润年为8784小时 | C32: Normal year is 8760 h, leap year 8784h | D32: Normal year is 8760 h, leap year 8784h | E32: Normal year is 8760 h, leap year 8784h | F32: Normal year is 8760 h, leap year 8784h | G32: Normal year is 8760 h, leap year 8784h | H32: Normal year is 8760 h, leap year 8784h | I32: Normal year is 8760 h, leap year 8784h | J32: Năm dương lịch có 8760 giờ, năm nhuận có 8784 giờ
A33: Label_Flow | B33: 流量 | C33: Debiet profiel | D33: Flow | E33: Virtaama | F33: Débit | G33: Durchfluss | H33: VAZÃO | I33: РАСХОД | J33: Lưu lượng
A34: Button_Default | B34: 缺省值 | C34: Standaard | D34: DEFAULT | E34: Oletus | F34: Par défaut | G34: Standard | H34: Valor lOrigin | I34: ТИПОВОЙ ЦИКЛ | J34: MẶC ĐỊNH
A35: Spin_100
A36: Spin_90
A37: Spin_80
A38: Spin_70
A39: Spin_60
A40: Spin_50
A41: Spin_40
A42: Spin_30
A43: Spin_20
A44: Value_100
A45: Value_90
A46: Value_80
A47: Value_70
A48: Value_60
A49: Value_50
A50: Value_40
A51: Value_30
A52: Value_20
A53: Label_Sum | C53: Som
A54: Value_Sum | D54: 100
A55: Feedback_Sum | B55: 和必须等于100% | C55: Som moet 100% zijn | D55: Sum must equal 100 % | E55: Sum must equal 100 % | F55: Sum must equal 100 % | G55: Sum must equal 100 % | H55: Sum must equal 100 % | I55: Sum must equal 100 % | J55: Tổng phải bằng 100 %
A56: Value_SumHours
A57: Value_Flow100
A58: Value_Flow90
A59: Value_Flow80
A60: Value_Flow70
A61: Value_Flow60
A62: Value_Flow50
A63: Value_Flow40
A64: Value_Flow30
A65: Value_Flow20
A66: Header_Economic | B66: 经济数据 | C66: Economische data | D66: Economic data | E66: Investoinnin tiedot | F66: Données économiques | G66: Betriebswirtschaftliche Daten | H66: Dados Econômicos | I66: Экономические показатели | J66: Dữ liệu kinh tế
A67: Label_Currency | B67: 货币单位 | C67: Munteenheid | D67: Currency unit | E67: Valuutta | F67: Unité monétaire | G67: Währungseinheit | H67: Moeda | I67: Валюта | J67: Đơn vị tiền tệ
A68: Label_Energy | B68: 电价 | C68: Energieprijs | D68: Energy price | E68: Energian hinta | F68: Tarif énergie | G68: Strompreis | H68: O preço da energia | I68: Цена электроэнергии | J68: Giá năng lượng
A69: Unit_Energy | B69: €/kWh | C69: €/kWh | D69: €/kWh | E69: €/kWh | F69: €/kWh | G69: €/kWh | H69: €/kWh | I69: €/kWh | J69: €/kWh
A70: Label_Investment | B70: 投资成本 | C70: Investeringskost | D70: Investment cost | E70: Investointikustannus | F70: Coût d'investissement | G70: Investitionskosten | H70: Custo do investimento | I70: Стоимость инвестиций | J70: Chi phí đầu tư
A71: Unit_Investment | D71: €
A72: Label_Interest | B72: 利率 | C72: Interestvoet | D72: Interest rate | E72: Korkokanta | F72: Taux d'intérêt | G72: Zinssatz | H72: Taxa de juros | I72: % по кредиту | J72: Lãi suất
A73: Unit_Interest | D73: %
A74: Label_CO2 | B74: CO2排放换算 | C74: CO2 emissie | D74: CO2 emission | E74: CO2 päästö | F74: Emission CO2 | G74: CO2-Emissionen | H74: Emissão de CO2 | I74: Выделение СО2 | J74: Lượng CO2/ đơn vị
A75: Unit_CO2 | D75: kg/kWh
A76: Header_Calculated | B76: 计算结果 | C76: Berekende besparingen | D76: Calculated savings | E76: Energiansäästö | F76: Economie d'énergie | G76: Energieeinsparung | H76: Economia de energia | I76: Энергосбережение | J76: Tiết kiệm đã tính toán
A77: Label_AnnualSaving | B77: 年节电 | C77: Jaarlijkse energiebesparing | D77: Annual energy saving | E77: Vuotuinen energiansäästö | F77: Economie d'énergie / an | G77: Jährliche Energieeinsparung | H77: Economia de energia anual | I77: Энергосбережение за год | J77: Tiết kiệm năng lượng/ năm
A78: Value_AnnualSaving
A79: Unit_AnnualSaving | D79: MWh
A80: Header_Energy | B80: 年耗电 | C80: Energieverbruik | D80: Energy consumption | E80: Energiankulutus | F80: Consommation d'énergie | G80: Energieverbrauch | H80: Consumo de Energia | I80: Энергопотребление | J80: Tiêu thụ năng lượng hàng năm:
A81: Label_EnergyExisting | B81: 使用现有控制方式 | C81: met bestaande controle | D81: with existing control method | E81: nykymenetelmällä | F81: avec méthode actuelle | G81: mit vorhandenem Regelungsverfahren | H81: Método de controle atual | I81: При существующем способе управления | J81: Với điều khiển hiện hành
A82: Value_EnergyExisting
A83: Unit_EnergyExisting | D83: MWh
A84: Label_EnergyNew | B84: 使用ABB变频器控制 | C84: met ABB frequentieregelaar | D84: with new control by ABB drive | E84: parannetulla menetelmällä | F84: avec méthode variateur | G84: mit verbessertem Regelungsverfahren | H84: Método de controle otimizado | I84: При предлагаемом способе управления | J84: Với điều khiển được cải tiến
A85: Value_EnergyNew
A86: Unit_EnergyNew | D86: MWh
A87: Label_EnergySaving | B87: 节电百分比 | C87: Besparings percentage | D87: Saving percentage | E87: Säästö prosentteina | F87: Pourcentage d'économie | G87: Einsparung in % | H87: Percentual de Econômia | I87: Экономия в % | J87: Phần trăm tiết kiệm
A88: Value_EnergySaving
A89: Unit_EnergySaving | D89: %
A90: Value_PumpEnergy
A91: Unit_PumpEnergy | D91: kW/(m3/s) | J91: kW/(m3/ giây)
A92: Header_EconomicResults | B92: 经济数据 | C92: Economische resultaten | D92: Economic Results | E92: Investoinnin tiedot | F92: Résultats d'économies | G92: Betriebswirtschaftliche Daten | H92: Resultados Econômicos | I92: Экономические результаты | J92: Kết quả kinh tế
A93: Label_EconomicAnnual | B93: 年均节省 | C93: Jaarlijkse besparing | D93: Annual Saving | E93: Vuosittainen säästö | F93: Economie annuelle | G93: Jährliche Einsparung | H93: Economia anual | I93: Годовая экономия | J93: Tiết kiệm hàng năm
A94: Value_EconomicAnnual
A95: Unit_EconomicAnnual
A96: Label_EconomicPayback | B96: 投资回收期 | C96: Terugbetalingstermijn | D96: Payback period | E96: Takaisinmaksuaika | F96: Retour sur investissement | G96: Amortisierungsdauer | H96: Retorno de Investimento | I96: Срок окупаемости | J96: Chu kỳ trả dần
A97: Value_EconomicPayback
A98: Unit_EconomicPayback | B98: 年 | C98: jaren | D98: years | E98: vuotta | F98: années | G98: Jahre | H98: anos | I98: год | J98: năm
A99: Label_EconomicCO2 | B99: 年减排CO2 | C99: CO2 besparing | D99: CO2 reduction | E99: CO2 alenema | F99: Réduction CO2 | G99: CO2-Reduzierung | H99: Redução CO2 | I99: сокращение выбросов CO2 | J99: Lượng giảm khí CO2 hàng năm
A100: Value_EconomicCO2
A101: Unit_EconomicCO2 | B101: t/年 | C101: ton/jaar | D101: t/year | E101: t/vuosi | F101: t/l'année | G101: t/jahr | H101: t/ano | I101: t/год | J101: t/ năm
A102: Button_Copy | B102: 拷贝产品型号并存储数据 | C102: Copy product and savings data | D102: Copy product and savings data | E102: Copy product and savings data | F102: Copy product and savings data | G102: Copy product and savings data | H102: Copy product and savings data | I102: Copy product and savings data | J102: Sao lưu sản phẩm và tiết kiệm dữ liệu
A103: Link_Disclaimer | B103: 承诺 | C103: Disclaimer | D103: Disclaimer | E103: Disclaimer | F103: Disclaimer | G103: Disclaimer | H103: Disclaimer | I103: Disclaimer | J103: Disclaimer
A104: Label_Ref | B104: 参考： | C104: Ref: | D104: Ref: | E104: Ref: | F104: Ref: | G104: Ref: | H104: Ref: | I104: Ref: | J104: Tham chiếu:
A105: Input_Ref | B105: 水泵ID | C105: Pomp ID | D105: PumpID | E105: Pumpun tunniste | F105: Référence pompe | G105: Pumpen-ID | H105: Identificação da Bomba : | I105: № насосного агрегата | J105: ID của máy bơm
A106: ComboBox_ExistingFlowCtrl | B106: 节流控制 | C106: debiet controle dmv smoorklep | D106: Throttling control | E106: Kuristussäätö | F106: Régulation par vanne | G106: Drosselregelung | H106: Controle por estrangulamento | I106: Управление задвижкой | J106: Điều chỉnh tiết lưu
A107: ComboBox_ExistingFlowCtrl | B107: 起/停控制 | C107: Aan/uit controle | D107: On/off control | E107: On/Off säätö | F107: Régulation en "tout ou rien" | G107: EIN/AUS-Steuerung | H107: Controle on / off | I107: Управление ВКЛ/ВЫКЛ | J107: Bật/ tắt điều khiển
A108: ComboBox_ExistingFlowCtrl | B108: 液力耦合控制 | C108: Hydraulische controle | D108: Hydraulic control | E108: Jättämäsäätö | F108: Régulation par coupleur hydraulique | G108: Hydraulische Regelung | H108: Controle hidráulico | I108: Гидравлическое управление | J108: Điều khiển bằng thủy lực
A109: ComboBox_CurrencyUnit | B109: € | C109: € | D109: € | E109: € | F109: € | G109: € | H109: € | I109: € | J109: €
A110: ComboBox_CurrencyUnit | B110: £ | C110: £ | D110: £ | E110: £ | F110: £ | G110: £ | H110: £ | I110: £ | J110: £
A111: ComboBox_CurrencyUnit | B111: $ | C111: $ | D111: $ | E111: $ | F111: $ | G111: $ | H111: $ | I111: $ | J111: $

Sheet ACS800 (hidden)
A1: Typecode | B1: Prod.class | D1: Voltage range 1 | F1: Voltage range 2 (1-ph) | H1: Voltage range 2 | J1: Voltage range 3 | L1: Voltage range 4.6 | N1: Voltage range 5 | P1: Voltage range 7/6
A2: =VLOOKUP(DriveSel!E20,C8:Y71,DriveSel!D18) -> ACS800-01-0165-3 | B2: =VLOOKUP(#REF!,C8:X70,7) ->  | C2: non-US (50Hz) | D2: 115 V (1-ph) | F2: 230 V (1-ph) | H2: 230 V (3-ph) | J2: 400 V | L2: 460 V | N2: 500 V | P2: 690 V
A3: Col.ordinal | B3: Col.ordinal
C4: Alternatives: | D4: 115 V 1-ph | F4: 200/208/230/240 V 1-ph | H4: 200/208/230/240 V 3-ph | J4: 380/400/415 V | L4: 440/460/480 V | N4: 500 V | P4: 525/550/575/600/660/690 V
A5: Motor Power | B5: Motor | D5: Drive type | F5: Drive type | H5: Drive type | J5: Drive type | L5: Drive type | N5: Drive type | P5: Drive type
A6: =TypeListTemplate!A6 -> Hp | B6: =TypeListTemplate!B6 -> power kW
A7: =TypeListTemplate!A7 -> 0 | B7: =TypeListTemplate!B7 -> Column Ordinal -> | C7: =TypeListTemplate!C7 -> 1 | D7: =TypeListTemplate!D7 -> 2 | E7: =TypeListTemplate!E7 -> 3 | F7: =TypeListTemplate!F7 -> 4 | G7: =TypeListTemplate!G7 -> 5 | H7: =TypeListTemplate!H7 -> 6 | I7: =TypeListTemplate!I7 -> 7 | J7: =TypeListTemplate!J7 -> 8 | K7: =TypeListTemplate!K7 -> 9 | L7: =TypeListTemplate!L7 -> 10 | M7: =TypeListTemplate!M7 -> 11 | N7: =TypeListTemplate!N7 -> 12 | O7: =TypeListTemplate!O7 -> 13 | P7: =TypeListTemplate!P7 -> 14 | Q7: =TypeListTemplate!Q7 -> 15
A8: =TypeListTemplate!A8 -> 0 | B8: =TypeListTemplate!B8 -> 0 | C8: =TypeListTemplate!C8 -> 0
A9: =TypeListTemplate!A9 -> 0.07375620223 | B9: =TypeListTemplate!B9 -> 0.055 | C9: =TypeListTemplate!C9 -> 0.01
A10: =TypeListTemplate!A10 -> 0.1206919673 | B10: =TypeListTemplate!B10 -> 0.09 | C10: =TypeListTemplate!C10 -> 0.065
A11: =TypeListTemplate!A11 -> 0.160922623 | B11: =TypeListTemplate!B11 -> 0.12 | C11: =TypeListTemplate!C11 -> 0.1
A12: =TypeListTemplate!A12 -> 0.2413839346 | B12: =TypeListTemplate!B12 -> 0.18 | C12: =TypeListTemplate!C12 -> 0.13
A13: =TypeListTemplate!A13 -> 0.4961780877 | B13: =TypeListTemplate!B13 -> 0.37 | C13: =TypeListTemplate!C13 -> 0.19
A14: =TypeListTemplate!A14 -> 0.7375620223 | B14: =TypeListTemplate!B14 -> 0.55 | C14: =TypeListTemplate!C14 -> 0.38 | H14: ACS800-01-0001-2
A15: =TypeListTemplate!A15 -> 1.005766394 | B15: =TypeListTemplate!B15 -> 0.75 | C15: =TypeListTemplate!C15 -> 0.56 | H15: ACS800-01-0001-2
A16: =TypeListTemplate!A16 -> 1.475124045 | B16: =TypeListTemplate!B16 -> 1.1 | C16: =TypeListTemplate!C16 -> 0.76 | H16: ACS800-01-0001-2 | I16: wall-mounted | J16: ACS800-01-0003-3 | L16: ACS800-01-0004-5 | N16: ACS800-01-0004-5
A17: =TypeListTemplate!A17 -> 2.011532788 | B17: =TypeListTemplate!B17 -> 1.5 | C17: =TypeListTemplate!C17 -> 1.11 | H17: ACS800-01-0002-2 | I17: wall-mounted | J17: ACS800-01-0003-3 | L17: ACS800-01-0004-5 | N17: ACS800-01-0004-5
A18: =TypeListTemplate!A18 -> 2.950248089 | B18: =TypeListTemplate!B18 -> 2.2 | C18: =TypeListTemplate!C18 -> 1.51 | H18: ACS800-01-0004-2 | I18: wall-mounted | J18: ACS800-01-0004-3 | L18: ACS800-01-0004-5 | N18: ACS800-01-0004-5
A19: =TypeListTemplate!A19 -> 4.023065576 | B19: =TypeListTemplate!B19 -> 3 | C19: =TypeListTemplate!C19 -> 2.21 | H19: ACS800-01-0005-2 | I19: wall-mounted | J19: ACS800-01-0005-3 | L19: ACS800-01-0005-5 | N19: ACS800-01-0005-5
A20: =TypeListTemplate!A20 -> 5 | B20: =TypeListTemplate!B20 -> 3.7285 | C20: =TypeListTemplate!C20 -> 3.01 | H20: ACS800-01-0006-2 | J20: ACS800-01-0006-3 | L20: ACS800-01-0006-5 | N20: ACS800-01-0006-5
A21: =TypeListTemplate!A21 -> 5.364087435 | B21: =TypeListTemplate!B21 -> 4 | C21: =TypeListTemplate!C21 -> 3.7385 | H21: ACS800-01-0006-2 | I21: wall-mounted | J21: ACS800-01-0006-3 | L21: ACS800-01-0006-5 | N21: ACS800-01-0006-5
A22: =TypeListTemplate!A22 -> 7.375620223 | B22: =TypeListTemplate!B22 -> 5.5 | C22: =TypeListTemplate!C22 -> 4.01 | H22: ACS800-01-0009-2 | I22: wall-mounted | J22: ACS800-01-0009-3 | L22: ACS800-01-0009-5 | N22: ACS800-01-0009-5 | P22: ACS800-01-0011-7
A23: =TypeListTemplate!A23 -> 10.05766394 | B23: =TypeListTemplate!B23 -> 7.5 | C23: =TypeListTemplate!C23 -> 5.51 | H23: ACS800-01-0011-2 | I23: wall-mounted | J23: ACS800-01-0011-3 | L23: ACS800-01-0011-5 | N23: ACS800-01-0011-5 | P23: ACS800-01-0011-7
A24: =TypeListTemplate!A24 -> 14.75124045 | B24: =TypeListTemplate!B24 -> 11 | C24: =TypeListTemplate!C24 -> 7.51 | H24: ACS800-01-0016-2 | I24: wall-mounted | J24: ACS800-01-0016-3 | L24: ACS800-01-0016-5 | N24: ACS800-01-0016-5 | P24: ACS800-01-0011-7
A25: =TypeListTemplate!A25 -> 20.11532788 | B25: =TypeListTemplate!B25 -> 15 | C25: =TypeListTemplate!C25 -> 11.01 | H25: ACS800-01-0020-2 | I25: wall-mounted | J25: ACS800-01-0020-3 | L25: ACS800-01-0020-5 | N25: ACS800-01-0020-5 | P25: ACS800-01-0016-7
A26: =TypeListTemplate!A26 -> 24.80890439 | B26: =TypeListTemplate!B26 -> 18.5 | C26: =TypeListTemplate!C26 -> 15.01 | H26: ACS800-01-0025-2 | I26: wall-mounted | J26: ACS800-01-0025-3 | L26: ACS800-01-0025-5 | N26: ACS800-01-0025-5 | P26: ACS800-01-0020-7
A27: =TypeListTemplate!A27 -> 29.50248089 | B27: =TypeListTemplate!B27 -> 22 | C27: =TypeListTemplate!C27 -> 18.51 | H27: ACS800-01-0030-2 | I27: wall-mounted | J27: ACS800-01-0025-3 | L27: ACS800-01-0030-5 | N27: ACS800-01-0030-5 | P27: ACS800-01-0025-7
A28: =TypeListTemplate!A28 -> 40.23065576 | B28: =TypeListTemplate!B28 -> 30 | C28: =TypeListTemplate!C28 -> 22.01 | H28: ACS800-01-0040-2 | I28: wall-mounted | J28: ACS800-01-0030-3 | L28: ACS800-01-0040-5 | N28: ACS800-01-0040-5 | P28: ACS800-01-0030-7
A29: =TypeListTemplate!A29 -> 49.61780877 | B29: =TypeListTemplate!B29 -> 37 | C29: =TypeListTemplate!C29 -> 30.01 | H29: ACS800-01-0050-2 | I29: wall-mounted | J29: ACS800-01-0040-3 | L29: ACS800-01-0050-5 | N29: ACS800-01-0050-5 | P29: ACS800-01-0050-7
A30: =TypeListTemplate!A30 -> 60.34598364 | B30: =TypeListTemplate!B30 -> 45 | C30: =TypeListTemplate!C30 -> 37.01 | H30: ACS800-01-0060-2 | I30: wall-mounted | J30: ACS800-01-0050-3 | L30: ACS800-01-0060-5 | N30: ACS800-01-0060-5 | P30: ACS800-01-0050-7
A31: =TypeListTemplate!A31 -> 73.75620223 | B31: =TypeListTemplate!B31 -> 55 | C31: =TypeListTemplate!C31 -> 45.01 | H31: ACS800-01-0070-2 | I31: wall-mounted | J31: ACS800-01-0060-3 | L31: ACS800-01-0070-5 | N31: ACS800-01-0070-5 | P31: ACS800-01-0060-7
A32: =TypeListTemplate!A32 -> 100.5766394 | B32: =TypeListTemplate!B32 -> 75 | C32: =TypeListTemplate!C32 -> 55.01 | H32: ACS800-02-0100-2 | I32: free-standing | J32: ACS800-01-0075-3 | L32: ACS800-01-0105-5 | N32: ACS800-01-0105-5 | P32: ACS800-01-0070-7
A33: =TypeListTemplate!A33 -> 120.6919673 | B33: =TypeListTemplate!B33 -> 90 | C33: =TypeListTemplate!C33 -> 75.01 | H33: ACS800-02-0120-2 | I33: free-standing | J33: ACS800-01-0100-3 | L33: ACS800-01-0105-5 | N33: ACS800-01-0105-5 | P33: ACS800-01-0100-7
A34: =TypeListTemplate!A34 -> 147.5124045 | B34: =TypeListTemplate!B34 -> 110 | C34: =TypeListTemplate!C34 -> 90.01 | H34: ACS800-02-0140-2 | I34: free-standing | J34: ACS800-01-0120-3 | L34: ACS800-01-0140-5 | N34: ACS800-01-0140-5 | P34: ACS800-01-0120-7
A35: =TypeListTemplate!A35 -> 177.0148853 | B35: =TypeListTemplate!B35 -> 132 | C35: =TypeListTemplate!C35 -> 110.01 | H35: ACS800-02-0170-2 | I35: free-standing | J35: ACS800-01-0165-3 | L35: ACS800-01-0165-5 | N35: ACS800-01-0165-5 | P35: ACS800-01-0145-7
A36: =TypeListTemplate!A36 -> 200 | B36: =TypeListTemplate!B36 -> 149.14 | C36: =TypeListTemplate!C36 -> 132.01 | H36: ACS800-02-0210-2 | J36: ACS800-01-0205-3 | L36: ACS800-01-0205-5 | N36: ACS800-01-0205-5 | P36: ACS800-01-0175-7
A37: =TypeListTemplate!A37 -> 214.5634974 | B37: =TypeListTemplate!B37 -> 160 | C37: =TypeListTemplate!C37 -> 149.15 | H37: ACS800-02-0210-2 | I37: free-standing | J37: ACS800-01-0205-3 | L37: ACS800-01-0205-5 | N37: ACS800-01-0205-5 | P37: ACS800-01-0175-7
A38: =TypeListTemplate!A38 -> 250 | B38: =TypeListTemplate!B38 -> 186.425 | C38: =TypeListTemplate!C38 -> 160.01 | H38: ACS800-02-0260-2 | I38: free-standing | J38: ACS800-02-0260-3 | L38: ACS800-01-0255-5 | N38: ACS800-01-0255-5 | P38: ACS800-02-0260-7
A39: =TypeListTemplate!A39 -> 268.2043717 | B39: =TypeListTemplate!B39 -> 200 | C39: =TypeListTemplate!C39 -> 186.435 | H39: ACS800-02-0260-2 | I39: free-standing | J39: ACS800-02-0260-3 | L39: ACS800-01-0255-5 | N39: ACS800-01-0255-5 | P39: ACS800-02-0260-7
A40: =TypeListTemplate!A40 -> 300 | B40: =TypeListTemplate!B40 -> 223.71 | C40: =TypeListTemplate!C40 -> 200.01 | J40: ACS800-02-0320-3 | L40: ACS800-02-0320-5 | N40: ACS800-02-0320-5 | P40: ACS800-02-0320-7
A41: =TypeListTemplate!A41 -> 335.2554647 | B41: =TypeListTemplate!B41 -> 250 | C41: =TypeListTemplate!C41 -> 223.72 | J41: ACS800-02-0320-3 | L41: ACS800-02-0320-5 | N41: ACS800-02-0320-5 | P41: ACS800-02-0320-7
A42: =TypeListTemplate!A42 -> 400 | B42: =TypeListTemplate!B42 -> 298.28 | C42: =TypeListTemplate!C42 -> 250.01 | J42: ACS800-02-0400-3 | L42: ACS800-02-0400-5 | N42: ACS800-02-0400-5 | P42: ACS800-02-0320-7
A43: =TypeListTemplate!A43 -> 422.4218855 | B43: =TypeListTemplate!B43 -> 315 | C43: =TypeListTemplate!C43 -> 298.29 | J43: ACS800-02-0400-3 | L43: ACS800-02-0400-5 | N43: ACS800-02-0400-5 | P43: ACS800-02-0320-7
A44: =TypeListTemplate!A44 -> 476.0627598 | B44: =TypeListTemplate!B44 -> 355 | C44: =TypeListTemplate!C44 -> 315.01 | J44: ACS800-02-0440-3 | L44: ACS800-02-0440-5 | N44: ACS800-02-0440-5 | P44: ACS800-02-0400-7
A45: =TypeListTemplate!A45 -> 536.4087435 | B45: =TypeListTemplate!B45 -> 400 | C45: =TypeListTemplate!C45 -> 355.01 | J45: ACS800-02-0490-3 | L45: ACS800-02-0490-5 | N45: ACS800-02-0490-5 | P45: ACS800-02-0440-7
A46: =TypeListTemplate!A46 -> 603.4598364 | B46: =TypeListTemplate!B46 -> 450 | C46: =TypeListTemplate!C46 -> 400.01 | J46: ACS800-07-0610-3 | L46: ACS800-02-0550-5 | N46: ACS800-02-0550-5 | P46: ACS800-02-0490-7
A47: =TypeListTemplate!A47 -> 670.5109293 | B47: =TypeListTemplate!B47 -> 500 | C47: =TypeListTemplate!C47 -> 450.01 | J47: ACS800-07-0610-3 | L47: ACS800-02-0610-5 | N47: ACS800-02-0610-5 | P47: ACS800-02-0550-7
A48: =TypeListTemplate!A48 -> 750.9722408 | B48: =TypeListTemplate!B48 -> 560 | C48: =TypeListTemplate!C48 -> 500.01 | J48: ACS800-07-0770-3 | L48: ACS800-07-0760-5 | N48: ACS800-07-0760-5 | P48: ACS800-02-0610-7
A49: =TypeListTemplate!A49 -> 844.843771 | B49: =TypeListTemplate!B49 -> 630 | C49: =TypeListTemplate!C49 -> 560.01 | J49: ACS800-07-0770-3 | L49: ACS800-07-0760-5 | N49: ACS800-07-0760-5 | P49: ACS800-07-0750-7
A50: =TypeListTemplate!A50 -> 952.1255196 | B50: =TypeListTemplate!B50 -> 710 | C50: =TypeListTemplate!C50 -> 630.01 | J50: ACS800-07-0870-3 | L50: ACS800-07-0910-5 | N50: ACS800-07-0910-5 | P50: ACS800-07-0870-7
A51: =TypeListTemplate!A51 -> 1072.817487 | B51: =TypeListTemplate!B51 -> 800 | C51: =TypeListTemplate!C51 -> 710.01 | J51: ACS800-07-1030-3 | L51: ACS800-07-1090-5 | N51: ACS800-07-1090-5 | P51: ACS800-07-1060-7
A52: =TypeListTemplate!A52 -> 1206.919673 | B52: =TypeListTemplate!B52 -> 900 | C52: =TypeListTemplate!C52 -> 800.01 | J52: ACS800-07-1230-3 | L52: ACS800-07-1090-5 | N52: ACS800-07-1090-5 | P52: ACS800-07-1160-7
A53: =TypeListTemplate!A53 -> 1341.021859 | B53: =TypeListTemplate!B53 -> 1000 | C53: =TypeListTemplate!C53 -> 900.01 | J53: ACS800-07-1230-3 | L53: ACS800-07-1210-5 | N53: ACS800-07-1210-5 | P53: ACS800-07-1500-7
A54: =TypeListTemplate!A54 -> 1501.944482 | B54: =TypeListTemplate!B54 -> 1120 | C54: =TypeListTemplate!C54 -> 1000.01 | J54: ACS800-07-1540-3 | L54: ACS800-07-1540-5 | N54: ACS800-07-1540-5 | P54: ACS800-07-1500-7
A55: =TypeListTemplate!A55 -> 1676.277323 | B55: =TypeListTemplate!B55 -> 1250 | C55: =TypeListTemplate!C55 -> 1120.01 | J55: ACS800-07-1850-3 | L55: ACS800-07-1540-5 | N55: ACS800-07-1540-5 | P55: ACS800-07-1740-7
A56: =TypeListTemplate!A56 -> 1877.430602 | B56: =TypeListTemplate!B56 -> 1400 | C56: =TypeListTemplate!C56 -> 1250.01 | J56: ACS800-07-1850-3 | L56: ACS800-07-1820-5 | N56: ACS800-07-1820-5 | P56: ACS800-07-1740-7
A57: =TypeListTemplate!A57 -> 2145.634974 | B57: =TypeListTemplate!B57 -> 1600 | C57: =TypeListTemplate!C57 -> 1400.01 | J57: Check with ABB! | L57: ACS800-07-2310-5 | N57: ACS800-07-2310-5 | P57: ACS800-07-2120-7
A58: =TypeListTemplate!A58 -> 2346.788253 | B58: =TypeListTemplate!B58 -> 1750 | C58: =TypeListTemplate!C58 -> 1600.01 | L58: ACS800-07-2310-5 | N58: ACS800-07-2310-5 | P58: ACS800-07-2320-7
A59: =TypeListTemplate!A59 -> 2413.839346 | B59: =TypeListTemplate!B59 -> 1800 | C59: =TypeListTemplate!C59 -> 1750.01 | L59: ACS800-07-2310-5 | N59: ACS800-07-2310-5 | P59: ACS800-07-2320-7
A60: =TypeListTemplate!A60 -> 2682.043717 | B60: =TypeListTemplate!B60 -> 2000 | C60: =TypeListTemplate!C60 -> 1800.01 | L60: Check with ABB! | N60: Check with ABB! | P60: ACS800-07-2900-7
A61: =TypeListTemplate!A61 -> 2950.248089 | B61: =TypeListTemplate!B61 -> 2200 | C61: =TypeListTemplate!C61 -> 2000.01 | P61: ACS800-07-2900-7
A62: =TypeListTemplate!A62 -> 3017.299182 | B62: =TypeListTemplate!B62 -> 2250 | C62: =TypeListTemplate!C62 -> 2200.01 | P62: ACS800-07-2900-7
A63: =TypeListTemplate!A63 -> 3084.350275 | B63: =TypeListTemplate!B63 -> 2300 | C63: =TypeListTemplate!C63 -> 2250.01 | P63: ACS800-07-2900-7
A64: =TypeListTemplate!A64 -> 3352.554647 | B64: =TypeListTemplate!B64 -> 2500 | C64: =TypeListTemplate!C64 -> 2300.01 | P64: ACS800-07-3190-7
A65: =TypeListTemplate!A65 -> 3754.861204 | B65: =TypeListTemplate!B65 -> 2800 | C65: =TypeListTemplate!C65 -> 2500.01 | P65: ACS800-07-3490-7
A66: =TypeListTemplate!A66 -> 4224.218855 | B66: =TypeListTemplate!B66 -> 3150 | C66: =TypeListTemplate!C66 -> 2800.01 | P66: Check with ABB!
A67: =TypeListTemplate!A67 -> 4760.627598 | B67: =TypeListTemplate!B67 -> 3550 | C67: =TypeListTemplate!C67 -> 3150.01
A68: =TypeListTemplate!A68 -> 5364.087435 | B68: =TypeListTemplate!B68 -> 4000 | C68: =TypeListTemplate!C68 -> 3550.01
A69: =TypeListTemplate!A69 -> 6034.598364 | B69: =TypeListTemplate!B69 -> 4500 | C69: =TypeListTemplate!C69 -> 4000.01
A70: =TypeListTemplate!A70 -> 6705.109293 | B70: =TypeListTemplate!B70 -> 5000 | C70: =TypeListTemplate!C70 -> 4500.01
A71: =TypeListTemplate!A71 -> 0 | B71: =TypeListTemplate!B71 -> 999999999 | C71: =TypeListTemplate!C71 -> 5000.01
A72: =TypeListTemplate!A72 -> 0 | B72: =TypeListTemplate!B72 -> 0 | C72: =TypeListTemplate!C72 -> 0
A73: =TypeListTemplate!A73 -> 0 | B73: =TypeListTemplate!B73 -> 0 | C73: =TypeListTemplate!C73 -> 0 | D73: =TypeListTemplate!D73 -> Drive type | E73: =TypeListTemplate!E73 -> 0 | F73: =TypeListTemplate!F73 -> Drive type | G73: =TypeListTemplate!G73 -> 0 | H73: =TypeListTemplate!H73 -> Drive type | I73: =TypeListTemplate!I73 -> 0 | J73: =TypeListTemplate!J73 -> Drive type | K73: =TypeListTemplate!K73 -> 0 | L73: =TypeListTemplate!L73 -> Drive type | M73: =TypeListTemplate!M73 -> 0 | N73: =TypeListTemplate!N73 -> Drive type | O73: =TypeListTemplate!O73 -> 0 | P73: =TypeListTemplate!P73 -> Drive type | Q73: =TypeListTemplate!Q73 -> 0
A74: =TypeListTemplate!A74 -> 0 | B74: =TypeListTemplate!B74 -> 0 | C74: =TypeListTemplate!C74 -> 0 | D74: =TypeListTemplate!D74 -> 115 V (1-ph) | E74: =TypeListTemplate!E74 -> 0 | F74: =TypeListTemplate!F74 -> 230 V (1-ph) | G74: =TypeListTemplate!G74 -> 0 | H74: =TypeListTemplate!H74 -> 230 V (3-ph) | I74: =TypeListTemplate!I74 -> 0 | J74: =TypeListTemplate!J74 -> 400 V | K74: =TypeListTemplate!K74 -> 0 | L74: =TypeListTemplate!L74 -> 460 V | M74: =TypeListTemplate!M74 -> 0 | N74: =TypeListTemplate!N74 -> 500 V | O74: =TypeListTemplate!O74 -> 0 | P74: =TypeListTemplate!P74 -> 690 V | Q74: =TypeListTemplate!Q74 -> 0
A75: =TypeListTemplate!A75 -> 0 | B75: =TypeListTemplate!B75 -> 0 | C75: =TypeListTemplate!C75 -> 0 | D75: =TypeListTemplate!D75 -> 0 | E75: =TypeListTemplate!E75 -> 0 | F75: =TypeListTemplate!F75 -> 0 | G75: =TypeListTemplate!G75 -> 0 | H75: =TypeListTemplate!H75 -> 0 | I75: =TypeListTemplate!I75 -> 0 | J75: =TypeListTemplate!J75 -> 0 | K75: =TypeListTemplate!K75 -> 0 | L75: =TypeListTemplate!L75 -> 0 | M75: =TypeListTemplate!M75 -> 0 | N75: =TypeListTemplate!N75 -> 0 | O75: =TypeListTemplate!O75 -> 0 | P75: =TypeListTemplate!P75 -> 0 | Q75: =TypeListTemplate!Q75 -> 0
A76: =TypeListTemplate!A76 -> 0 | B76: =TypeListTemplate!B76 -> 0 | C76: =TypeListTemplate!C76 -> 0 | D76: =TypeListTemplate!D76 -> 0 | E76: =TypeListTemplate!E76 -> 0 | F76: =TypeListTemplate!F76 -> 0 | G76: =TypeListTemplate!G76 -> 0 | H76: =TypeListTemplate!H76 -> 0 | I76: =TypeListTemplate!I76 -> 0 | J76: =TypeListTemplate!J76 -> 0 | K76: =TypeListTemplate!K76 -> 0 | L76: =TypeListTemplate!L76 -> 0 | M76: =TypeListTemplate!M76 -> 0 | N76: =TypeListTemplate!N76 -> 0 | O76: =TypeListTemplate!O76 -> 0 | P76: =TypeListTemplate!P76 -> 0 | Q76: =TypeListTemplate!Q76 -> 0
A77: =TypeListTemplate!A77 -> 0 | B77: =TypeListTemplate!B77 -> 0 | C77: =TypeListTemplate!C77 -> 0 | D77: =TypeListTemplate!D77 -> 0 | E77: =TypeListTemplate!E77 -> 0 | F77: =TypeListTemplate!F77 -> 0 | G77: =TypeListTemplate!G77 -> 0 | H77: =TypeListTemplate!H77 -> 0 | I77: =TypeListTemplate!I77 -> 0 | J77: =TypeListTemplate!J77 -> 0 | K77: =TypeListTemplate!K77 -> 0 | L77: =TypeListTemplate!L77 -> 0 | M77: =TypeListTemplate!M77 -> 0 | N77: =TypeListTemplate!N77 -> 0 | O77: =TypeListTemplate!O77 -> 0 | P77: =TypeListTemplate!P77 -> 0 | Q77: =TypeListTemplate!Q77 -> 0
A78: =TypeListTemplate!A78 -> 0 | B78: =TypeListTemplate!B78 -> 0 | C78: =TypeListTemplate!C78 -> 0 | D78: =TypeListTemplate!D78 -> 0 | E78: =TypeListTemplate!E78 -> 0 | F78: =TypeListTemplate!F78 -> 0 | G78: =TypeListTemplate!G78 -> 0 | H78: =TypeListTemplate!H78 -> 0 | I78: =TypeListTemplate!I78 -> 0 | J78: =TypeListTemplate!J78 -> 0 | K78: =TypeListTemplate!K78 -> 0 | L78: =TypeListTemplate!L78 -> 0 | M78: =TypeListTemplate!M78 -> 0 | N78: =TypeListTemplate!N78 -> 0 | O78: =TypeListTemplate!O78 -> 0 | P78: =TypeListTemplate!P78 -> 0 | Q78: =TypeListTemplate!Q78 -> 0
A79: =TypeListTemplate!A79 -> 0 | B79: =TypeListTemplate!B79 -> 0 | C79: =TypeListTemplate!C79 -> 0 | D79: =TypeListTemplate!D79 -> 0 | E79: =TypeListTemplate!E79 -> 0 | F79: =TypeListTemplate!F79 -> 0 | G79: =TypeListTemplate!G79 -> 0 | H79: =TypeListTemplate!H79 -> 0 | I79: =TypeListTemplate!I79 -> 0 | J79: =TypeListTemplate!J79 -> 0 | K79: =TypeListTemplate!K79 -> 0 | L79: =TypeListTemplate!L79 -> 0 | M79: =TypeListTemplate!M79 -> 0 | N79: =TypeListTemplate!N79 -> 0 | O79: =TypeListTemplate!O79 -> 0 | P79: =TypeListTemplate!P79 -> 0 | Q79: =TypeListTemplate!Q79 -> 0
A80: =TypeListTemplate!A80 -> 0 | B80: =TypeListTemplate!B80 -> 0 | C80: =TypeListTemplate!C80 -> 0 | D80: =TypeListTemplate!D80 -> 0 | E80: =TypeListTemplate!E80 -> 0 | F80: =TypeListTemplate!F80 -> 0 | G80: =TypeListTemplate!G80 -> 0 | H80: =TypeListTemplate!H80 -> 0 | I80: =TypeListTemplate!I80 -> 0 | J80: =TypeListTemplate!J80 -> 0 | K80: =TypeListTemplate!K80 -> 0 | L80: =TypeListTemplate!L80 -> 0 | M80: =TypeListTemplate!M80 -> 0 | N80: =TypeListTemplate!N80 -> 0 | O80: =TypeListTemplate!O80 -> 0 | P80: =TypeListTemplate!P80 -> 0 | Q80: =TypeListTemplate!Q80 -> 0
A81: =TypeListTemplate!A81 -> 0 | B81: =TypeListTemplate!B81 -> 0 | C81: =TypeListTemplate!C81 -> 0 | D81: =TypeListTemplate!D81 -> 0 | E81: =TypeListTemplate!E81 -> 0 | F81: =TypeListTemplate!F81 -> 0 | G81: =TypeListTemplate!G81 -> 0 | H81: =TypeListTemplate!H81 -> 0 | I81: =TypeListTemplate!I81 -> 0 | J81: =TypeListTemplate!J81 -> 0 | K81: =TypeListTemplate!K81 -> 0 | L81: =TypeListTemplate!L81 -> 0 | M81: =TypeListTemplate!M81 -> 0 | N81: =TypeListTemplate!N81 -> 0 | O81: =TypeListTemplate!O81 -> 0 | P81: =TypeListTemplate!P81 -> 0 | Q81: =TypeListTemplate!Q81 -> 0
A82: =TypeListTemplate!A82 -> 0 | B82: =TypeListTemplate!B82 -> 0 | C82: =TypeListTemplate!C82 -> 0 | D82: =TypeListTemplate!D82 -> 0 | E82: =TypeListTemplate!E82 -> 0 | F82: =TypeListTemplate!F82 -> 0 | G82: =TypeListTemplate!G82 -> 0 | H82: =TypeListTemplate!H82 -> 0 | I82: =TypeListTemplate!I82 -> 0 | J82: =TypeListTemplate!J82 -> 0 | K82: =TypeListTemplate!K82 -> 0 | L82: =TypeListTemplate!L82 -> 0 | M82: =TypeListTemplate!M82 -> 0 | N82: =TypeListTemplate!N82 -> 0 | O82: =TypeListTemplate!O82 -> 0 | P82: =TypeListTemplate!P82 -> 0 | Q82: =TypeListTemplate!Q82 -> 0
A83: =TypeListTemplate!A83 -> 0 | B83: =TypeListTemplate!B83 -> 0 | C83: =TypeListTemplate!C83 -> 0 | D83: =TypeListTemplate!D83 -> 0 | E83: =TypeListTemplate!E83 -> 0 | F83: =TypeListTemplate!F83 -> 0 | G83: =TypeListTemplate!G83 -> 0 | H83: =TypeListTemplate!H83 -> 0 | I83: =TypeListTemplate!I83 -> 0 | J83: =TypeListTemplate!J83 -> 0 | K83: =TypeListTemplate!K83 -> 0 | L83: =TypeListTemplate!L83 -> 0 | M83: =TypeListTemplate!M83 -> 0 | N83: =TypeListTemplate!N83 -> 0 | O83: =TypeListTemplate!O83 -> 0 | P83: =TypeListTemplate!P83 -> 0 | Q83: =TypeListTemplate!Q83 -> 0
A84: =TypeListTemplate!A84 -> 0 | B84: =TypeListTemplate!B84 -> 0 | C84: =TypeListTemplate!C84 -> 0 | D84: =TypeListTemplate!D84 -> 0 | E84: =TypeListTemplate!E84 -> 0 | F84: =TypeListTemplate!F84 -> 0 | G84: =TypeListTemplate!G84 -> 0 | H84: =TypeListTemplate!H84 -> 0 | I84: =TypeListTemplate!I84 -> 0 | J84: =TypeListTemplate!J84 -> 0 | K84: =TypeListTemplate!K84 -> 0 | L84: =TypeListTemplate!L84 -> 0 | M84: =TypeListTemplate!M84 -> 0 | N84: =TypeListTemplate!N84 -> 0 | O84: =TypeListTemplate!O84 -> 0 | P84: =TypeListTemplate!P84 -> 0 | Q84: =TypeListTemplate!Q84 -> 0
A85: =TypeListTemplate!A85 -> 0 | B85: =TypeListTemplate!B85 -> 0 | C85: =TypeListTemplate!C85 -> 0 | D85: =TypeListTemplate!D85 -> 0 | E85: =TypeListTemplate!E85 -> 0 | F85: =TypeListTemplate!F85 -> 0 | G85: =TypeListTemplate!G85 -> 0 | H85: =TypeListTemplate!H85 -> 0 | I85: =TypeListTemplate!I85 -> 0 | J85: =TypeListTemplate!J85 -> 0 | K85: =TypeListTemplate!K85 -> 0 | L85: =TypeListTemplate!L85 -> 0 | M85: =TypeListTemplate!M85 -> 0 | N85: =TypeListTemplate!N85 -> 0 | O85: =TypeListTemplate!O85 -> 0 | P85: =TypeListTemplate!P85 -> 0 | Q85: =TypeListTemplate!Q85 -> 0
A86: =TypeListTemplate!A86 -> 0 | B86: =TypeListTemplate!B86 -> 0 | C86: =TypeListTemplate!C86 -> 0 | D86: =TypeListTemplate!D86 -> 0 | E86: =TypeListTemplate!E86 -> 0 | F86: =TypeListTemplate!F86 -> 0 | G86: =TypeListTemplate!G86 -> 0 | H86: =TypeListTemplate!H86 -> 0 | I86: =TypeListTemplate!I86 -> 0 | J86: =TypeListTemplate!J86 -> 0 | K86: =TypeListTemplate!K86 -> 0 | L86: =TypeListTemplate!L86 -> 0 | M86: =TypeListTemplate!M86 -> 0 | N86: =TypeListTemplate!N86 -> 0 | O86: =TypeListTemplate!O86 -> 0 | P86: =TypeListTemplate!P86 -> 0 | Q86: =TypeListTemplate!Q86 -> 0
A87: =TypeListTemplate!A87 -> 0 | B87: =TypeListTemplate!B87 -> 0 | C87: =TypeListTemplate!C87 -> 0 | D87: =TypeListTemplate!D87 -> 0 | E87: =TypeListTemplate!E87 -> 0 | F87: =TypeListTemplate!F87 -> 0 | G87: =TypeListTemplate!G87 -> 0 | H87: =TypeListTemplate!H87 -> 0 | I87: =TypeListTemplate!I87 -> 0 | J87: =TypeListTemplate!J87 -> 0 | K87: =TypeListTemplate!K87 -> 0 | L87: =TypeListTemplate!L87 -> 0 | M87: =TypeListTemplate!M87 -> 0 | N87: =TypeListTemplate!N87 -> 0 | O87: =TypeListTemplate!O87 -> 0 | P87: =TypeListTemplate!P87 -> 0 | Q87: =TypeListTemplate!Q87 -> 0
A88: =TypeListTemplate!A88 -> 0 | B88: =TypeListTemplate!B88 -> 0 | C88: =TypeListTemplate!C88 -> 0 | D88: =TypeListTemplate!D88 -> 0 | E88: =TypeListTemplate!E88 -> 0 | F88: =TypeListTemplate!F88 -> 0 | G88: =TypeListTemplate!G88 -> 0 | H88: =TypeListTemplate!H88 -> 0 | I88: =TypeListTemplate!I88 -> 0 | J88: =TypeListTemplate!J88 -> 0 | K88: =TypeListTemplate!K88 -> 0 | L88: =TypeListTemplate!L88 -> 0 | M88: =TypeListTemplate!M88 -> 0 | N88: =TypeListTemplate!N88 -> 0 | O88: =TypeListTemplate!O88 -> 0 | P88: =TypeListTemplate!P88 -> 0 | Q88: =TypeListTemplate!Q88 -> 0
A89: =TypeListTemplate!A89 -> 0 | B89: =TypeListTemplate!B89 -> 0 | C89: =TypeListTemplate!C89 -> 0 | D89: =TypeListTemplate!D89 -> 0 | E89: =TypeListTemplate!E89 -> 0 | F89: =TypeListTemplate!F89 -> 0 | G89: =TypeListTemplate!G89 -> 0 | H89: =TypeListTemplate!H89 -> 0 | I89: =TypeListTemplate!I89 -> 0 | J89: =TypeListTemplate!J89 -> 0 | K89: =TypeListTemplate!K89 -> 0 | L89: =TypeListTemplate!L89 -> 0 | M89: =TypeListTemplate!M89 -> 0 | N89: =TypeListTemplate!N89 -> 0 | O89: =TypeListTemplate!O89 -> 0 | P89: =TypeListTemplate!P89 -> 0 | Q89: =TypeListTemplate!Q89 -> 0
A90: =TypeListTemplate!A90 -> 0 | B90: =TypeListTemplate!B90 -> 0 | C90: =TypeListTemplate!C90 -> 0 | D90: =TypeListTemplate!D90 -> 0 | E90: =TypeListTemplate!E90 -> 0 | F90: =TypeListTemplate!F90 -> 0 | G90: =TypeListTemplate!G90 -> 0 | H90: =TypeListTemplate!H90 -> 0 | I90: =TypeListTemplate!I90 -> 0 | J90: =TypeListTemplate!J90 -> 0 | K90: =TypeListTemplate!K90 -> 0 | L90: =TypeListTemplate!L90 -> 0 | M90: =TypeListTemplate!M90 -> 0 | N90: =TypeListTemplate!N90 -> 0 | O90: =TypeListTemplate!O90 -> 0 | P90: =TypeListTemplate!P90 -> 0 | Q90: =TypeListTemplate!Q90 -> 0
A91: =TypeListTemplate!A91 -> 0 | B91: =TypeListTemplate!B91 -> 0 | C91: =TypeListTemplate!C91 -> 0 | D91: =TypeListTemplate!D91 -> 0 | E91: =TypeListTemplate!E91 -> 0 | F91: =TypeListTemplate!F91 -> 0 | G91: =TypeListTemplate!G91 -> 0 | H91: =TypeListTemplate!H91 -> 0 | I91: =TypeListTemplate!I91 -> 0 | J91: =TypeListTemplate!J91 -> 0 | K91: =TypeListTemplate!K91 -> 0 | L91: =TypeListTemplate!L91 -> 0 | M91: =TypeListTemplate!M91 -> 0 | N91: =TypeListTemplate!N91 -> 0 | O91: =TypeListTemplate!O91 -> 0 | P91: =TypeListTemplate!P91 -> 0 | Q91: =TypeListTemplate!Q91 -> 0
A92: =TypeListTemplate!A92 -> 0 | B92: =TypeListTemplate!B92 -> 0 | C92: =TypeListTemplate!C92 -> 0 | D92: =TypeListTemplate!D92 -> 0 | E92: =TypeListTemplate!E92 -> 0 | F92: =TypeListTemplate!F92 -> 0 | G92: =TypeListTemplate!G92 -> 0 | H92: =TypeListTemplate!H92 -> 0 | I92: =TypeListTemplate!I92 -> 0 | J92: =TypeListTemplate!J92 -> 0 | K92: =TypeListTemplate!K92 -> 0 | L92: =TypeListTemplate!L92 -> 0 | M92: =TypeListTemplate!M92 -> 0 | N92: =TypeListTemplate!N92 -> 0 | O92: =TypeListTemplate!O92 -> 0 | P92: =TypeListTemplate!P92 -> 0 | Q92: =TypeListTemplate!Q92 -> 0
A93: =TypeListTemplate!A93 -> 0 | B93: =TypeListTemplate!B93 -> 0 | C93: =TypeListTemplate!C93 -> 0 | D93: =TypeListTemplate!D93 -> 0 | E93: =TypeListTemplate!E93 -> 0 | F93: =TypeListTemplate!F93 -> 0 | G93: =TypeListTemplate!G93 -> 0 | H93: =TypeListTemplate!H93 -> 0 | I93: =TypeListTemplate!I93 -> 0 | J93: =TypeListTemplate!J93 -> 0 | K93: =TypeListTemplate!K93 -> 0 | L93: =TypeListTemplate!L93 -> 0 | M93: =TypeListTemplate!M93 -> 0 | N93: =TypeListTemplate!N93 -> 0 | O93: =TypeListTemplate!O93 -> 0 | P93: =TypeListTemplate!P93 -> 0 | Q93: =TypeListTemplate!Q93 -> 0
A94: =TypeListTemplate!A94 -> 0 | B94: =TypeListTemplate!B94 -> 0 | C94: =TypeListTemplate!C94 -> 0 | D94: =TypeListTemplate!D94 -> 0 | E94: =TypeListTemplate!E94 -> 0 | F94: =TypeListTemplate!F94 -> 0 | G94: =TypeListTemplate!G94 -> 0 | H94: =TypeListTemplate!H94 -> 0 | I94: =TypeListTemplate!I94 -> 0 | J94: =TypeListTemplate!J94 -> 0 | K94: =TypeListTemplate!K94 -> 0 | L94: =TypeListTemplate!L94 -> 0 | M94: =TypeListTemplate!M94 -> 0 | N94: =TypeListTemplate!N94 -> 0 | O94: =TypeListTemplate!O94 -> 0 | P94: =TypeListTemplate!P94 -> 0 | Q94: =TypeListTemplate!Q94 -> 0
A95: =TypeListTemplate!A95 -> 0 | B95: =TypeListTemplate!B95 -> 0 | C95: =TypeListTemplate!C95 -> 0 | D95: =TypeListTemplate!D95 -> 0 | E95: =TypeListTemplate!E95 -> 0 | F95: =TypeListTemplate!F95 -> 0 | G95: =TypeListTemplate!G95 -> 0 | H95: =TypeListTemplate!H95 -> 0 | I95: =TypeListTemplate!I95 -> 0 | J95: =TypeListTemplate!J95 -> 0 | K95: =TypeListTemplate!K95 -> 0 | L95: =TypeListTemplate!L95 -> 0 | M95: =TypeListTemplate!M95 -> 0 | N95: =TypeListTemplate!N95 -> 0 | O95: =TypeListTemplate!O95 -> 0 | P95: =TypeListTemplate!P95 -> 0 | Q95: =TypeListTemplate!Q95 -> 0

Sheet ACS880 (hidden)
A1: Typecode | B1: Prod.class | D1: Voltage range 1 | F1: Voltage range 2 (1-ph) | H1: Voltage range 2 | J1: Voltage range 3 | L1: Voltage range 4.6 | N1: Voltage range 5 | P1: Voltage range 7/6
A2: =VLOOKUP(DriveSel!E20,C8:Y71,DriveSel!D18) -> ACS880-01-246A-3 | B2: =VLOOKUP(#REF!,C8:X70,7) ->  | C2: non-US (50Hz) | D2: 115 V (1-ph) | F2: 230 V (1-ph) | H2: 230 V (3-ph) | J2: 400 V | L2: 460 V | N2: 500 V | P2: 690 V
A3: Col.ordinal | B3: Col.ordinal | C3: US (60Hz) | D3: 115 V (1-ph) | F3: 230 V (1-ph) | H3: 230 V (3-ph) | J3: 400 V | L3: 460 V | N3: 500 V | P3: 575 V
C4: Alternatives: | D4: 115 V 1-ph | F4: 200/208/230/240 V 1-ph | H4: 200/208/230/240 V 3-ph | J4: 380/400/415 V | L4: 440/460/480 V | N4: 500 V | P4: 525/550/575/600/660/690 V
A5: Motor Power | B5: Motor | D5: Drive type | F5: Drive type | H5: Drive type | J5: Drive type | L5: Drive type | N5: Drive type | P5: Drive type
A6: Hp | B6: power kW
A7: 0 | B7: Column Ordinal -> | C7: 1 | D7: 2 | E7: 3 | F7: 4 | G7: 5 | H7: 6 | I7: 7 | J7: 8 | K7: 9 | L7: 10 | M7: 11 | N7: 12 | O7: 13 | P7: 14 | Q7: 15
A8: 0 | B8: 0 | C8: 0
A9: 0.07375620223 | B9: 0.055 | C9: 0.01
A10: 0.1206919673 | B10: 0.09 | C10: 0.065
A11: 0.160922623 | B11: 0.12 | C11: 0.1
A12: 0.2413839346 | B12: 0.18 | C12: 0.13
A13: 0.4961780877 | B13: 0.37 | C13: 0.19
A14: 0.7375620223 | B14: 0.55 | C14: 0.38
A15: 1.005766394 | B15: 0.75 | C15: 0.56 | H15: ACS880-01-04A6-2 | I15: wall-mounted | J15: ACS880-01-02A4-3 | L15: ACS880-01-02A1-5 | N15: ACS880-01-02A1-5
A16: 1.475124045 | B16: 1.1 | C16: 0.76 | H16: ACS880-01-06A6-2 | I16: wall-mounted | J16: ACS880-01-03A3-3 | L16: ACS880-01-03A0-5 | N16: ACS880-01-03A0-5
A17: 2.011532788 | B17: 1.5 | C17: 1.11 | H17: ACS880-01-07A5-2 | I17: wall-mounted | J17: ACS880-01-04A0-3 | L17: ACS880-01-03A4-5 | N17: ACS880-01-03A4-5
A18: 2.950248089 | B18: 2.2 | C18: 1.51 | H18: ACS880-01-10A6-2 | I18: wall-mounted | J18: ACS880-01-05A6-3 | L18: ACS880-01-04A8-5 | N18: ACS880-01-04A8-5
A19: 4.023065576 | B19: 3 | C19: 2.21 | H19: ACS880-01-16A8-2 | I19: wall-mounted | J19: ACS880-01-07A2-3 | L19: ACS880-01-05A2-5 | N19: ACS880-01-05A2-5
A20: 5 | B20: 3.7285 | C20: 3.01 | H20: ACS880-01-16A8-2 | J20: ACS880-01-09A4-3 | L20: ACS880-01-07A6-5 | N20: ACS880-01-07A6-5
A21: 5.364087435 | B21: 4 | C21: 3.7385 | H21: ACS880-01-16A8-2 | I21: wall-mounted | J21: ACS880-01-09A4-3 | L21: ACS880-01-07A6-5 | N21: ACS880-01-07A6-5
A22: 7.375620223 | B22: 5.5 | C22: 4.01 | H22: ACS880-01-24A3-2 | I22: wall-mounted | J22: ACS880-01-12A6-3 | L22: ACS880-01-11A0-5 | N22: ACS880-01-11A0-5 | P22: ACS880-01-07A3-7
A23: 10.05766394 | B23: 7.5 | C23: 5.51 | H23: ACS880-01-031A-2 | I23: wall-mounted | J23: ACS880-01-17A0-3 | L23: ACS880-01-014A-5 | N23: ACS880-01-014A-5 | P23: ACS880-01-09A8-7
A24: 14.75124045 | B24: 11 | C24: 7.51 | H24: ACS880-01-046A-2 | I24: wall-mounted | J24: ACS880-01-25A0-3 | L24: ACS880-01-021A-5 | N24: ACS880-01-021A-5 | P24: ACS880-01-14A2-7
A25: 20.11532788 | B25: 15 | C25: 11.01 | H25: ACS880-01-061A-2 | I25: wall-mounted | J25: ACS880-01-32A0-3 | L25: ACS880-01-027A-5 | N25: ACS880-01-027A-5 | P25: ACS880-01-018A-7
A26: 24.80890439 | B26: 18.5 | C26: 15.01 | H26: ACS880-01-075A-2 | I26: wall-mounted | J26: ACS880-01-38A0-3 | L26: ACS880-01-034A-5 | N26: ACS880-01-034A-5 | P26: ACS880-01-022A-7
A27: 29.50248089 | B27: 22 | C27: 18.51 | H27: ACS880-01-087A-2 | I27: wall-mounted | J27: ACS880-01-45A0-3 | L27: ACS880-01-040A-5 | N27: ACS880-01-040A-5 | P27: ACS880-01-026A-7
A28: 40.23065576 | B28: 30 | C28: 22.01 | H28: ACS880-01-115A-2 | I28: wall-mounted | J28: ACS880-01-61A0-3 | L28: ACS880-01-52A0-5 | N28: ACS880-01-52A0-5 | P28: ACS880-01-035A-7
A29: 49.61780877 | B29: 37 | C29: 30.01 | H29: ACS880-01-145A-2 | I29: wall-mounted | J29: ACS880-01-72A0-3 | L29: ACS880-01-65A0-5 | N29: ACS880-01-65A0-5 | P29: ACS880-01-042A-7
A30: 60.34598364 | B30: 45 | C30: 37.01 | H30: ACS880-01-170A-2 | I30: wall-mounted | J30: ACS880-01-87A0-3 | L30: ACS880-01-77A0-5 | N30: ACS880-01-77A0-5 | P30: ACS880-01-049A-7
A31: 73.75620223 | B31: 55 | C31: 45.01 | H31: ACS880-01-206A-2 | I31: wall-mounted | J31: ACS880-01-105A-3 | L31: ACS880-01-096A-5 | N31: ACS880-01-096A-5 | P31: ACS880-01-061A-7
A32: 100.5766394 | B32: 75 | C32: 55.01 | H32: ACS880-01-274A-2 | I32: wall-mounted | J32: ACS880-01-145A-3 | L32: ACS880-01-124A-5 | N32: ACS880-01-124A-5 | P32: ACS880-01-084A-7
A33: 120.6919673 | B33: 90 | C33: 75.01 | H33: Check with ABB! | I33: wall-mounted | J33: ACS880-01-169A-3 | L33: ACS880-01-156A-5 | N33: ACS880-01-156A-5 | P33: ACS880-01-098A-7
A34: 147.5124045 | B34: 110 | C34: 90.01 | I34: wall-mounted | J34: ACS880-01-206A-3 | L34: ACS880-01-180A-5 | N34: ACS880-01-180A-5 | P34: ACS880-01-119A-7
A35: 177.0148853 | B35: 132 | C35: 110.01 | I35: wall-mounted | J35: ACS880-01-246A-3 | L35: ACS880-01-240A-5 | N35: ACS880-01-240A-5 | P35: ACS880-01-142A-7
A36: 200 | B36: 149.14 | C36: 132.01 | J36: ACS880-01-293A-3 | L36: ACS880-01-260A-5 | N36: ACS880-01-260A-5 | P36: ACS880-01-174A-7
A37: 214.5634974 | B37: 160 | C37: 149.15 | I37: wall-mounted | J37: ACS880-01-293A-3 | L37: ACS880-01-260A-5 | N37: ACS880-01-260A-5 | P37: ACS880-01-174A-7
A38: 250 | B38: 186.425 | C38: 160.01 | J38: ACS880-01-363A-3 | L38: ACS880-01-361A-5 | N38: ACS880-01-361A-5 | P38: ACS880-01-210A-7
A39: 268.2043717 | B39: 200 | C39: 186.435 | I39: wall-mounted | J39: ACS880-01-363A-3 | L39: ACS880-01-361A-5 | N39: ACS880-01-361A-5 | P39: ACS880-01-210A-7
A40: 300 | B40: 223.71 | C40: 200.01 | J40: ACS880-01-430A-3 | L40: ACS880-01-414A-5 | N40: ACS880-01-414A-5 | P40: ACS880-01-271A-7
A41: 335.2554647 | B41: 250 | C41: 223.72 | I41: wall-mounted | J41: ACS880-01-430A-3 | L41: ACS880-01-414A-5 | N41: ACS880-01-414A-5 | P41: ACS880-01-271A-7
A42: 400 | B42: 298.28 | C42: 250.01 | J42: ACS880-07-0585A-3 | L42: ACS880-07-0460A-5 | N42: ACS880-07-0460A-5 | P42: ACS880-07-0800A-7
A43: 422.4218855 | B43: 315 | C43: 298.29 | J43: ACS880-07-0585A-3 | L43: ACS880-07-0460A-5 | N43: ACS880-07-0460A-5 | P43: ACS880-07-0800A-7
A44: 476.0627598 | B44: 355 | C44: 315.01 | J44: ACS880-07-0650A-3 | L44: ACS880-07-0503A-5 | N44: ACS880-07-0503A-5 | P44: ACS880-07-0800A-7
A45: 536.4087435 | B45: 400 | C45: 355.01 | J45: ACS880-07-0725A-3 | L45: ACS880-07-0583A-5 | N45: ACS880-07-0583A-5 | P45: ACS880-07-0800A-7
A46: 603.4598364 | B46: 450 | C46: 400.01 | J46: ACS880-07-0820A-3 | L46: ACS880-07-0635A-5 | N46: ACS880-07-0635A-5 | P46: ACS880-07-0800A-7
A47: 670.5109293 | B47: 500 | C47: 450.01 | J47: ACS880-07-0880A-3 | L47: ACS880-07-0715A-5 | N47: ACS880-07-0715A-5 | P47: ACS880-07-0800A-7
A48: 750.9722408 | B48: 560 | C48: 500.01 | J48: ACS880-07-1140A-3 | L48: ACS880-07-0820A-5 | N48: ACS880-07-0820A-5 | P48: ACS880-07-0800A-7
A49: 844.843771 | B49: 630 | C49: 560.01 | J49: ACS880-07-1140A-3 | L49: ACS880-07-1070A-5 | N49: ACS880-07-1070A-5 | P49: ACS880-07-0800A-7
A50: 952.1255196 | B50: 710 | C50: 630.01 | J50: ACS880-07-1480A-3 | L50: ACS880-07-1070A-5 | N50: ACS880-07-1070A-5 | P50: ACS880-07-0800A-7
A51: 1072.817487 | B51: 800 | C51: 710.01 | J51: ACS880-07-1480A-3 | L51: ACS880-07-1320A-5 | N51: ACS880-07-1320A-5 | P51: ACS880-07-0800A-7
A52: 1206.919673 | B52: 900 | C52: 800.01 | J52: ACS880-07-1760A-3 | L52: ACS880-07-1320A-5 | N52: ACS880-07-1320A-5 | P52: ACS880-07-1160A-7
A53: 1341.021859 | B53: 1000 | C53: 900.01 | J53: ACS880-07-1760A-3 | L53: ACS880-07-1580A-5 | N53: ACS880-07-1580A-5 | P53: ACS880-07-1160A-7
A54: 1501.944482 | B54: 1120 | C54: 1000.01 | J54: ACS880-07-2610A-3 | L54: ACS880-07-1980A-5 | N54: ACS880-07-1980A-5 | P54: ACS880-07-1650A-7
A55: 1676.277323 | B55: 1250 | C55: 1120.01 | J55: ACS880-07-2610A-3 | L55: ACS880-07-1980A-5 | N55: ACS880-07-1980A-5 | P55: ACS880-07-1650A-7
A56: 1877.430602 | B56: 1400 | C56: 1250.01 | J56: ACS880-07-2610A-3 | L56: ACS880-07-1980A-5 | N56: ACS880-07-1980A-5 | P56: ACS880-07-1650A-7
A57: 2145.634974 | B57: 1600 | C57: 1400.01 | J57: Check with ABB! | L57: Check with ABB! | N57: Check with ABB! | P57: ACS880-07-1650A-7
A58: 2346.788253 | B58: 1750 | C58: 1600.01 | P58: ACS880-07-2300A-7
A59: 2413.839346 | B59: 1800 | C59: 1750.01 | P59: ACS880-07-2300A-7
A60: 2682.043717 | B60: 2000 | C60: 1800.01 | P60: ACS880-07-2300A-7
A61: 2950.248089 | B61: 2200 | C61: 2000.01 | P61: ACS880-07-2300A-7
A62: 3017.299182 | B62: 2250 | C62: 2200.01 | P62: ACS880-07-2860A-7
A63: 3084.350275 | B63: 2300 | C63: 2250.01 | P63: ACS880-07-2860A-7
A64: 3352.554647 | B64: 2500 | C64: 2300.01 | P64: ACS880-07-2860A-7
A65: 3754.861204 | B65: 2800 | C65: 2500.01 | P65: ACS880-07-2860A-7
A66: 4224.218855 | B66: 3150 | C66: 2800.01 | P66: Check with ABB!
A67: 4760.627598 | B67: 3550 | C67: 3150.01
A68: 5364.087435 | B68: 4000 | C68: 3550.01
A69: 6034.598364 | B69: 4500 | C69: 4000.01
A70: 6705.109293 | B70: 5000 | C70: 4500.01
A71: 0 | B71: 999999999 | C71: 5000.01
A72: 0 | B72: 0 | C72: 0
A73: 0 | B73: 0 | C73: 0 | D73: Drive type | E73: 0 | F73: Drive type | G73: 0 | H73: Drive type | I73: 0 | J73: Drive type | K73: 0 | L73: Drive type | M73: 0 | N73: Drive type | O73: 0 | P73: Drive type | Q73: 0
A74: 0 | B74: 0 | C74: 0 | D74: 115 V (1-ph) | E74: 0 | F74: 230 V (1-ph) | G74: 0 | H74: 230 V (3-ph) | I74: 0 | J74: 400 V | K74: 0 | L74: 460 V | M74: 0 | N74: 500 V | O74: 0 | P74: 690 V | Q74: 0
A75: 0 | B75: 0 | C75: 0 | D75: 0 | E75: 0 | F75: 0 | G75: 0 | H75: 0 | I75: 0 | J75: 0 | K75: 0 | L75: 0 | M75: 0 | N75: 0 | O75: 0 | P75: 0 | Q75: 0
M109: ACS880-01-02A1-5
M110: ACS880-01-03A0-5
M111: ACS880-01-03A4-5
M112: ACS880-01-04A8-5
M113: ACS880-01-05A2-5

Sheet ACQ810 (hidden)
A1: Typecode | B1: Prod.class | D1: Voltage range 1 | F1: Voltage range 2 (1-ph) | H1: Voltage range 2 | J1: Voltage range 3 | L1: Voltage range 4.6 | N1: Voltage range 5 | P1: Voltage range 7/6
A2: =VLOOKUP(DriveSel!E20,C8:Y71,DriveSel!D18) -> ACQ810-04-240A-4 | B2: =VLOOKUP(#REF!,C8:X70,7) ->  | C2: non-US (50Hz) | D2: 115 V (1-ph) | F2: 230 V (1-ph) | H2: 230 V (3-ph) | J2: 400 V | L2: 460 V | N2: 500 V | P2: 690 V
A3: Col.ordinal | B3: Col.ordinal
C4: Alternatives: | D4: 115 V 1-ph | F4: 200/208/230/240 V 1-ph | H4: 200/208/230/240 V 3-ph | J4: 380/400/415 V | L4: 440/460/480 V | N4: 500 V | P4: 525/550/575/600/660/690 V
A5: =TypeListTemplate!A5 -> Motor Power | B5: =TypeListTemplate!B5 -> Motor | C5: =TypeListTemplate!C5 -> 0 | D5: =TypeListTemplate!D5 -> Drive type | E5: =TypeListTemplate!E5 -> 0 | F5: =TypeListTemplate!F5 -> Drive type | G5: =TypeListTemplate!G5 -> 0 | H5: =TypeListTemplate!H5 -> Drive type | I5: =TypeListTemplate!I5 -> 0 | J5: =TypeListTemplate!J5 -> Drive type | K5: =TypeListTemplate!K5 -> 0 | L5: =TypeListTemplate!L5 -> Drive type | M5: =TypeListTemplate!M5 -> 0 | N5: =TypeListTemplate!N5 -> Drive type | O5: =TypeListTemplate!O5 -> 0 | P5: =TypeListTemplate!P5 -> Drive type | Q5: =TypeListTemplate!Q5 -> 0
A6: =TypeListTemplate!A6 -> Hp | B6: =TypeListTemplate!B6 -> power kW
A7: =TypeListTemplate!A7 -> 0 | B7: =TypeListTemplate!B7 -> Column Ordinal -> | C7: =TypeListTemplate!C7 -> 1 | D7: =TypeListTemplate!D7 -> 2 | E7: =TypeListTemplate!E7 -> 3 | F7: =TypeListTemplate!F7 -> 4 | G7: =TypeListTemplate!G7 -> 5 | H7: =TypeListTemplate!H7 -> 6 | I7: =TypeListTemplate!I7 -> 7 | J7: =TypeListTemplate!J7 -> 8 | K7: =TypeListTemplate!K7 -> 9 | L7: =TypeListTemplate!L7 -> 10 | M7: =TypeListTemplate!M7 -> 11 | N7: =TypeListTemplate!N7 -> 12 | O7: =TypeListTemplate!O7 -> 13 | P7: =TypeListTemplate!P7 -> 14 | Q7: =TypeListTemplate!Q7 -> 15
A8: =TypeListTemplate!A8 -> 0 | B8: =TypeListTemplate!B8 -> 0 | C8: =TypeListTemplate!C8 -> 0
A9: =TypeListTemplate!A9 -> 0.07375620223 | B9: =TypeListTemplate!B9 -> 0.055 | C9: =TypeListTemplate!C9 -> 0.01
A10: =TypeListTemplate!A10 -> 0.1206919673 | B10: =TypeListTemplate!B10 -> 0.09 | C10: =TypeListTemplate!C10 -> 0.065
A11: =TypeListTemplate!A11 -> 0.160922623 | B11: =TypeListTemplate!B11 -> 0.12 | C11: =TypeListTemplate!C11 -> 0.1
A12: =TypeListTemplate!A12 -> 0.2413839346 | B12: =TypeListTemplate!B12 -> 0.18 | C12: =TypeListTemplate!C12 -> 0.13
A13: =TypeListTemplate!A13 -> 0.4961780877 | B13: =TypeListTemplate!B13 -> 0.37 | C13: =TypeListTemplate!C13 -> 0.19
A14: =TypeListTemplate!A14 -> 0.7375620223 | B14: =TypeListTemplate!B14 -> 0.55 | C14: =TypeListTemplate!C14 -> 0.38
A15: =TypeListTemplate!A15 -> 1.005766394 | B15: =TypeListTemplate!B15 -> 0.75 | C15: =TypeListTemplate!C15 -> 0.56
A16: =TypeListTemplate!A16 -> 1.475124045 | B16: =TypeListTemplate!B16 -> 1.1 | C16: =TypeListTemplate!C16 -> 0.76 | J16: ACQ810-04-02A7-4 | L16: ACQ810-04-02A7-4
A17: =TypeListTemplate!A17 -> 2.011532788 | B17: =TypeListTemplate!B17 -> 1.5 | C17: =TypeListTemplate!C17 -> 1.11 | J17: ACQ810-04-03A5-4 | L17: ACQ810-04-03A5-4
A18: =TypeListTemplate!A18 -> 2.950248089 | B18: =TypeListTemplate!B18 -> 2.2 | C18: =TypeListTemplate!C18 -> 1.51 | J18: ACQ810-04-04A9-4 | L18: ACQ810-04-04A9-4
A19: =TypeListTemplate!A19 -> 4.023065576 | B19: =TypeListTemplate!B19 -> 3 | C19: =TypeListTemplate!C19 -> 2.21 | J19: ACQ810-04-06A3-4 | L19: ACQ810-04-06A3-4
A20: =TypeListTemplate!A20 -> 5 | B20: =TypeListTemplate!B20 -> 3.7285 | C20: =TypeListTemplate!C20 -> 3.01
A21: =TypeListTemplate!A21 -> 5.364087435 | B21: =TypeListTemplate!B21 -> 4 | C21: =TypeListTemplate!C21 -> 3.7385 | J21: ACQ810-04-08A3-4 | L21: ACQ810-04-08A3-4
A22: =TypeListTemplate!A22 -> 7.375620223 | B22: =TypeListTemplate!B22 -> 5.5 | C22: =TypeListTemplate!C22 -> 4.01 | J22: ACQ810-04-11A0-4 | L22: ACQ810-04-11A0-4
A23: =TypeListTemplate!A23 -> 10.05766394 | B23: =TypeListTemplate!B23 -> 7.5 | C23: =TypeListTemplate!C23 -> 5.51 | J23: ACQ810-04-14A4-4 | L23: ACQ810-04-14A4-4
A24: =TypeListTemplate!A24 -> 14.75124045 | B24: =TypeListTemplate!B24 -> 11 | C24: =TypeListTemplate!C24 -> 7.51 | J24: ACQ810-04-021A-4 | L24: ACQ810-04-021A-4
A25: =TypeListTemplate!A25 -> 20.11532788 | B25: =TypeListTemplate!B25 -> 15 | C25: =TypeListTemplate!C25 -> 11.01 | J25: ACQ810-04-028A-4 | L25: ACQ810-04-028A-4
A26: =TypeListTemplate!A26 -> 24.80890439 | B26: =TypeListTemplate!B26 -> 18.5 | C26: =TypeListTemplate!C26 -> 15.01 | J26: ACQ810-04-035A-4 | L26: ACQ810-04-035A-4
A27: =TypeListTemplate!A27 -> 29.50248089 | B27: =TypeListTemplate!B27 -> 22 | C27: =TypeListTemplate!C27 -> 18.51 | J27: ACQ810-04-040A-4 | L27: ACQ810-04-040A-4
A28: =TypeListTemplate!A28 -> 40.23065576 | B28: =TypeListTemplate!B28 -> 30 | C28: =TypeListTemplate!C28 -> 22.01 | J28: ACQ810-04-053A-4 | L28: ACQ810-04-053A-4
A29: =TypeListTemplate!A29 -> 49.61780877 | B29: =TypeListTemplate!B29 -> 37 | C29: =TypeListTemplate!C29 -> 30.01 | J29: ACQ810-04-067A-4 | L29: ACQ810-04-067A-4
A30: =TypeListTemplate!A30 -> 60.34598364 | B30: =TypeListTemplate!B30 -> 45 | C30: =TypeListTemplate!C30 -> 37.01 | J30: ACQ810-04-080A-4 | L30: ACQ810-04-080A-4
A31: =TypeListTemplate!A31 -> 73.75620223 | B31: =TypeListTemplate!B31 -> 55 | C31: =TypeListTemplate!C31 -> 45.01 | J31: ACQ810-04-098A-4 | L31: ACQ810-04-098A-4
A32: =TypeListTemplate!A32 -> 100.5766394 | B32: =TypeListTemplate!B32 -> 75 | C32: =TypeListTemplate!C32 -> 55.01 | J32: ACQ810-04-138A-4 | L32: ACQ810-04-138A-4
A33: =TypeListTemplate!A33 -> 120.6919673 | B33: =TypeListTemplate!B33 -> 90 | C33: =TypeListTemplate!C33 -> 75.01 | J33: ACQ810-04-162A-4 | L33: ACQ810-04-162A-4
A34: =TypeListTemplate!A34 -> 147.5124045 | B34: =TypeListTemplate!B34 -> 110 | C34: =TypeListTemplate!C34 -> 90.01 | J34: ACQ810-04-203A-4 | L34: ACQ810-04-203A-4
A35: =TypeListTemplate!A35 -> 177.0148853 | B35: =TypeListTemplate!B35 -> 132 | C35: =TypeListTemplate!C35 -> 110.01 | J35: ACQ810-04-240A-4 | L35: ACQ810-04-240A-4
A36: =TypeListTemplate!A36 -> 200 | B36: =TypeListTemplate!B36 -> 149.14 | C36: =TypeListTemplate!C36 -> 132.01
A37: =TypeListTemplate!A37 -> 214.5634974 | B37: =TypeListTemplate!B37 -> 160 | C37: =TypeListTemplate!C37 -> 149.15 | J37: ACQ810-04-286A-4 | L37: ACQ810-04-286A-4
A38: =TypeListTemplate!A38 -> 250 | B38: =TypeListTemplate!B38 -> 186.425 | C38: =TypeListTemplate!C38 -> 160.01
A39: =TypeListTemplate!A39 -> 268.2043717 | B39: =TypeListTemplate!B39 -> 200 | C39: =TypeListTemplate!C39 -> 186.435 | J39: ACQ810-04-377A-4 | L39: ACQ810-04-377A-4
A40: =TypeListTemplate!A40 -> 300 | B40: =TypeListTemplate!B40 -> 223.71 | C40: =TypeListTemplate!C40 -> 200.01
A41: =TypeListTemplate!A41 -> 335.2554647 | B41: =TypeListTemplate!B41 -> 250 | C41: =TypeListTemplate!C41 -> 223.72 | J41: ACQ810-04-480A-4 | L41: ACQ810-04-480A-4
A42: =TypeListTemplate!A42 -> 400 | B42: =TypeListTemplate!B42 -> 298.28 | C42: =TypeListTemplate!C42 -> 250.01
A43: =TypeListTemplate!A43 -> 422.4218855 | B43: =TypeListTemplate!B43 -> 315 | C43: =TypeListTemplate!C43 -> 298.29 | J43: ACQ810-04-570A-4 | L43: ACQ810-04-570A-4
A44: =TypeListTemplate!A44 -> 476.0627598 | B44: =TypeListTemplate!B44 -> 355 | C44: =TypeListTemplate!C44 -> 315.01 | J44: ACQ810-04-634A-4 | L44: ACQ810-04-634A-4
A45: =TypeListTemplate!A45 -> 536.4087435 | B45: =TypeListTemplate!B45 -> 400 | C45: =TypeListTemplate!C45 -> 355.01 | J45: ACQ810-04-700A-4 | L45: ACQ810-04-700A-4
A46: =TypeListTemplate!A46 -> 603.4598364 | B46: =TypeListTemplate!B46 -> 450 | C46: =TypeListTemplate!C46 -> 400.01
A47: =TypeListTemplate!A47 -> 670.5109293 | B47: =TypeListTemplate!B47 -> 500 | C47: =TypeListTemplate!C47 -> 450.01
A48: =TypeListTemplate!A48 -> 750.9722408 | B48: =TypeListTemplate!B48 -> 560 | C48: =TypeListTemplate!C48 -> 500.01
A49: =TypeListTemplate!A49 -> 844.843771 | B49: =TypeListTemplate!B49 -> 630 | C49: =TypeListTemplate!C49 -> 560.01
A50: =TypeListTemplate!A50 -> 952.1255196 | B50: =TypeListTemplate!B50 -> 710 | C50: =TypeListTemplate!C50 -> 630.01
A51: =TypeListTemplate!A51 -> 1072.817487 | B51: =TypeListTemplate!B51 -> 800 | C51: =TypeListTemplate!C51 -> 710.01
A52: =TypeListTemplate!A52 -> 1206.919673 | B52: =TypeListTemplate!B52 -> 900 | C52: =TypeListTemplate!C52 -> 800.01
A53: =TypeListTemplate!A53 -> 1341.021859 | B53: =TypeListTemplate!B53 -> 1000 | C53: =TypeListTemplate!C53 -> 900.01
A54: =TypeListTemplate!A54 -> 1501.944482 | B54: =TypeListTemplate!B54 -> 1120 | C54: =TypeListTemplate!C54 -> 1000.01
A55: =TypeListTemplate!A55 -> 1676.277323 | B55: =TypeListTemplate!B55 -> 1250 | C55: =TypeListTemplate!C55 -> 1120.01
A56: =TypeListTemplate!A56 -> 1877.430602 | B56: =TypeListTemplate!B56 -> 1400 | C56: =TypeListTemplate!C56 -> 1250.01
A57: =TypeListTemplate!A57 -> 2145.634974 | B57: =TypeListTemplate!B57 -> 1600 | C57: =TypeListTemplate!C57 -> 1400.01
A58: =TypeListTemplate!A58 -> 2346.788253 | B58: =TypeListTemplate!B58 -> 1750 | C58: =TypeListTemplate!C58 -> 1600.01
A59: =TypeListTemplate!A59 -> 2413.839346 | B59: =TypeListTemplate!B59 -> 1800 | C59: =TypeListTemplate!C59 -> 1750.01
A60: =TypeListTemplate!A60 -> 2682.043717 | B60: =TypeListTemplate!B60 -> 2000 | C60: =TypeListTemplate!C60 -> 1800.01
A61: =TypeListTemplate!A61 -> 2950.248089 | B61: =TypeListTemplate!B61 -> 2200 | C61: =TypeListTemplate!C61 -> 2000.01
A62: =TypeListTemplate!A62 -> 3017.299182 | B62: =TypeListTemplate!B62 -> 2250 | C62: =TypeListTemplate!C62 -> 2200.01
A63: =TypeListTemplate!A63 -> 3084.350275 | B63: =TypeListTemplate!B63 -> 2300 | C63: =TypeListTemplate!C63 -> 2250.01
A64: =TypeListTemplate!A64 -> 3352.554647 | B64: =TypeListTemplate!B64 -> 2500 | C64: =TypeListTemplate!C64 -> 2300.01
A65: =TypeListTemplate!A65 -> 3754.861204 | B65: =TypeListTemplate!B65 -> 2800 | C65: =TypeListTemplate!C65 -> 2500.01
A66: =TypeListTemplate!A66 -> 4224.218855 | B66: =TypeListTemplate!B66 -> 3150 | C66: =TypeListTemplate!C66 -> 2800.01
A67: =TypeListTemplate!A67 -> 4760.627598 | B67: =TypeListTemplate!B67 -> 3550 | C67: =TypeListTemplate!C67 -> 3150.01
A68: =TypeListTemplate!A68 -> 5364.087435 | B68: =TypeListTemplate!B68 -> 4000 | C68: =TypeListTemplate!C68 -> 3550.01
A69: =TypeListTemplate!A69 -> 6034.598364 | B69: =TypeListTemplate!B69 -> 4500 | C69: =TypeListTemplate!C69 -> 4000.01
A70: =TypeListTemplate!A70 -> 6705.109293 | B70: =TypeListTemplate!B70 -> 5000 | C70: =TypeListTemplate!C70 -> 4500.01
A71: =TypeListTemplate!A71 -> 0 | B71: =TypeListTemplate!B71 -> 999999999 | C71: =TypeListTemplate!C71 -> 5000.01
A72: =TypeListTemplate!A72 -> 0 | B72: =TypeListTemplate!B72 -> 0 | C72: =TypeListTemplate!C72 -> 0
A73: =TypeListTemplate!A73 -> 0 | B73: =TypeListTemplate!B73 -> 0 | C73: =TypeListTemplate!C73 -> 0 | D73: =TypeListTemplate!D73 -> Drive type | E73: =TypeListTemplate!E73 -> 0 | F73: =TypeListTemplate!F73 -> Drive type | G73: =TypeListTemplate!G73 -> 0 | H73: =TypeListTemplate!H73 -> Drive type | I73: =TypeListTemplate!I73 -> 0 | J73: =TypeListTemplate!J73 -> Drive type | K73: =TypeListTemplate!K73 -> 0 | L73: =TypeListTemplate!L73 -> Drive type | M73: =TypeListTemplate!M73 -> 0 | N73: =TypeListTemplate!N73 -> Drive type | O73: =TypeListTemplate!O73 -> 0 | P73: =TypeListTemplate!P73 -> Drive type | Q73: =TypeListTemplate!Q73 -> 0
A74: =TypeListTemplate!A74 -> 0 | B74: =TypeListTemplate!B74 -> 0 | C74: =TypeListTemplate!C74 -> 0 | D74: =TypeListTemplate!D74 -> 115 V (1-ph) | E74: =TypeListTemplate!E74 -> 0 | F74: =TypeListTemplate!F74 -> 230 V (1-ph) | G74: =TypeListTemplate!G74 -> 0 | H74: =TypeListTemplate!H74 -> 230 V (3-ph) | I74: =TypeListTemplate!I74 -> 0 | J74: =TypeListTemplate!J74 -> 400 V | K74: =TypeListTemplate!K74 -> 0 | L74: =TypeListTemplate!L74 -> 460 V | M74: =TypeListTemplate!M74 -> 0 | N74: =TypeListTemplate!N74 -> 500 V | O74: =TypeListTemplate!O74 -> 0 | P74: =TypeListTemplate!P74 -> 690 V | Q74: =TypeListTemplate!Q74 -> 0
A75: =TypeListTemplate!A75 -> 0 | B75: =TypeListTemplate!B75 -> 0 | C75: =TypeListTemplate!C75 -> 0 | D75: =TypeListTemplate!D75 -> 0 | E75: =TypeListTemplate!E75 -> 0 | F75: =TypeListTemplate!F75 -> 0 | G75: =TypeListTemplate!G75 -> 0 | H75: =TypeListTemplate!H75 -> 0 | I75: =TypeListTemplate!I75 -> 0 | J75: =TypeListTemplate!J75 -> 0 | K75: =TypeListTemplate!K75 -> 0 | L75: =TypeListTemplate!L75 -> 0 | M75: =TypeListTemplate!M75 -> 0 | N75: =TypeListTemplate!N75 -> 0 | O75: =TypeListTemplate!O75 -> 0 | P75: =TypeListTemplate!P75 -> 0 | Q75: =TypeListTemplate!Q75 -> 0
A76: =TypeListTemplate!A76 -> 0 | B76: =TypeListTemplate!B76 -> 0 | C76: =TypeListTemplate!C76 -> 0 | D76: =TypeListTemplate!D76 -> 0 | E76: =TypeListTemplate!E76 -> 0 | F76: =TypeListTemplate!F76 -> 0 | G76: =TypeListTemplate!G76 -> 0 | H76: =TypeListTemplate!H76 -> 0 | I76: =TypeListTemplate!I76 -> 0 | J76: =TypeListTemplate!J76 -> 0 | K76: =TypeListTemplate!K76 -> 0 | L76: =TypeListTemplate!L76 -> 0 | M76: =TypeListTemplate!M76 -> 0 | N76: =TypeListTemplate!N76 -> 0 | O76: =TypeListTemplate!O76 -> 0 | P76: =TypeListTemplate!P76 -> 0 | Q76: =TypeListTemplate!Q76 -> 0
A77: =TypeListTemplate!A77 -> 0 | B77: =TypeListTemplate!B77 -> 0 | C77: =TypeListTemplate!C77 -> 0 | D77: =TypeListTemplate!D77 -> 0 | E77: =TypeListTemplate!E77 -> 0 | F77: =TypeListTemplate!F77 -> 0 | G77: =TypeListTemplate!G77 -> 0 | H77: =TypeListTemplate!H77 -> 0 | I77: =TypeListTemplate!I77 -> 0 | J77: =TypeListTemplate!J77 -> 0 | K77: =TypeListTemplate!K77 -> 0 | L77: =TypeListTemplate!L77 -> 0 | M77: =TypeListTemplate!M77 -> 0 | N77: =TypeListTemplate!N77 -> 0 | O77: =TypeListTemplate!O77 -> 0 | P77: =TypeListTemplate!P77 -> 0 | Q77: =TypeListTemplate!Q77 -> 0
A78: =TypeListTemplate!A78 -> 0 | B78: =TypeListTemplate!B78 -> 0 | C78: =TypeListTemplate!C78 -> 0 | D78: =TypeListTemplate!D78 -> 0 | E78: =TypeListTemplate!E78 -> 0 | F78: =TypeListTemplate!F78 -> 0 | G78: =TypeListTemplate!G78 -> 0 | H78: =TypeListTemplate!H78 -> 0 | I78: =TypeListTemplate!I78 -> 0 | J78: =TypeListTemplate!J78 -> 0 | K78: =TypeListTemplate!K78 -> 0 | L78: =TypeListTemplate!L78 -> 0 | M78: =TypeListTemplate!M78 -> 0 | N78: =TypeListTemplate!N78 -> 0 | O78: =TypeListTemplate!O78 -> 0 | P78: =TypeListTemplate!P78 -> 0 | Q78: =TypeListTemplate!Q78 -> 0
A79: =TypeListTemplate!A79 -> 0 | B79: =TypeListTemplate!B79 -> 0 | C79: =TypeListTemplate!C79 -> 0 | D79: =TypeListTemplate!D79 -> 0 | E79: =TypeListTemplate!E79 -> 0 | F79: =TypeListTemplate!F79 -> 0 | G79: =TypeListTemplate!G79 -> 0 | H79: =TypeListTemplate!H79 -> 0 | I79: =TypeListTemplate!I79 -> 0 | J79: =TypeListTemplate!J79 -> 0 | K79: =TypeListTemplate!K79 -> 0 | L79: =TypeListTemplate!L79 -> 0 | M79: =TypeListTemplate!M79 -> 0 | N79: =TypeListTemplate!N79 -> 0 | O79: =TypeListTemplate!O79 -> 0 | P79: =TypeListTemplate!P79 -> 0 | Q79: =TypeListTemplate!Q79 -> 0
A80: =TypeListTemplate!A80 -> 0 | B80: =TypeListTemplate!B80 -> 0 | C80: =TypeListTemplate!C80 -> 0 | D80: =TypeListTemplate!D80 -> 0 | E80: =TypeListTemplate!E80 -> 0 | F80: =TypeListTemplate!F80 -> 0 | G80: =TypeListTemplate!G80 -> 0 | H80: =TypeListTemplate!H80 -> 0 | I80: =TypeListTemplate!I80 -> 0 | J80: =TypeListTemplate!J80 -> 0 | K80: =TypeListTemplate!K80 -> 0 | L80: =TypeListTemplate!L80 -> 0 | M80: =TypeListTemplate!M80 -> 0 | N80: =TypeListTemplate!N80 -> 0 | O80: =TypeListTemplate!O80 -> 0 | P80: =TypeListTemplate!P80 -> 0 | Q80: =TypeListTemplate!Q80 -> 0
A81: =TypeListTemplate!A81 -> 0 | B81: =TypeListTemplate!B81 -> 0 | C81: =TypeListTemplate!C81 -> 0 | D81: =TypeListTemplate!D81 -> 0 | E81: =TypeListTemplate!E81 -> 0 | F81: =TypeListTemplate!F81 -> 0 | G81: =TypeListTemplate!G81 -> 0 | H81: =TypeListTemplate!H81 -> 0 | I81: =TypeListTemplate!I81 -> 0 | J81: =TypeListTemplate!J81 -> 0 | K81: =TypeListTemplate!K81 -> 0 | L81: =TypeListTemplate!L81 -> 0 | M81: =TypeListTemplate!M81 -> 0 | N81: =TypeListTemplate!N81 -> 0 | O81: =TypeListTemplate!O81 -> 0 | P81: =TypeListTemplate!P81 -> 0 | Q81: =TypeListTemplate!Q81 -> 0
A82: =TypeListTemplate!A82 -> 0 | B82: =TypeListTemplate!B82 -> 0 | C82: =TypeListTemplate!C82 -> 0 | D82: =TypeListTemplate!D82 -> 0 | E82: =TypeListTemplate!E82 -> 0 | F82: =TypeListTemplate!F82 -> 0 | G82: =TypeListTemplate!G82 -> 0 | H82: =TypeListTemplate!H82 -> 0 | I82: =TypeListTemplate!I82 -> 0 | J82: =TypeListTemplate!J82 -> 0 | K82: =TypeListTemplate!K82 -> 0 | L82: =TypeListTemplate!L82 -> 0 | M82: =TypeListTemplate!M82 -> 0 | N82: =TypeListTemplate!N82 -> 0 | O82: =TypeListTemplate!O82 -> 0 | P82: =TypeListTemplate!P82 -> 0 | Q82: =TypeListTemplate!Q82 -> 0
A83: =TypeListTemplate!A83 -> 0 | B83: =TypeListTemplate!B83 -> 0 | C83: =TypeListTemplate!C83 -> 0 | D83: =TypeListTemplate!D83 -> 0 | E83: =TypeListTemplate!E83 -> 0 | F83: =TypeListTemplate!F83 -> 0 | G83: =TypeListTemplate!G83 -> 0 | H83: =TypeListTemplate!H83 -> 0 | I83: =TypeListTemplate!I83 -> 0 | J83: =TypeListTemplate!J83 -> 0 | K83: =TypeListTemplate!K83 -> 0 | L83: =TypeListTemplate!L83 -> 0 | M83: =TypeListTemplate!M83 -> 0 | N83: =TypeListTemplate!N83 -> 0 | O83: =TypeListTemplate!O83 -> 0 | P83: =TypeListTemplate!P83 -> 0 | Q83: =TypeListTemplate!Q83 -> 0
A84: =TypeListTemplate!A84 -> 0 | B84: =TypeListTemplate!B84 -> 0 | C84: =TypeListTemplate!C84 -> 0 | D84: =TypeListTemplate!D84 -> 0 | E84: =TypeListTemplate!E84 -> 0 | F84: =TypeListTemplate!F84 -> 0 | G84: =TypeListTemplate!G84 -> 0 | H84: =TypeListTemplate!H84 -> 0 | I84: =TypeListTemplate!I84 -> 0 | J84: =TypeListTemplate!J84 -> 0 | K84: =TypeListTemplate!K84 -> 0 | L84: =TypeListTemplate!L84 -> 0 | M84: =TypeListTemplate!M84 -> 0 | N84: =TypeListTemplate!N84 -> 0 | O84: =TypeListTemplate!O84 -> 0 | P84: =TypeListTemplate!P84 -> 0 | Q84: =TypeListTemplate!Q84 -> 0
A85: =TypeListTemplate!A85 -> 0 | B85: =TypeListTemplate!B85 -> 0 | C85: =TypeListTemplate!C85 -> 0 | D85: =TypeListTemplate!D85 -> 0 | E85: =TypeListTemplate!E85 -> 0 | F85: =TypeListTemplate!F85 -> 0 | G85: =TypeListTemplate!G85 -> 0 | H85: =TypeListTemplate!H85 -> 0 | I85: =TypeListTemplate!I85 -> 0 | J85: =TypeListTemplate!J85 -> 0 | K85: =TypeListTemplate!K85 -> 0 | L85: =TypeListTemplate!L85 -> 0 | M85: =TypeListTemplate!M85 -> 0 | N85: =TypeListTemplate!N85 -> 0 | O85: =TypeListTemplate!O85 -> 0 | P85: =TypeListTemplate!P85 -> 0 | Q85: =TypeListTemplate!Q85 -> 0
A86: =TypeListTemplate!A86 -> 0 | B86: =TypeListTemplate!B86 -> 0 | C86: =TypeListTemplate!C86 -> 0 | D86: =TypeListTemplate!D86 -> 0 | E86: =TypeListTemplate!E86 -> 0 | F86: =TypeListTemplate!F86 -> 0 | G86: =TypeListTemplate!G86 -> 0 | H86: =TypeListTemplate!H86 -> 0 | I86: =TypeListTemplate!I86 -> 0 | J86: =TypeListTemplate!J86 -> 0 | K86: =TypeListTemplate!K86 -> 0 | L86: =TypeListTemplate!L86 -> 0 | M86: =TypeListTemplate!M86 -> 0 | N86: =TypeListTemplate!N86 -> 0 | O86: =TypeListTemplate!O86 -> 0 | P86: =TypeListTemplate!P86 -> 0 | Q86: =TypeListTemplate!Q86 -> 0
A87: =TypeListTemplate!A87 -> 0 | B87: =TypeListTemplate!B87 -> 0 | C87: =TypeListTemplate!C87 -> 0 | D87: =TypeListTemplate!D87 -> 0 | E87: =TypeListTemplate!E87 -> 0 | F87: =TypeListTemplate!F87 -> 0 | G87: =TypeListTemplate!G87 -> 0 | H87: =TypeListTemplate!H87 -> 0 | I87: =TypeListTemplate!I87 -> 0 | J87: =TypeListTemplate!J87 -> 0 | K87: =TypeListTemplate!K87 -> 0 | L87: =TypeListTemplate!L87 -> 0 | M87: =TypeListTemplate!M87 -> 0 | N87: =TypeListTemplate!N87 -> 0 | O87: =TypeListTemplate!O87 -> 0 | P87: =TypeListTemplate!P87 -> 0 | Q87: =TypeListTemplate!Q87 -> 0
A88: =TypeListTemplate!A88 -> 0 | B88: =TypeListTemplate!B88 -> 0 | C88: =TypeListTemplate!C88 -> 0 | D88: =TypeListTemplate!D88 -> 0 | E88: =TypeListTemplate!E88 -> 0 | F88: =TypeListTemplate!F88 -> 0 | G88: =TypeListTemplate!G88 -> 0 | H88: =TypeListTemplate!H88 -> 0 | I88: =TypeListTemplate!I88 -> 0 | J88: =TypeListTemplate!J88 -> 0 | K88: =TypeListTemplate!K88 -> 0 | L88: =TypeListTemplate!L88 -> 0 | M88: =TypeListTemplate!M88 -> 0 | N88: =TypeListTemplate!N88 -> 0 | O88: =TypeListTemplate!O88 -> 0 | P88: =TypeListTemplate!P88 -> 0 | Q88: =TypeListTemplate!Q88 -> 0
A89: =TypeListTemplate!A89 -> 0 | B89: =TypeListTemplate!B89 -> 0 | C89: =TypeListTemplate!C89 -> 0 | D89: =TypeListTemplate!D89 -> 0 | E89: =TypeListTemplate!E89 -> 0 | F89: =TypeListTemplate!F89 -> 0 | G89: =TypeListTemplate!G89 -> 0 | H89: =TypeListTemplate!H89 -> 0 | I89: =TypeListTemplate!I89 -> 0 | J89: =TypeListTemplate!J89 -> 0 | K89: =TypeListTemplate!K89 -> 0 | L89: =TypeListTemplate!L89 -> 0 | M89: =TypeListTemplate!M89 -> 0 | N89: =TypeListTemplate!N89 -> 0 | O89: =TypeListTemplate!O89 -> 0 | P89: =TypeListTemplate!P89 -> 0 | Q89: =TypeListTemplate!Q89 -> 0
A90: =TypeListTemplate!A90 -> 0 | B90: =TypeListTemplate!B90 -> 0 | C90: =TypeListTemplate!C90 -> 0 | D90: =TypeListTemplate!D90 -> 0 | E90: =TypeListTemplate!E90 -> 0 | F90: =TypeListTemplate!F90 -> 0 | G90: =TypeListTemplate!G90 -> 0 | H90: =TypeListTemplate!H90 -> 0 | I90: =TypeListTemplate!I90 -> 0 | J90: =TypeListTemplate!J90 -> 0 | K90: =TypeListTemplate!K90 -> 0 | L90: =TypeListTemplate!L90 -> 0 | M90: =TypeListTemplate!M90 -> 0 | N90: =TypeListTemplate!N90 -> 0 | O90: =TypeListTemplate!O90 -> 0 | P90: =TypeListTemplate!P90 -> 0 | Q90: =TypeListTemplate!Q90 -> 0
A91: =TypeListTemplate!A91 -> 0 | B91: =TypeListTemplate!B91 -> 0 | C91: =TypeListTemplate!C91 -> 0 | D91: =TypeListTemplate!D91 -> 0 | E91: =TypeListTemplate!E91 -> 0 | F91: =TypeListTemplate!F91 -> 0 | G91: =TypeListTemplate!G91 -> 0 | H91: =TypeListTemplate!H91 -> 0 | I91: =TypeListTemplate!I91 -> 0 | J91: =TypeListTemplate!J91 -> 0 | K91: =TypeListTemplate!K91 -> 0 | L91: =TypeListTemplate!L91 -> 0 | M91: =TypeListTemplate!M91 -> 0 | N91: =TypeListTemplate!N91 -> 0 | O91: =TypeListTemplate!O91 -> 0 | P91: =TypeListTemplate!P91 -> 0 | Q91: =TypeListTemplate!Q91 -> 0
A92: =TypeListTemplate!A92 -> 0 | B92: =TypeListTemplate!B92 -> 0 | C92: =TypeListTemplate!C92 -> 0 | D92: =TypeListTemplate!D92 -> 0 | E92: =TypeListTemplate!E92 -> 0 | F92: =TypeListTemplate!F92 -> 0 | G92: =TypeListTemplate!G92 -> 0 | H92: =TypeListTemplate!H92 -> 0 | I92: =TypeListTemplate!I92 -> 0 | J92: =TypeListTemplate!J92 -> 0 | K92: =TypeListTemplate!K92 -> 0 | L92: =TypeListTemplate!L92 -> 0 | M92: =TypeListTemplate!M92 -> 0 | N92: =TypeListTemplate!N92 -> 0 | O92: =TypeListTemplate!O92 -> 0 | P92: =TypeListTemplate!P92 -> 0 | Q92: =TypeListTemplate!Q92 -> 0
A93: =TypeListTemplate!A93 -> 0 | B93: =TypeListTemplate!B93 -> 0 | C93: =TypeListTemplate!C93 -> 0 | D93: =TypeListTemplate!D93 -> 0 | E93: =TypeListTemplate!E93 -> 0 | F93: =TypeListTemplate!F93 -> 0 | G93: =TypeListTemplate!G93 -> 0 | H93: =TypeListTemplate!H93 -> 0 | I93: =TypeListTemplate!I93 -> 0 | J93: =TypeListTemplate!J93 -> 0 | K93: =TypeListTemplate!K93 -> 0 | L93: =TypeListTemplate!L93 -> 0 | M93: =TypeListTemplate!M93 -> 0 | N93: =TypeListTemplate!N93 -> 0 | O93: =TypeListTemplate!O93 -> 0 | P93: =TypeListTemplate!P93 -> 0 | Q93: =TypeListTemplate!Q93 -> 0
A94: =TypeListTemplate!A94 -> 0 | B94: =TypeListTemplate!B94 -> 0 | C94: =TypeListTemplate!C94 -> 0 | D94: =TypeListTemplate!D94 -> 0 | E94: =TypeListTemplate!E94 -> 0 | F94: =TypeListTemplate!F94 -> 0 | G94: =TypeListTemplate!G94 -> 0 | H94: =TypeListTemplate!H94 -> 0 | I94: =TypeListTemplate!I94 -> 0 | J94: =TypeListTemplate!J94 -> 0 | K94: =TypeListTemplate!K94 -> 0 | L94: =TypeListTemplate!L94 -> 0 | M94: =TypeListTemplate!M94 -> 0 | N94: =TypeListTemplate!N94 -> 0 | O94: =TypeListTemplate!O94 -> 0 | P94: =TypeListTemplate!P94 -> 0 | Q94: =TypeListTemplate!Q94 -> 0
A95: =TypeListTemplate!A95 -> 0 | B95: =TypeListTemplate!B95 -> 0 | C95: =TypeListTemplate!C95 -> 0 | D95: =TypeListTemplate!D95 -> 0 | E95: =TypeListTemplate!E95 -> 0 | F95: =TypeListTemplate!F95 -> 0 | G95: =TypeListTemplate!G95 -> 0 | H95: =TypeListTemplate!H95 -> 0 | I95: =TypeListTemplate!I95 -> 0 | J95: =TypeListTemplate!J95 -> 0 | K95: =TypeListTemplate!K95 -> 0 | L95: =TypeListTemplate!L95 -> 0 | M95: =TypeListTemplate!M95 -> 0 | N95: =TypeListTemplate!N95 -> 0 | O95: =TypeListTemplate!O95 -> 0 | P95: =TypeListTemplate!P95 -> 0 | Q95: =TypeListTemplate!Q95 -> 0

Sheet StdDrives (hidden)
A1: Typecode | B1: Prod.class | D1: Voltage range 1 | F1: Voltage range 2 (1-ph) | H1: Voltage range 2 | J1: Voltage range 3 | L1: Voltage range 4.6 | N1: Voltage range 5 | P1: Voltage range 7/6 | R1: Voltage range 2k | T1: Voltage range 3k | V1: Voltage range 4k | X1: Voltage range 6k
A2: =VLOOKUP(DriveSel!E20,C8:Y71,DriveSel!D18) -> ACH550-01-246A-4 | B2: 0 | C2: non-US (50Hz) | D2: 115 V (1-ph) | F2: 230 V (1-ph) | H2: 230 V (3-ph) | J2: 400 V | L2: 460 V | N2: 500 V | P2: 690 V | R2: 2,3 kV | T2: 3,3 kV | V2: 4,16 kV | X2: 6,6 kV
A3: Col.ordinal | B3: Col.ordinal
C4: Alternatives: | D4: 115 V 1-ph | F4: 200/208/230/240 V 1-ph | H4: 200/208/230/240 V 3-ph | J4: 380/400/415 V | L4: 440/460/480 V | N4: 500 V | P4: 525/550/575/600/660/690 V | V4: 3800/4000/4160V
A5: Motor Power | B5: Motor | D5: Drive type | F5: Drive type | H5: Drive type | J5: Drive type | L5: Drive type | N5: Drive type | P5: Drive type | R5: Drive type | T5: Drive type | V5: Drive type
A6: Hp | B6: power kW
A7: 0 | B7: Column Ordinal -> | C7: 1 | D7: 2 | E7: 3 | F7: 4 | G7: 5 | H7: 6 | I7: 7 | J7: 8 | K7: 9 | L7: 10 | M7: 11 | N7: 12 | O7: 13 | P7: 14 | Q7: 15 | R7: 16 | S7: 17 | T7: 18 | U7: 19 | V7: 20 | W7: 21 | X7: 22 | Y7: 0
A8: 0 | B8: 0 | C8: 0
A9: 0.07375620223 | B9: 0.055 | C9: 0.01
A10: 0.1206919673 | B10: 0.09 | C10: 0.065
A11: 0.160922623 | B11: 0.12 | C11: 0.1
A12: 0.2413839346 | B12: 0.18 | C12: 0.13
A13: 0.4961780877 | B13: 0.37 | C13: 0.19
A14: 0.7375620223 | B14: 0.55 | C14: 0.38 | H14: ACH550-01-04A6-2
A15: 1.005766394 | B15: 0.75 | C15: 0.56 | H15: ACH550-01-04A6-2 | J15: ACH550-01-02A4-4 | L15: ACH550-01-02A4-4
A16: 1.475124045 | B16: 1.1 | C16: 0.76 | H16: ACH550-01-06A6-2 | J16: ACH550-01-03A3-4 | L16: ACH550-01-03A3-4
A17: 2.011532788 | B17: 1.5 | C17: 1.11 | H17: ACH550-01-07A5-2 | J17: ACH550-01-04A1-4 | L17: ACH550-01-04A1-4
A18: 2.950248089 | B18: 2.2 | C18: 1.51 | H18: ACH550-01-012A-2 | J18: ACH550-01-05A4-4 | L18: ACH550-01-05A4-4
A19: 4.023065576 | B19: 3 | C19: 2.21 | H19: ACH550-01-017A-2 | J19: ACH550-01-06A9-4 | L19: ACH550-01-06A9-4
A20: 5 | B20: 3.7285 | C20: 3.01 | H20: ACH550-01-017A-2 | J20: ACH550-01-08A8-4 | L20: ACH550-01-06A9-4
A21: 5.364087435 | B21: 4 | C21: 3.7385 | H21: ACH550-01-017A-2 | J21: ACH550-01-08A8-4 | L21: ACH550-01-08A8-4
A22: 7.375620223 | B22: 5.5 | C22: 4.01 | H22: ACH550-01-024A-2 | J22: ACH550-01-012A-4 | L22: ACH550-01-012A-4
A23: 10.05766394 | B23: 7.5 | C23: 5.51 | H23: ACH550-01-031A-2 | J23: ACH550-01-015A-4 | L23: ACH550-01-015A-4
A24: 14.75124045 | B24: 11 | C24: 7.51 | H24: ACH550-01-046A-2 | J24: ACH550-01-023A-4 | L24: ACH550-01-023A-4
A25: 20.11532788 | B25: 15 | C25: 11.01 | H25: ACH550-01-059A-2 | J25: ACH550-01-031A-4 | L25: ACH550-01-031A-4
A26: 24.80890439 | B26: 18.5 | C26: 15.01 | H26: ACH550-01-075A-2 | J26: ACH550-01-038A-4 | L26: ACH550-01-038A-4
A27: 29.50248089 | B27: 22 | C27: 18.51 | H27: ACH550-01-088A-2 | J27: ACH550-01-045A-4 | L27: ACH550-01-045A-4
A28: 40.23065576 | B28: 30 | C28: 22.01 | H28: ACH550-01-114A-2 | J28: ACH550-01-059A-4 | L28: ACH550-01-059A-4
A29: 49.61780877 | B29: 37 | C29: 30.01 | H29: ACH550-01-143A-2 | J29: ACH550-01-072A-4 | L29: ACH550-01-072A-4
A30: 60.34598364 | B30: 45 | C30: 37.01 | H30: ACH550-01-178A-2 | J30: ACH550-01-087A-4 | L30: ACH550-01-087A-4
A31: 73.75620223 | B31: 55 | C31: 45.01 | H31: ACH550-01-221A-2 | J31: ACH550-01-125A-4 | L31: ACH550-01-087A-4
A32: 100.5766394 | B32: 75 | C32: 55.01 | H32: ACH550-01-248A-2 | J32: ACH550-01-157A-4 | L32: ACH550-01-125A-4
A33: 120.6919673 | B33: 90 | C33: 75.01 | J33: ACH550-01-180A-4 | L33: ACH550-01-157A-4
A34: 147.5124045 | B34: 110 | C34: 90.01 | J34: ACH550-01-195A-4 | L34: ACH550-01-180A-4
A35: 177.0148853 | B35: 132 | C35: 110.01 | J35: ACH550-01-246A-4 | L35: ACH550-01-246A-4
A36: 200 | B36: 149.14 | C36: 132.01 | J36: ACH550-01-290A-4 | L36: ACH550-01-246A-4
A37: 214.5634974 | B37: 160 | C37: 149.15 | J37: ACH550-01-290A-4 | L37: ACH550-01-290A-4
A38: 250 | B38: 186.425 | C38: 160.01 | J38: ACH550-02-368A-4 | L38: ACH550-02-368A-4
A39: 268.2043717 | B39: 200 | C39: 186.435 | J39: ACH550-02-368A-4 | L39: ACH550-02-368A-4
A40: 300 | B40: 223.71 | C40: 200.01 | J40: ACH550-02-486A-4 | L40: ACH550-02-368A-4
A41: 335.2554647 | B41: 250 | C41: 223.72 | J41: ACH550-02-486A-4 | L41: ACH550-02-486A-4
A42: 400 | B42: 298.28 | C42: 250.01 | J42: ACH550-02-526A-4 | L42: ACH550-02-486A-4
A43: 422.4218855 | B43: 315 | C43: 298.29 | J43: ACH550-02-602A-4 | L43: ACH550-02-526A-4
A44: 476.0627598 | B44: 355 | C44: 315.01 | J44: ACH550-02-645A-4 | L44: ACH550-02-602A-4
A45: 536.4087435 | B45: 400 | C45: 355.01 | L45: ACH550-02-645A-4
A46: 603.4598364 | B46: 450 | C46: 400.01
A47: 670.5109293 | B47: 500 | C47: 450.01
A48: 750.9722408 | B48: 560 | C48: 500.01
A49: 844.843771 | B49: 630 | C49: 560.01
A50: 952.1255196 | B50: 710 | C50: 630.01
A51: 1072.817487 | B51: 800 | C51: 710.01
A52: 1206.919673 | B52: 900 | C52: 800.01
A53: 1341.021859 | B53: 1000 | C53: 900.01
A54: 1501.944482 | B54: 1120 | C54: 1000.01
A55: 1676.277323 | B55: 1250 | C55: 1120.01
A56: 1877.430602 | B56: 1400 | C56: 1250.01
A57: 2145.634974 | B57: 1600 | C57: 1400.01
A58: 2346.788253 | B58: 1750 | C58: 1600.01
A59: 2413.839346 | B59: 1800 | C59: 1750.01
A60: 2682.043717 | B60: 2000 | C60: 1800.01
A61: 2950.248089 | B61: 2200 | C61: 2000.01
A62: 3017.299182 | B62: 2250 | C62: 2200.01
A63: 3084.350275 | B63: 2300 | C63: 2250.01
A64: 3352.554647 | B64: 2500 | C64: 2300.01
A65: 3754.861204 | B65: 2800 | C65: 2500.01
A66: 4224.218855 | B66: 3150 | C66: 2800.01
A67: 4760.627598 | B67: 3550 | C67: 3150.01
A68: 5364.087435 | B68: 4000 | C68: 3550.01
A69: 6034.598364 | B69: 4500 | C69: 4000.01
A70: 6705.109293 | B70: 5000 | C70: 4500.01
A71: 0 | B71: 999999999 | C71: 5000.01
A72: 0 | B72: 0 | C72: 0
A73: 0 | B73: 0 | C73: 0 | D73: Drive type | E73: 0 | F73: Drive type | G73: 0 | H73: Drive type | I73: 0 | J73: Drive type | K73: 0 | L73: Drive type | M73: 0 | N73: Drive type | O73: 0 | P73: Drive type | Q73: 0 | R73: Drive type | S73: 0 | T73: Drive type | U73: 0 | V73: Drive type | W73: 0 | X73: Drive type | Y73: 0
A74: 0 | B74: 0 | C74: 0 | D74: 115 V (1-ph) | E74: 0 | F74: 230 V (1-ph) | G74: 0 | H74: 230 V (3-ph) | I74: 0 | J74: 400 V | K74: 0 | L74: 460 V | M74: 0 | N74: 500 V | O74: 0 | P74: 690 V | Q74: 0 | R74: 2,3 kV | S74: 0 | T74: 3,3 kV | U74: 0 | V74: 4,16 kV | W74: 0 | X74: 6,6 kV | Y74: 0
A75: 0 | B75: 0 | C75: 0 | D75: 0 | E75: 0 | F75: 0 | G75: 0 | H75: 0 | I75: 0 | J75: 0 | K75: 0 | L75: 0 | M75: 0 | N75: 0 | O75: 0 | P75: 0 | Q75: 0 | R75: 0 | S75: 0 | T75: 0 | U75: 0 | V75: 0 | W75: 0 | X75: 0 | Y75: 0
A76: 0 | B76: 0 | C76: 0 | D76: 0 | E76: 0 | F76: 0 | G76: 0 | H76: 0 | I76: 0 | J76: 0 | K76: 0 | L76: 0 | M76: 0 | N76: 0 | O76: 0 | P76: 0 | Q76: 0 | R76: 0 | S76: 0 | T76: 0 | U76: 0 | V76: 0 | W76: 0 | X76: 0 | Y76: 0
A77: 0 | B77: 0 | C77: 0 | D77: 0 | E77: 0 | F77: 0 | G77: 0 | H77: 0 | I77: 0 | J77: 0 | K77: 0 | L77: 0 | M77: 0 | N77: 0 | O77: 0 | P77: 0 | Q77: 0 | R77: 0 | S77: 0 | T77: 0 | U77: 0 | V77: 0 | W77: 0 | X77: 0 | Y77: 0
A78: 0 | B78: 0 | C78: 0 | D78: 0 | E78: 0 | F78: 0 | G78: 0 | H78: 0 | I78: 0 | J78: 0 | K78: 0 | L78: 0 | M78: 0 | N78: 0 | O78: 0 | P78: 0 | Q78: 0 | R78: 0 | S78: 0 | T78: 0 | U78: 0 | V78: 0 | W78: 0 | X78: 0 | Y78: 0
A79: 0 | B79: 0 | C79: 0 | D79: 0 | E79: 0 | F79: 0 | G79: 0 | H79: 0 | I79: 0 | J79: 0 | K79: 0 | L79: 0 | M79: 0 | N79: 0 | O79: 0 | P79: 0 | Q79: 0 | R79: 0 | S79: 0 | T79: 0 | U79: 0 | V79: 0 | W79: 0 | X79: 0 | Y79: 0
A80: 0 | B80: 0 | C80: 0 | D80: 0 | E80: 0 | F80: 0 | G80: 0 | H80: 0 | I80: 0 | J80: 0 | K80: 0 | L80: 0 | M80: 0 | N80: 0 | O80: 0 | P80: 0 | Q80: 0 | R80: 0 | S80: 0 | T80: 0 | U80: 0 | V80: 0 | W80: 0 | X80: 0 | Y80: 0
A81: 0 | B81: 0 | C81: 0 | D81: 0 | E81: 0 | F81: 0 | G81: 0 | H81: 0 | I81: 0 | J81: 0 | K81: 0 | L81: 0 | M81: 0 | N81: 0 | O81: 0 | P81: 0 | Q81: 0 | R81: 0 | S81: 0 | T81: 0 | U81: 0 | V81: 0 | W81: 0 | X81: 0 | Y81: 0
A82: 0 | B82: 0 | C82: 0 | D82: 0 | E82: 0 | F82: 0 | G82: 0 | H82: 0 | I82: 0 | J82: 0 | K82: 0 | L82: 0 | M82: 0 | N82: 0 | O82: 0 | P82: 0 | Q82: 0 | R82: 0 | S82: 0 | T82: 0 | U82: 0 | V82: 0 | W82: 0 | X82: 0 | Y82: 0
A83: 0 | B83: 0 | C83: 0 | D83: 0 | E83: 0 | F83: 0 | G83: 0 | H83: 0 | I83: 0 | J83: 0 | K83: 0 | L83: 0 | M83: 0 | N83: 0 | O83: 0 | P83: 0 | Q83: 0 | R83: 0 | S83: 0 | T83: 0 | U83: 0 | V83: 0 | W83: 0 | X83: 0 | Y83: 0
A84: 0 | B84: 0 | C84: 0 | D84: 0 | E84: 0 | F84: 0 | G84: 0 | H84: 0 | I84: 0 | J84: 0 | K84: 0 | L84: 0 | M84: 0 | N84: 0 | O84: 0 | P84: 0 | Q84: 0 | R84: 0 | S84: 0 | T84: 0 | U84: 0 | V84: 0 | W84: 0 | X84: 0 | Y84: 0
A85: 0 | B85: 0 | C85: 0 | D85: 0 | E85: 0 | F85: 0 | G85: 0 | H85: 0 | I85: 0 | J85: 0 | K85: 0 | L85: 0 | M85: 0 | N85: 0 | O85: 0 | P85: 0 | Q85: 0 | R85: 0 | S85: 0 | T85: 0 | U85: 0 | V85: 0 | W85: 0 | X85: 0 | Y85: 0
A86: 0 | B86: 0 | C86: 0 | D86: 0 | E86: 0 | F86: 0 | G86: 0 | H86: 0 | I86: 0 | J86: 0 | K86: 0 | L86: 0 | M86: 0 | N86: 0 | O86: 0 | P86: 0 | Q86: 0 | R86: 0 | S86: 0 | T86: 0 | U86: 0 | V86: 0 | W86: 0 | X86: 0 | Y86: 0
A87: 0 | B87: 0 | C87: 0 | D87: 0 | E87: 0 | F87: 0 | G87: 0 | H87: 0 | I87: 0 | J87: 0 | K87: 0 | L87: 0 | M87: 0 | N87: 0 | O87: 0 | P87: 0 | Q87: 0 | R87: 0 | S87: 0 | T87: 0 | U87: 0 | V87: 0 | W87: 0 | X87: 0 | Y87: 0
A88: 0 | B88: 0 | C88: 0 | D88: 0 | E88: 0 | F88: 0 | G88: 0 | H88: 0 | I88: 0 | J88: 0 | K88: 0 | L88: 0 | M88: 0 | N88: 0 | O88: 0 | P88: 0 | Q88: 0 | R88: 0 | S88: 0 | T88: 0 | U88: 0 | V88: 0 | W88: 0 | X88: 0 | Y88: 0
A89: 0 | B89: 0 | C89: 0 | D89: 0 | E89: 0 | F89: 0 | G89: 0 | H89: 0 | I89: 0 | J89: 0 | K89: 0 | L89: 0 | M89: 0 | N89: 0 | O89: 0 | P89: 0 | Q89: 0 | R89: 0 | S89: 0 | T89: 0 | U89: 0 | V89: 0 | W89: 0 | X89: 0 | Y89: 0
A90: 0 | B90: 0 | C90: 0 | D90: 0 | E90: 0 | F90: 0 | G90: 0 | H90: 0 | I90: 0 | J90: 0 | K90: 0 | L90: 0 | M90: 0 | N90: 0 | O90: 0 | P90: 0 | Q90: 0 | R90: 0 | S90: 0 | T90: 0 | U90: 0 | V90: 0 | W90: 0 | X90: 0 | Y90: 0
A91: 0 | B91: 0 | C91: 0 | D91: 0 | E91: 0 | F91: 0 | G91: 0 | H91: 0 | I91: 0 | J91: 0 | K91: 0 | L91: 0 | M91: 0 | N91: 0 | O91: 0 | P91: 0 | Q91: 0 | R91: 0 | S91: 0 | T91: 0 | U91: 0 | V91: 0 | W91: 0 | X91: 0 | Y91: 0
A92: 0 | B92: 0 | C92: 0 | D92: 0 | E92: 0 | F92: 0 | G92: 0 | H92: 0 | I92: 0 | J92: 0 | K92: 0 | L92: 0 | M92: 0 | N92: 0 | O92: 0 | P92: 0 | Q92: 0 | R92: 0 | S92: 0 | T92: 0 | U92: 0 | V92: 0 | W92: 0 | X92: 0 | Y92: 0
A93: 0 | B93: 0 | C93: 0 | D93: 0 | E93: 0 | F93: 0 | G93: 0 | H93: 0 | I93: 0 | J93: 0 | K93: 0 | L93: 0 | M93: 0 | N93: 0 | O93: 0 | P93: 0 | Q93: 0 | R93: 0 | S93: 0 | T93: 0 | U93: 0 | V93: 0 | W93: 0 | X93: 0 | Y93: 0
A94: 0 | B94: 0 | C94: 0 | D94: 0 | E94: 0 | F94: 0 | G94: 0 | H94: 0 | I94: 0 | J94: 0 | K94: 0 | L94: 0 | M94: 0 | N94: 0 | O94: 0 | P94: 0 | Q94: 0 | R94: 0 | S94: 0 | T94: 0 | U94: 0 | V94: 0 | W94: 0 | X94: 0 | Y94: 0
A95: 0 | B95: 0 | C95: 0 | D95: 0 | E95: 0 | F95: 0 | G95: 0 | H95: 0 | I95: 0 | J95: 0 | K95: 0 | L95: 0 | M95: 0 | N95: 0 | O95: 0 | P95: 0 | Q95: 0 | R95: 0 | S95: 0 | T95: 0 | U95: 0 | V95: 0 | W95: 0 | X95: 0 | Y95: 0

Sheet calcPump (hidden)
B1: ABB | O1: ENERGY SAVINGS OF A PUMP DRIVE
B2: Frequency Converter Control compared with Traditional Control methods
P3: On/Off säätö
P4: Jättämäsäätö
B8: INPUT DATA | U8: INITIAL DATA
B9: Liquid density (water = 1) | K9: r (kg/dm³) | N9: 1 | P9: =IF(0.5>N9,"wrong",IF(N9>2,"wrong","OK")) -> OK | U9: Transmission efficiency | AC9: nt (%) | AE9: 1 | AG9: =IF(AE9>1,"wrong","OK") -> OK | AI9: Type 100 if not used
B10: Pump nominal flow (1 l/s = 3,6 m3/h) | K10: Qn (m³/h) | N10: 1100 | P10: =N10/3.6 -> 305.5555556 | R10: ="="&INT(N10/3.6+0.5)&" l/s" -> =306 l/s | U10: Head over open throttle valve | AC10: Hv (m) | AE10: =P34 -> 0 | AG10: =IF(0>AE10,"wrong",IF(AE10>6,"wrong","OK")) -> OK
B11: Nominal head of the pump | K11: Hn (m) | N11: 33 | U11: Rated power of motor | AC11: P1 (kW) | AG11: =IF(AE11<1.1*$K$89,"Wrong !","OK") -> Wrong ! | AI11: =ROUND(1.1*$K$89,1)&" kW" -> 123.6 kW
B12: Pump maximum head (at zero flow) | K12: Hmax (m) | N12: 44 | P12: =IF(N12>N11,"OK","wrong") -> OK | U12: Nominal efficiency of frequency converter | AC12: hvsd (%) | AE12: 0.975 | AG12: =IF(AE12>100,"wrong","OK") -> OK
B13: Static head of the system | K13: Hst (m) | N13: 1 | P13: =IF(N13<N11,"OK","wrong") -> OK
B14: Nominal efficiency of the pump | K14: hp (%) | N14: 0.88 | P14: =IF(N14>1,"wrong","OK") -> OK
B15: Supply and Motor voltage (400, 500, 690V) | K15: U (V) | N15: 400 | P15: =IF(N15=400,"OK",IF(N15=500,"OK",IF(N15=690,"OK","wrong"))) -> OK
B16: Nominal efficiency of the motor | K16: hm (%) | N16: 0.95 | P16: =IF(N16>100,"wrong","OK") -> OK | W16: Energy used per year [kWh] | AH16: AC Drive | AJ16: control
B17: Total operating time per year | K17: Tk (h) | N17: 8760 | P17: =IF(N17>8760,"wrong","OK") -> OK | W17: VSD | AA17: =IF(ISERROR(AH18)=TRUE,"-",AH18) -> Throttling control | AH17: SELECTED CTRL
B18: Price of energy (per kWh) | K18: EUR | N18: 0.1 | W18: control | AA18: control | AH18: =HLOOKUP(B$34,J$40:Q$44,5) -> Throttling control
W19: =U47*$L22/100*$N$17 -> 0 | AA19: =AH20*$L22*$N$17/100 -> 0 | AH19: P [kW]
B20: FLOW | W20: 2413.866063 | AA20: 34286.91743 | AH20: =HLOOKUP(B$34,J$40:Q$55,I76) -> 73.87609649
B21: 0.1 | I21: Flow m3/h | L21: Time (%) | N21: Hours | P21: Kuristussäätö | Q21: On/Off säätö | R21: Jättämäsäätö | W21: 9505.214812 | AA21: 72662.97322 | AH21: 78.28063341
B22: =B21+0.1 -> 0.2 | I22: ="20% "&0.2*$N$10 -> 20% 220 | L22: 0 | N22: ="%= "&$L$22*$N$17/100 -> %= 0 | W22: 25099.18538 | AA22: 115563.3224 | AH22: 82.94859957
B23: 0.3 | I23: ="30% "&0.3*$N$10 -> 30% 330 | L23: 5 | N23: ="%= "&$L$23*$N$17/100 -> %= 438 | W23: 53924.36821 | AA23: 163586.303 | AH23: 87.94773392
B24: 0.4 | C24: Operating time | I24: ="40% "&0.4*$N$10 -> 40% 440 | L24: 10 | N24: ="%= "&$L$24*$N$17/100 -> %= 876 | W24: 80533.23544 | AA24: 174062.2731 | AH24: 93.37117751
B25: 0.5 | C25: in different flow rates | I25: ="50% "&0.5*$N$10 -> 50% 550 | L25: 15 | N25: ="%= "&$L$25*$N$17/100 -> %= 1314 | W25: 86620.29638 | AA25: 139387.1457 | AH25: 99.35061252
B26: 0.6 | C26: as a percentage of the | I26: ="60% "&0.6*$N$10 -> 60% 660 | L26: 20 | N26: ="%= "&$L$26*$N$17/100 -> %= 1752 | W26: 79579.50219 | AA26: 99092.31316 | AH26: 106.0784975
B27: 0.7 | C27: total operating time | I27: ="70% "&0.7*$N$10 -> 70% 770 | L27: 20 | N27: ="%= "&$L$27*$N$17/100 -> %= 1752 | W27: 53099.86505 | AA27: 51772.36842 | AH27: 113.1190789
B28: 0.8 | I28: ="80% "&0.8*$N$10 -> 80% 880 | L28: 15 | N28: ="%= "&$L$28*$N$17/100 -> %= 1314 | W28: Frequency conv. | AA28: Throttling control | AH28: 118.2017544
B29: 0.9 | I29: ="90% "&0.9*$N$10 -> 90% 990 | L29: 10 | N29: ="%= "&$L$29*$N$17/100 -> %= 876 | W29: =IF(ISERROR(SUM(W19:W27)),0,SUM(W19:W27)) -> 390775.5335 | AA29: =IF(ISERROR(SUM(AA19:AA27)),0,SUM(AA19:AA27)) -> 850413.6165 | AE29: =W29 -> 390775.5335
B30: 1 | I30: ="100% "&1*$N$10 -> 100% 1100 | L30: 5 | N30: ="%= "&$L$30*$N$17/100 -> %= 438 | AA30: =IF(ISERROR(AA29-W29)=TRUE,0,AA29-W29) -> 459638.083
C31: The sum must be = 100 % | I31: Sum | L31: =SUM(L23:M30) -> 100 | N31: =IF(L31=100,"OK","wrong") -> OK
C33: Existing Control mthd
B34: 1 | C34: 1 | H34: Throttling control | P34: 0 | Q34: ="m" -> m
C35: 2 | H35: On/off control
C36: 3 | H36: Hydraulic control
J40: 1 | N40: 2 | Q40: 3
C41: Qi | E41: Hpi | H41: Hsi | J41: Pthi | U41: Pvsdi | AA41: Corr. factor | AD41: Corr. factor | AG41: Corr. factor
C42: = Qn * x% | E42: = Hmax-(Qi/Qn)^2*(Hmax-Hn) | H42: = Hst+(Qi/Qn)^2*(Hn-Hv-Hst) | J42: = D*Qi*Hpi*9810/360*np*kpi*nm | U42: = D*Qi*Hsi*9810/3,6*np*nm*nvsd*kmi*kvsd) | AA42: kmi | AD42: kvsdi | AG42: kpi
B43: % | C43: Flow | E43: H (m) | H43: H (m) | J43: Power (kW) | N43: P | Q43: Power (kW) | U43: Power (kW) | X43: Power (kW) | AA43: of motor's | AD43: of drive's | AG43: of pump's | AJ43: Transmission
C44: (m3/h) | E44: Pump | H44: System | J44: Throttling control | N44: On/off control | Q44: Hydraulic control | U44: Speed contrl. | X44: Savings | AA44: efficiency | AD44: efficiency | AG44: efficiency | AJ44: efficiency
C45: 0 | E45: =$N$12-($C$45/$N$10)^2*($N$12-$N$11) -> 44 | H45: =$N$13+($C45/$N$10)^2*($N$11-$N$13-$AE$10) -> 1
C46: =0.1*$N$10 -> 110 | E46: =$N$12-($C$46/$N$10)^2*($N$12-$N$11) -> 43.89 | H46: 1.32
B47: 20 | C47: =0.2*$N$10 -> 220 | E47: =$N$12-($C$47/$N$10)^2*($N$12-$N$11) -> 43.56 | H47: 2.28 | J47: =($N$9*$C47*$E47*9.8)/(3600*$AG47*$N$14*$N$16) -> 73.87609649 | N47: =($N$9*C47*$H$55*9.81)/(3600*$N$14*$N$16) -> 23.66447368 | Q47: =($N$9*C47*H47*9.8)/(3600*$N$14*$N$16*1*AJ47) -> 5.47441391 | U47: =($N$9*C47*H47*9.8)/(3600*$N$14*$N$16*$AE$12*$AA47*$AD47) -> 2.359697293 | X47: =J47-U47 -> 71.5163992 | AA47: =(C47/$N$10)^(0.2-0.2*$N$13/$N$11) -> 0.7318838787 | AD47: 0.97 | AG47: =$C47*(2.4-1.44*$C47/$C$55)/$C$55 -> 0.4224 | AJ47: =0.98*(0.2+(0.8*0.75*($N$13/$N$11)^0.5)) -> 0.2983576617
B48: 30 | C48: =0.3*$N$10 -> 330 | E48: =$N$12-($C$48/$N$10)^2*($N$12-$N$11) -> 43.01 | H48: 3.88 | J48: 78.28063341 | N48: 35.49671053 | Q48: 10.86991901 | U48: 5.511109734 | X48: 72.76952368 | AA48: 0.7917593725 | AD48: 0.98 | AG48: 0.5904 | AJ48: =0.98*(0.3+(0.7*0.75*($N$13/$N$11)^0.5)) -> 0.383562954
B49: 40 | C49: =0.4*$N$10 -> 440 | E49: =$N$12-($C$49/$N$10)^2*($N$12-$N$11) -> 42.24 | H49: 6.12 | J49: 82.94859957 | N49: 47.32894737 | Q49: 18.7052368 | U49: 10.85070184 | X49: 72.09789773 | AA49: 0.8371894674 | AD49: 0.99 | AG49: 0.7296 | AJ49: =0.98*(0.4+(0.6*0.75*($N$13/$N$11)^0.5)) -> 0.4687682463
B50: 50 | C50: =0.5*$N$10 -> 550 | E50: =$N$12-($C$50/$N$10)^2*($N$12-$N$11) -> 41.25 | H50: 9 | J50: 87.94773392 | N50: 59.16118421 | Q50: 29.09601259 | U50: 19.10135874 | X50: 68.84637518 | AA50: 0.8742153445 | AD50: 0.99 | AG50: 0.84 | AJ50: =0.98*(0.5+(0.5*0.75*($N$13/$N$11)^0.5)) -> 0.5539735386
B51: 60 | C51: =0.6*$N$10 -> 660 | E51: =$N$12-($C$51/$N$10)^2*($N$12-$N$11) -> 40.04 | H51: 12.52 | J51: 93.37117751 | N51: 70.99342105 | Q51: 42.09622761 | U51: 30.77874898 | X51: 62.59242853 | AA51: 0.905680022 | AD51: 0.99 | AG51: 0.9216 | AJ51: =0.98*(0.6+(0.4*0.75*($N$13/$N$11)^0.5)) -> 0.6391788309
B52: 70 | C52: =0.7*$N$10 -> 770 | E52: =$N$12-($C$52/$N$10)^2*($N$12-$N$11) -> 38.61 | H52: 16.68 | J52: 99.35061252 | N52: 82.82565789 | Q52: 57.73446503 | U52: 45.96645859 | X52: 53.38415394 | AA52: 0.9331649276 | AD52: 1 | AG52: 0.9744 | AJ52: =0.98*(0.7+(0.3*0.75*($N$13/$N$11)^0.5)) -> 0.7243841231
B53: 80 | C53: =0.8*$N$10 -> 880 | E53: =$N$12-($C$53/$N$10)^2*($N$12-$N$11) -> 36.96 | H53: 21.48 | J53: 106.0784975 | N53: 94.65789474 | Q53: 76.02727509 | U53: 65.92107791 | X53: 40.15741961 | AA53: 0.9576467317 | AD53: 1 | AG53: 0.9984 | AJ53: =0.98*(0.8+(0.2*0.75*($N$13/$N$11)^0.5)) -> 0.8095894154
B54: 90 | C54: =0.9*$N$10 -> 990 | E54: =$N$12-($C$54/$N$10)^2*($N$12-$N$11) -> 35.09 | H54: 26.92 | J54: 113.1190789 | N54: 106.4901316 | Q54: 96.98490413 | U54: 90.84418058 | X54: 22.27489836 | AA54: 0.9797737958 | AD54: 1 | AG54: 1 | AJ54: =0.98*(0.9+(0.1*0.75*($N$13/$N$11)^0.5)) -> 0.8947947077
B55: 100 | C55: =1*$N$10 -> 1100 | E55: =$N$12-($C$55/$N$10)^2*($N$12-$N$11) -> 33 | H55: 33 | J55: 118.2017544 | N55: 118.3223684 | Q55: 120.6140351 | U55: 121.2325686 | X55: -3.030814215 | AA55: 1 | AD55: 1 | AG55: 1 | AJ55: 0.98
J57: 5
E60: Nom. product of a pump [m3/y] | L60: =N17*N10 -> 9636000 | U60: Tham chiếu:-any reference text
E61: Duty time -% of a year | L61: =N56/L60 -> 0 | U61: Lưu lượng danh định-1100
E62: Run time hours/year | L62: =L61*N17 -> 0 | U62: Điều khiển được cải tiến cho-ACS550-01-246A-4
E63: ON/OFF run time energy [kWh] | L63: =L62*K89/N16 -> 0 | U63: Tiết kiệm năng lượng/ năm
E64: rectified: | L64: =IF(ISERROR(L63),0,L63) -> 0 | U64: 460
I68: FOR HLOOKUP J
B69: FLOW (m³/h) | I69: 1
B70: =C55 -> 1100 | E70: 5 | I70: =I69+1 -> 2 | P70: Throttle | S70: Drive | V70: Hydraulic
B71: =C54 -> 990 | E71: 10 | I71: 3 | M71: Flow | P71: Power | S71: Power | V71: Power
B72: =C53 -> 880 | E72: 15 | I72: 4 | M72: Flow (m³/h) | P72: Power (kW)
B73: =C52 -> 770 | E73: 20 | I73: 5
B74: =C51 -> 660 | E74: 20 | I74: 6 | M74: =C45 -> 0
B75: =C50 -> 550 | E75: 15 | I75: 7 | M75: 110
B76: =C49 -> 440 | E76: 10 | I76: 8 | M76: 220 | P76: =J47 -> 73.87609649 | S76: =U47 -> 2.359697293 | V76: =Q47 -> 5.47441391
B77: =C48 -> 330 | E77: 5 | I77: 9 | M77: 330 | P77: 78.28063341 | S77: 5.511109734 | V77: 10.86991901
B78: =C47 -> 220 | E78: 0 | I78: 10 | M78: 440 | P78: 82.94859957 | S78: 10.85070184 | V78: 18.7052368
I79: 11 | M79: 550 | P79: 87.94773392 | S79: 19.10135874 | V79: 29.09601259
I80: 12 | M80: 660 | P80: 93.37117751 | S80: 30.77874898 | V80: 42.09622761
I81: 13 | M81: 770 | P81: 99.35061252 | S81: 45.96645859 | V81: 57.73446503
I82: 14 | M82: 880 | P82: 106.0784975 | S82: 65.92107791 | V82: 76.02727509
I83: 15 | M83: 990 | P83: 113.1190789 | S83: 90.84418058 | V83: 96.98490413
I84: 16 | M84: 1100 | P84: 118.2017544 | S84: 121.2325686 | V84: 120.6140351
B87: RESULTS OF CALCULATIONS:
B88: Recommended Drive type:
B89: Calculated power demand of a pump | K89: =($N$9*$N$10*$N$11*9.81)/(3600*$N$14*$AE$9) -> 112.40625 | N89: kW
B90: Calculated energy / throttling | K90: =$AA$29 -> 850413.6165 | N90: kWh
B91: Calculated energy / freq. converter control | K91: =$W$29 -> 390775.5335 | N91: kWh
B92: Total energy savings / year | K92: =$K$90-$K$91 -> 459638.083 | N92: kWh
B93: Total energy cost savings / year | K93: =$N$18*$K$92 -> 45963.8083 | N93: =K18 -> EUR
B94: Investment costs (can be given) | K94: 7000 | N94: =K18 -> EUR
B95: Direct payback time | K95: =K94/K93 -> 0.1522937341 | N95: Years
B101: COMMENTS:

Sheet Settings (hidden)
A1: Field or component | B1: Minimum value | C1: Maximum value | D1: Content or default value | E1: Value Entered
A3: Input_NominalFlow | B3: 0 | C3: 9999999 | D3: 1100 | E3: 1100
A4: Input_NominalHead | B4: 0 | C4: 4000 | D4: 33 | E4: 33
A5: Input_MaxHead | B5: 0 | C5: 5000 | D5: 44 | E5: 44
A6: Input_Efficiency | B6: 0 | C6: 100 | D6: 88 | E6: 88
A7: Input_Liquid | B7: 0 | C7: 8000 | D7: 1000 | E7: 1000
A8: Label_StaticHead | B8: 0
A9: Input_StaticHead | B9: 0 | C9: =C4 -> 4000 | D9: 1 | E9: 1
A10: Value_Required | C10: 124
A11: Input_MotorPower | B11: 0 | C11: =8*C10 -> 992 | E11: 132
A12: Input_MotorEfficiency | B12: 0 | C12: 100 | D12: 95 | E12: 95
A13: Input_AnnualRunningTime | B13: 20 | C13: 8784 | D13: 8760 | E13: 8760
A14: Input_100 | B14: 0 | C14: 100 | D14: 5 | E14: 5
A15: Input_90 | B15: 0 | C15: 100 | D15: 10 | E15: 10
A16: Input_80 | B16: 0 | C16: 100 | D16: 15 | E16: 15
A17: Input_70 | B17: 0 | C17: 100 | D17: 20 | E17: 20
A18: Input_60 | B18: 0 | C18: 100 | D18: 20 | E18: 20
A19: Input_50 | B19: 0 | C19: 100 | D19: 15 | E19: 15
A20: Input_40 | B20: 0 | C20: 100 | D20: 10 | E20: 10
A21: Input_30 | B21: 0 | C21: 100 | D21: 5 | E21: 5
A22: Input_20 | B22: 0 | C22: 100 | D22: 0 | E22: 0
A23: Input_EnergyPrice | B23: 0 | C23: 9999999 | D23: 0.1 | E23: 0,1
A24: Input_InvCost | B24: 0 | C24: 9999999 | D24: 7000 | E24: 7000
A25: Input_InterestRate | B25: 0 | C25: 100 | D25: 4 | E25: 4
A26: Input_CO2Emission | B26: 0 | C26: 10 | D26: 0.5 | E26: 0,5
A27: ComboBox_ExistingFlowCtrl | E27: Throttling control
A28: ComboBox_SupplyVoltage | E28: 400 V
A29: ComboBox_Improved | E29: ACS550
A30: ComboBox_CurrencyUnit | E30: €
A31: ComboBox_Language | D31: English | E31: English
